Workbook

Sheet Титульный
C2: Фактические затраты на тепловую энергию отпускаемую потребителям
C4: Регион РФ
C5: Калужская область
C7: Период регулирования | D7: 2021
C9: Является ли данное юридическое лицо подразделением(филиалом) другой организации | D9: нет
C11: Наименование Организации | D11: АО "Восход" - КРЛЗ | F11: (выберите из списка)
C13: Наименование ПОДРАЗДЕЛЕНИЯ
C14: ИНН | D14: 4026000108
C15: ОГРН | D15: 102400125910
C16: КПП | D16: 402901001
C18: Муниципальный район | D18: Наименование МР | E18: Город Калуга | F18: (выберите из списка)
C19: Муниципальное образование | D19: Наименование МО | E19: Город Калуга | F19: (выберите из списка)
D20: ОКТМО | E20: 29701000
C22: Юридический адрес | E22: 248009, г.Калуга, ул.Грабцевское шоссе, д.43
C23: Почтовый адрес | E23: 248009, г.Калуга, ул.Грабцевское шоссе, д.43
C24: Руководитель | D24: Фамилия, имя, отчество | E24: Пахомов М.Н.
D25: Контактный телефон | E25: (4842)56-29-33
C26: Должностное лицо, ответственное за заполнение документов | D26: Фамилия, имя, отчество | E26: Гаврикова Г.К.
D27: Должность | E27: Экономист ОГЭ
D28: Контактный телефон | E28: (4842) 55-81-81
D29: e-mail | E29: oge1@voshod-krlz.ru
C31: Вид деятельности | E31: Некомбинированное производство :: Передача :: Сбыт | F31: (выберите из списка)

Sheet Баланс
A2: Фактические объёмы тепловой энергии
B4: 2021 год
K5: тыс. Гкал
A6: Произведённая тепловая энергия | B6: Покупная тепловая энергия | C6: Потери т/э на собств. нужды котельной | D6: Отпуск тепловой энергии от котельной | E6: Потери тепловой энергии в сети | F6: Полезный отпуск тепловой энергии, всего | G6: В том числе | L6: реализуемой по ценам, определённым соглашением сторон
G7: реализуемой по регулируемым ценам
G8: бюджет | H8: население (и приравненные к ним) | I8: прочие | J8: организации-перепродавцы | K8: собственное потребление предприятия | L8: бюджет | M8: прочие | N8: итого
A9: 1 | B9: 2 | C9: 3 | D9: 4 | E9: 5 | F9: 6 | G9: 7 | H9: 8 | I9: 9 | J9: 10 | K9: 11 | L9: 12 | M9: 13
A10: Всего по теплоснабжающей организации:
A11: ='Баланс мес'!H7 -> 21.107 | B11: ='Баланс мес'!I7 -> 0 | C11: ='Баланс мес'!J7 -> 0.575 | D11: ='Баланс мес'!K7 -> 20.532 | E11: ='Баланс мес'!L7 -> 1.584 | F11: =SUM(F13:F15) -> 18.948 | G11: =SUM(G13:G15) -> 0 | H11: =SUM(H13:H15) -> 0 | I11: 3.044 | J11: ='Баланс мес'!AI7 -> 0 | K11: 15.904 | L11: =L13+L14+L15 -> 0 | M11: =M13+M14+M15 -> 0 | N11: =L11+M11 -> 0
A12: в том числе по показаниям приборов учёта тепловой энергии* | F12: =SUM(G12:I12) -> 1.146 | G12: ='Баланс мес'!S7 -> 0 | H12: ='Баланс мес'!X7 -> 0 | I12: ='Баланс мес'!AE7 -> 1.146 | K12: -
A13: разбивка полезного отпуска: на отопление | F13: ='Баланс мес'!M7 -> 3.044 | G13: ='Баланс мес'!R7 -> 0 | H13: ='Баланс мес'!W7 -> 0 | I13: ='Баланс мес'!AD7 -> 3.044 | K13: ='Баланс мес'!AK7 -> 5.473
A14: на горячее водоснабжение | F14: ='Баланс мес'!O7 -> 0 | G14: ='Баланс мес'!T7 -> 0 | H14: ='Баланс мес'!Z7 -> 0 | I14: ='Баланс мес'!AF7 -> 0
A15: на технологию | F15: ='Баланс мес'!P7 -> 15.904 | G15: ='Баланс мес'!U7 -> 0 | H15: ='Баланс мес'!AB7 -> 0 | I15: ='Баланс мес'!AG7 -> 0 | K15: ='Баланс мес'!AJ7 -> 10.431
A17: * - из годовых объёмов полезного отпуска выделить объёмы, определённые по показаниям приборов учёта тепловой энергии

Sheet Баланс мес
B3: Муниципальный район | C3: Муниципальное образование | D3: Наименование котельной | E3: Вид топлива | F3: Адрес котельной | G3: Месяцы | H3: Произведённая тепловая энергия | I3: Покупная тепловая энергия | J3: Потери т/э на собств. нужды котельной | K3: Отпуск тепловой энергии от котельной | L3: Потери тепловой энергии в сети | M3: 6. Полезный отпуск тепловой энергии | R3: В том числе
R4: 6.1. Бюджетные потребители | W4: 6.2. Население | AD4: 6.3. Прочие | AI4: 6.4. Организации-перепродавцы | AJ4: 6.5. Собственное потребление
M5: Отопление, всего | N5: в том числе по приборам учёта | O5: ГВС | P5: Технологические нужды | Q5: Всего | R5: Отопление, всего | S5: в том числе по приборам учёта | T5: ГВС | U5: Технологические нужды | V5: Всего | W5: Отопление, всего | X5: в том числе | Z5: ГВС | AB5: Технологические нужды | AC5: Всего | AD5: Отопление, всего | AE5: в том числе по приборам учёта | AF5: ГВС | AG5: Технологические нужды | AH5: Всего | AI5: Всего | AJ5: На собственное производство | AK5: На хозяйственные нужды | AL5: Всего
X6: по приборам учёта | Y6: Численность населения | Z6: Объем | AA6: Численность населения
C7: ВСЕГО | H7: =SUMPRODUCT((MOD(ROW(H9:H1810 )-9,14)=0)*(H9:H1810)) -> 21.107 | I7: =SUMPRODUCT((MOD(ROW(I9:I1810 )-9,14)=0)*(I9:I1810)) -> 0 | J7: =SUMPRODUCT((MOD(ROW(J9:J1810 )-9,14)=0)*(J9:J1810)) -> 0.575 | K7: =SUMPRODUCT((MOD(ROW(K9:K181 )-9,14)=0)*(K9:K181)) -> 20.532 | L7: =SUMPRODUCT((MOD(ROW(L9:L181 )-9,14)=0)*(L9:L181)) -> 1.584 | M7: =SUMPRODUCT((MOD(ROW(M9:M181 )-9,14)=0)*(M9:M181)) -> 3.044 | N7: =SUMPRODUCT((MOD(ROW(N9:N181 )-9,14)=0)*(N9:N181)) -> 0 | O7: =SUMPRODUCT((MOD(ROW(O9:O181 )-9,14)=0)*(O9:O181)) -> 0 | P7: =SUMPRODUCT((MOD(ROW(P9:P181 )-9,14)=0)*(P9:P181)) -> 15.904 | Q7: =SUMPRODUCT((MOD(ROW(Q9:Q181 )-9,14)=0)*(Q9:Q181)) -> 18.948 | R7: =SUMPRODUCT((MOD(ROW(R9:R1810 )-9,14)=0)*(R9:R1810)) -> 0 | S7: =SUMPRODUCT((MOD(ROW(S9:S181 )-9,14)=0)*(S9:S181)) -> 0 | T7: =SUMPRODUCT((MOD(ROW(T9:T181 )-9,14)=0)*(T9:T181)) -> 0 | U7: =SUMPRODUCT((MOD(ROW(U9:U181 )-9,14)=0)*(U9:U181)) -> 0 | V7: =SUMPRODUCT((MOD(ROW(V9:V181 )-9,14)=0)*(V9:V181)) -> 0 | W7: =SUMPRODUCT((MOD(ROW(W9:W181 )-9,14)=0)*(W9:W181)) -> 0 | X7: =SUMPRODUCT((MOD(ROW(X9:X181 )-9,14)=0)*(X9:X181)) -> 0 | Y7: =SUMPRODUCT((MOD(ROW(Y9:Y181 )-9,14)=0)*(Y9:Y181)) -> 0 | Z7: =SUMPRODUCT((MOD(ROW(Z9:Z181 )-9,14)=0)*(Z9:Z181)) -> 0 | AA7: =SUMPRODUCT((MOD(ROW(AA9:AA181 )-9,14)=0)*(AA9:AA181)) -> 0 | AB7: =SUMPRODUCT((MOD(ROW(AB9:AB181 )-9,14)=0)*(AB9:AB181)) -> 0 | AC7: =SUMPRODUCT((MOD(ROW(AC9:AC181 )-9,14)=0)*(AC9:AC181)) -> 0 | AD7: =SUMPRODUCT((MOD(ROW(AD9:AD181 )-9,14)=0)*(AD9:AD181)) -> 3.044 | AE7: =SUMPRODUCT((MOD(ROW(AE9:AE181 )-9,14)=0)*(AE9:AE181)) -> 1.146 | AF7: =SUMPRODUCT((MOD(ROW(AF9:AF181 )-9,14)=0)*(AF9:AF181)) -> 0 | AG7: =SUMPRODUCT((MOD(ROW(AG9:AG181 )-9,14)=0)*(AG9:AG181)) -> 0 | AH7: =SUMPRODUCT((MOD(ROW(AH9:AH181 )-9,14)=0)*(AH9:AH181)) -> 3.044 | AI7: =SUMPRODUCT((MOD(ROW(AI9:AI181 )-9,14)=0)*(AI9:AI181)) -> 0 | AJ7: =SUMPRODUCT((MOD(ROW(AJ9:AJ181 )-9,14)=0)*(AJ9:AJ181)) -> 10.431 | AK7: =SUMPRODUCT((MOD(ROW(AK9:AK181 )-9,14)=0)*(AK9:AK181)) -> 5.473 | AL7: =SUMPRODUCT((MOD(ROW(AL9:AL181 )-9,14)=0)*(AL9:AL181)) -> 15.904
A9: кот. 1 | G9: Год | H9: =SUM(H10:H21) -> 21.107 | I9: =SUM(I10:I21) -> 0 | J9: =SUM(J10:J21) -> 0.575 | K9: =SUM(K10:K21) -> 20.532 | L9: =SUM(L10:L21) -> 1.584 | M9: =SUM(M10:M21) -> 3.044 | N9: 0 | O9: 0 | P9: 15.904 | Q9: 18.948 | R9: 0 | S9: 0 | T9: 0 | U9: 0 | V9: 0 | W9: 0 | X9: =SUM(X10:X21) -> 0 | Y9: =SUM(Y10:Y21) -> 0 | Z9: 0 | AA9: =SUM(AA10:AA21) -> 0 | AB9: 0 | AC9: 0 | AD9: 3.044 | AE9: 1.146 | AF9: 0 | AG9: 0 | AH9: 3.044 | AI9: 0 | AJ9: 10.431 | AK9: 5.473 | AL9: 15.904
G10: январь | H10: =Q10+L10+J10-I10 -> 3.077 | J10: 0.084 | K10: =Q10+L10 -> 2.993 | L10: 0.231 | M10: =R10+W10+AD10+AI10 -> 0.519 | O10: =T10+Z10+AF10 -> 0 | P10: =AL10+U10+AB10+AG10 -> 2.243 | Q10: =V10+AC10+AH10+AI10+AL10 -> 2.762 | V10: =R10+T10+U10 -> 0 | AC10: =W10+Z10+AB10 -> 0 | AD10: 0.519 | AE10: 0.199 | AH10: =AD10+AF10+AG10 -> 0.519 | AJ10: 1.422 | AK10: 0.821 | AL10: =SUM(AJ10:AK10) -> 2.243
G11: февраль | H11: 3.586 | J11: 0.098 | K11: 3.488 | L11: 0.269 | M11: =R10+W11+AD11+AI11 -> 0.594 | O11: =T11+Z11+AF11 -> 0 | P11: =AL11+U11+AB11+AG11 -> 2.625 | Q11: =V11+AC11+AH11+AI11+AL11 -> 3.219 | V11: 0 | AC11: =W11+Z11+AB11 -> 0 | AD11: 0.594 | AE11: 0.219 | AH11: =AD11+AF11+AG11 -> 0.594 | AJ11: 1.664 | AK11: 0.961 | AL11: =SUM(AJ11:AK11) -> 2.625
G12: март | H12: 2.888 | J12: 0.079 | K12: 2.809 | L12: 0.217 | M12: 0.479 | O12: 0 | P12: 2.113 | Q12: 2.592 | V12: 0 | AC12: 0 | AD12: 0.479 | AE12: 0.154 | AH12: 0.479 | AJ12: 1.34 | AK12: 0.773 | AL12: 2.113
G13: апрель | H13: 1.725 | J13: 0.047 | K13: 1.678 | L13: 0.129 | M13: 0.26 | O13: 0 | P13: 1.289 | Q13: 1.549 | V13: 0 | AC13: 0 | AD13: 0.26 | AE13: 0.099 | AH13: 0.26 | AJ13: 0.817 | AK13: 0.472 | AL13: 1.289
G14: май | H14: 0.546 | J14: 0.015 | K14: 0.531 | L14: 0.041 | M14: 0.017 | O14: 0 | P14: 0.473 | Q14: 0.49 | V14: 0 | AC14: 0 | AD14: 0.017 | AE14: 0.012 | AH14: 0.017 | AJ14: 0.473 | AL14: 0.473
G15: июнь | H15: 0.26 | J15: 0.007 | K15: 0.253 | L15: 0.02 | M15: 0 | O15: 0 | P15: =AL15+U15+AB15+AG15 -> 0.233 | Q15: 0.233 | V15: 0 | AC15: 0 | AH15: 0 | AJ15: 0.233 | AL15: 0.233
G16: июль | H16: 0.074 | J16: 0.002 | K16: 0.072 | L16: 0.006 | M16: 0 | O16: 0 | P16: =AL16+U16+AB16+AG16 -> 0.066 | Q16: 0.066 | V16: 0 | AC16: 0 | AH16: 0 | AJ16: 0.066 | AL16: 0.066
G17: август | H17: 0.198 | J17: 0.005 | K17: 0.193 | L17: 0.015 | M17: =R16+W17+AD17+AI17 -> 0 | O17: 0 | P17: =AL17+U17+AB17+AG17 -> 0.178 | Q17: 0.178 | V17: 0 | AC17: 0 | AH17: 0 | AJ17: 0.178 | AL17: 0.178
G18: сентябрь | H18: 0.992 | J18: 0.027 | K18: 0.965 | L18: 0.074 | M18: 0.076 | O18: 0 | P18: 0.815 | Q18: 0.891 | V18: 0 | AC18: 0 | AD18: 0.076 | AE18: 0.024 | AH18: 0.076 | AJ18: 0.517 | AK18: 0.298 | AL18: 0.815
G19: октябрь | H19: 1.781 | J19: 0.048 | K19: 1.733 | L19: 0.134 | M19: 0.246 | O19: 0 | P19: 1.353 | Q19: 1.599 | V19: 0 | AC19: 0 | AD19: 0.246 | AE19: 0.065 | AH19: 0.246 | AJ19: 0.858 | AK19: 0.495 | AL19: 1.353
G20: ноябрь | H20: 2.336 | J20: 0.064 | K20: 2.272 | L20: 0.175 | M20: 0.306 | O20: 0 | P20: 1.791 | Q20: 2.097 | V20: 0 | AC20: 0 | AD20: 0.306 | AE20: 0.109 | AH20: 0.306 | AJ20: 1.135 | AK20: 0.656 | AL20: 1.791
G21: декабрь | H21: 3.644 | J21: 0.099 | K21: 3.545 | L21: 0.273 | M21: 0.547 | O21: 0 | P21: 2.725 | Q21: 3.272 | V21: 0 | AC21: 0 | AD21: 0.547 | AE21: 0.265 | AH21: 0.547 | AJ21: 1.728 | AK21: 0.997 | AL21: 2.725
A23: кот. 2 | G23: Год | H23: =SUM(H24:H35) -> 0 | I23: 0 | J23: 0 | K23: 0 | L23: 0 | M23: =SUM(M24:M35) -> 0 | N23: =SUM(N24:N35) -> 0 | O23: =SUM(O24:O35) -> 0 | P23: 0 | Q23: 0 | R23: 0 | S23: 0 | T23: 0 | U23: 0 | V23: =SUM(V24:V35) -> 0 | W23: 0 | X23: 0 | Z23: =SUM(Z24:Z35) -> 0 | AB23: =SUM(AB24:AB35) -> 0 | AC23: 0 | AD23: 0 | AE23: =SUM(AE24:AE35) -> 0 | AF23: =SUM(AF24:AF35) -> 0 | AG23: 0 | AH23: 0 | AI23: 0 | AJ23: 0 | AK23: 0 | AL23: 0
G24: январь | H24: =Q24+L24+J24-I24 -> 0 | K24: =Q24+L24 -> 0 | M24: =R24+W24+AD24+AI24 -> 0 | O24: =T24+Z24+AF24 -> 0 | P24: =AL24+U24+AB24+AG24 -> 0 | Q24: =V24+AC24+AH24+AI24+AL24 -> 0 | V24: =R24+T24+U24 -> 0 | AC24: =W24+Z24+AB24 -> 0 | AH24: =AD24+AF24+AG24 -> 0 | AL24: =SUM(AJ24:AK24) -> 0
G25: февраль | H25: 0 | K25: 0 | M25: =R24+W25+AD25+AI25 -> 0 | O25: =T25+Z25+AF25 -> 0 | P25: =AL25+U25+AB25+AG25 -> 0 | Q25: 0 | V25: 0 | AC25: =W25+Z25+AB25 -> 0 | AH25: =AD25+AF25+AG25 -> 0 | AL25: 0
G26: март | H26: 0 | K26: 0 | M26: 0 | O26: 0 | P26: 0 | Q26: 0 | V26: 0 | AC26: 0 | AH26: 0 | AL26: 0
G27: апрель | H27: 0 | K27: 0 | M27: 0 | O27: 0 | P27: 0 | Q27: 0 | V27: 0 | AC27: 0 | AH27: 0 | AL27: 0
G28: май | H28: 0 | K28: 0 | M28: 0 | O28: 0 | P28: 0 | Q28: 0 | V28: 0 | AC28: 0 | AH28: 0 | AL28: 0
G29: июнь | H29: 0 | K29: 0 | M29: 0 | O29: 0 | P29: =AL29+U29+AB29+AG29 -> 0 | Q29: 0 | V29: 0 | AC29: 0 | AH29: 0 | AL29: 0
G30: июль | H30: 0 | K30: 0 | M30: 0 | O30: 0 | P30: =AL30+U30+AB30+AG30 -> 0 | Q30: 0 | V30: 0 | AC30: 0 | AH30: 0 | AL30: 0
G31: август | H31: 0 | K31: 0 | M31: =R30+W31+AD31+AI31 -> 0 | O31: 0 | P31: =AL31+U31+AB31+AG31 -> 0 | Q31: 0 | V31: 0 | AC31: 0 | AH31: 0 | AL31: 0
G32: сентябрь | H32: 0 | K32: 0 | M32: =R31+W32+AD32+AI32 -> 0 | O32: 0 | P32: =AL32+U32+AB32+AG32 -> 0 | Q32: 0 | V32: 0 | AC32: 0 | AH32: 0 | AL32: 0
G33: октябрь | H33: 0 | K33: 0 | M33: 0 | O33: 0 | P33: 0 | Q33: 0 | V33: 0 | AC33: 0 | AH33: 0 | AL33: 0
G34: ноябрь | H34: 0 | K34: 0 | M34: 0 | O34: 0 | P34: 0 | Q34: 0 | V34: 0 | AC34: 0 | AH34: 0 | AL34: 0
G35: декабрь | H35: 0 | K35: 0 | M35: 0 | O35: 0 | P35: 0 | Q35: 0 | V35: 0 | AC35: 0 | AH35: 0 | AL35: 0
A37: кот. 3 | G37: Год | H37: =SUM(H38:H49) -> 0 | I37: 0 | J37: 0 | K37: 0 | L37: 0 | M37: =SUM(M38:M49) -> 0 | N37: =SUM(N38:N49) -> 0 | O37: =SUM(O38:O49) -> 0 | P37: 0 | Q37: 0 | R37: 0 | S37: 0 | T37: 0 | U37: 0 | V37: 0 | W37: 0 | X37: 0 | Z37: =SUM(Z38:Z49) -> 0 | AB37: =SUM(AB38:AB49) -> 0 | AC37: 0 | AD37: 0 | AE37: =SUM(AE38:AE49) -> 0 | AF37: =SUM(AF38:AF49) -> 0 | AG37: 0 | AH37: 0 | AI37: 0 | AJ37: 0 | AK37: 0 | AL37: 0
G38: январь | H38: =Q38+L38+J38-I38 -> 0 | K38: =Q38+L38 -> 0 | M38: =R38+W38+AD38+AI38 -> 0 | O38: =T38+Z38+AF38 -> 0 | P38: =AL38+U38+AB38+AG38 -> 0 | Q38: =V38+AC38+AH38+AI38+AL38 -> 0 | V38: =R38+T38+U38 -> 0 | AC38: =W38+Z38+AB38 -> 0 | AH38: =AD38+AF38+AG38 -> 0 | AL38: =SUM(AJ38:AK38) -> 0
G39: февраль | H39: 0 | K39: 0 | M39: =R38+W39+AD39+AI39 -> 0 | O39: =T39+Z39+AF39 -> 0 | P39: =AL39+U39+AB39+AG39 -> 0 | Q39: 0 | V39: 0 | AC39: =W39+Z39+AB39 -> 0 | AH39: =AD39+AF39+AG39 -> 0 | AL39: 0
G40: март | H40: 0 | K40: 0 | M40: 0 | O40: 0 | P40: 0 | Q40: 0 | V40: 0 | AC40: 0 | AH40: 0 | AL40: 0
G41: апрель | H41: 0 | K41: 0 | M41: 0 | O41: 0 | P41: 0 | Q41: 0 | V41: 0 | AC41: 0 | AH41: 0 | AL41: 0
G42: май | H42: 0 | K42: 0 | M42: 0 | O42: 0 | P42: 0 | Q42: 0 | V42: 0 | AC42: 0 | AH42: 0 | AL42: 0
G43: июнь | H43: 0 | K43: 0 | M43: 0 | O43: 0 | P43: =AL43+U43+AB43+AG43 -> 0 | Q43: 0 | V43: 0 | AC43: 0 | AH43: 0 | AL43: 0
G44: июль | H44: 0 | K44: 0 | M44: 0 | O44: 0 | P44: =AL44+U44+AB44+AG44 -> 0 | Q44: 0 | V44: 0 | AC44: 0 | AH44: 0 | AL44: 0
G45: август | H45: 0 | K45: 0 | M45: =R44+W45+AD45+AI45 -> 0 | O45: 0 | P45: =AL45+U45+AB45+AG45 -> 0 | Q45: 0 | V45: 0 | AC45: 0 | AH45: 0 | AL45: 0
G46: сентябрь | H46: 0 | K46: 0 | M46: =R45+W46+AD46+AI46 -> 0 | O46: 0 | P46: =AL46+U46+AB46+AG46 -> 0 | Q46: 0 | V46: 0 | AC46: 0 | AH46: 0 | AL46: 0
G47: октябрь | H47: 0 | K47: 0 | M47: 0 | O47: 0 | P47: 0 | Q47: 0 | V47: 0 | AC47: 0 | AH47: 0 | AL47: 0
G48: ноябрь | H48: 0 | K48: 0 | M48: 0 | O48: 0 | P48: 0 | Q48: 0 | V48: 0 | AC48: 0 | AH48: 0 | AL48: 0
G49: декабрь | H49: 0 | K49: 0 | M49: 0 | O49: 0 | P49: 0 | Q49: 0 | V49: 0 | AC49: 0 | AH49: 0 | AL49: 0
A51: кот. 4 | G51: Год | H51: =SUM(H52:H63) -> 0 | I51: 0 | J51: 0 | K51: 0 | L51: 0 | M51: =SUM(M52:M63) -> 0 | N51: =SUM(N52:N63) -> 0 | O51: =SUM(O52:O63) -> 0 | P51: 0 | Q51: 0 | R51: 0 | S51: 0 | T51: 0 | U51: 0 | V51: 0 | W51: 0 | X51: 0 | Z51: =SUM(Z52:Z63) -> 0 | AB51: =SUM(AB52:AB63) -> 0 | AC51: 0 | AD51: 0 | AE51: =SUM(AE52:AE63) -> 0 | AF51: =SUM(AF52:AF63) -> 0 | AG51: 0 | AH51: 0 | AI51: 0 | AJ51: 0 | AK51: 0 | AL51: 0
G52: январь | H52: =Q52+L52+J52-I52 -> 0 | K52: =Q52+L52 -> 0 | M52: =R52+W52+AD52+AI52 -> 0 | O52: =T52+Z52+AF52 -> 0 | P52: =AL52+U52+AB52+AG52 -> 0 | Q52: =V52+AC52+AH52+AI52+AL52 -> 0 | V52: =R52+T52+U52 -> 0 | AC52: =W52+Z52+AB52 -> 0 | AH52: =AD52+AF52+AG52 -> 0 | AL52: =SUM(AJ52:AK52) -> 0
G53: февраль | H53: 0 | K53: 0 | M53: =R52+W53+AD53+AI53 -> 0 | O53: =T53+Z53+AF53 -> 0 | P53: =AL53+U53+AB53+AG53 -> 0 | Q53: 0 | V53: 0 | AC53: =W53+Z53+AB53 -> 0 | AH53: =AD53+AF53+AG53 -> 0 | AL53: 0
G54: март | H54: 0 | K54: 0 | M54: 0 | O54: 0 | P54: 0 | Q54: 0 | V54: 0 | AC54: 0 | AH54: 0 | AL54: 0
G55: апрель | H55: 0 | K55: 0 | M55: 0 | O55: 0 | P55: 0 | Q55: 0 | V55: 0 | AC55: 0 | AH55: 0 | AL55: 0
G56: май | H56: 0 | K56: 0 | M56: 0 | O56: 0 | P56: 0 | Q56: 0 | V56: 0 | AC56: 0 | AH56: 0 | AL56: 0
G57: июнь | H57: 0 | K57: 0 | M57: 0 | O57: 0 | P57: =AL57+U57+AB57+AG57 -> 0 | Q57: 0 | V57: 0 | AC57: 0 | AH57: 0 | AL57: 0
G58: июль | H58: 0 | K58: 0 | M58: 0 | O58: 0 | P58: =AL58+U58+AB58+AG58 -> 0 | Q58: 0 | V58: 0 | AC58: 0 | AH58: 0 | AL58: 0
G59: август | H59: 0 | K59: 0 | M59: =R58+W59+AD59+AI59 -> 0 | O59: 0 | P59: =AL59+U59+AB59+AG59 -> 0 | Q59: 0 | V59: 0 | AC59: 0 | AH59: 0 | AL59: 0
G60: сентябрь | H60: 0 | K60: 0 | M60: =R59+W60+AD60+AI60 -> 0 | O60: 0 | P60: =AL60+U60+AB60+AG60 -> 0 | Q60: 0 | V60: 0 | AC60: 0 | AH60: 0 | AL60: 0
G61: октябрь | H61: 0 | K61: 0 | M61: 0 | O61: 0 | P61: 0 | Q61: 0 | V61: 0 | AC61: 0 | AH61: 0 | AL61: 0
G62: ноябрь | H62: 0 | K62: 0 | M62: 0 | O62: 0 | P62: 0 | Q62: 0 | V62: 0 | AC62: 0 | AH62: 0 | AL62: 0
G63: декабрь | H63: 0 | K63: 0 | M63: 0 | O63: 0 | P63: 0 | Q63: 0 | V63: 0 | AC63: 0 | AH63: 0 | AL63: 0
A65: кот. 5 | G65: Год | H65: =SUM(H66:H77) -> 0 | I65: 0 | J65: =SUM(J66:J77) -> 0 | K65: 0 | L65: 0 | M65: =SUM(M66:M77) -> 0 | N65: =SUM(N66:N77) -> 0 | O65: =SUM(O66:O77) -> 0 | P65: 0 | Q65: 0 | R65: 0 | S65: 0 | T65: 0 | U65: 0 | V65: 0 | W65: 0 | X65: 0 | Z65: =SUM(Z66:Z77) -> 0 | AB65: =SUM(AB66:AB77) -> 0 | AC65: 0 | AD65: 0 | AE65: =SUM(AE66:AE77) -> 0 | AF65: =SUM(AF66:AF77) -> 0 | AG65: 0 | AH65: 0 | AI65: 0 | AJ65: 0 | AK65: 0 | AL65: 0
G66: январь | H66: =Q66+L66+J66-I66 -> 0 | K66: =Q66+L66 -> 0 | M66: =R66+W66+AD66+AI66 -> 0 | O66: =T66+Z66+AF66 -> 0 | P66: =AL66+U66+AB66+AG66 -> 0 | Q66: =V66+AC66+AH66+AI66+AL66 -> 0 | V66: =R66+T66+U66 -> 0 | AC66: =W66+Z66+AB66 -> 0 | AH66: =AD66+AF66+AG66 -> 0 | AL66: =SUM(AJ66:AK66) -> 0
G67: февраль | H67: 0 | K67: 0 | M67: =R66+W67+AD67+AI67 -> 0 | O67: =T67+Z67+AF67 -> 0 | P67: =AL67+U67+AB67+AG67 -> 0 | Q67: 0 | V67: 0 | AC67: =W67+Z67+AB67 -> 0 | AH67: =AD67+AF67+AG67 -> 0 | AL67: 0
G68: март | H68: 0 | K68: 0 | M68: 0 | O68: 0 | P68: 0 | Q68: 0 | V68: 0 | AC68: 0 | AH68: 0 | AL68: 0
G69: апрель | H69: 0 | K69: 0 | M69: 0 | O69: 0 | P69: 0 | Q69: 0 | V69: 0 | AC69: 0 | AH69: 0 | AL69: 0
G70: май | H70: 0 | K70: 0 | M70: 0 | O70: 0 | P70: 0 | Q70: 0 | V70: 0 | AC70: 0 | AH70: 0 | AL70: 0
G71: июнь | H71: 0 | K71: 0 | M71: 0 | O71: 0 | P71: =AL71+U71+AB71+AG71 -> 0 | Q71: 0 | V71: 0 | AC71: 0 | AH71: 0 | AL71: 0
G72: июль | H72: 0 | K72: 0 | M72: 0 | O72: 0 | P72: =AL72+U72+AB72+AG72 -> 0 | Q72: 0 | V72: 0 | AC72: 0 | AH72: 0 | AL72: 0
G73: август | H73: 0 | K73: 0 | M73: =R72+W73+AD73+AI73 -> 0 | O73: 0 | P73: =AL73+U73+AB73+AG73 -> 0 | Q73: 0 | V73: 0 | AC73: 0 | AH73: 0 | AL73: 0
G74: сентябрь | H74: 0 | K74: 0 | M74: =R73+W74+AD74+AI74 -> 0 | O74: 0 | P74: =AL74+U74+AB74+AG74 -> 0 | Q74: 0 | V74: 0 | AC74: 0 | AH74: 0 | AL74: 0
G75: октябрь | H75: 0 | K75: 0 | M75: 0 | O75: 0 | P75: 0 | Q75: 0 | V75: 0 | AC75: 0 | AH75: 0 | AL75: 0
G76: ноябрь | H76: 0 | K76: 0 | M76: 0 | O76: 0 | P76: 0 | Q76: 0 | V76: 0 | AC76: 0 | AH76: 0 | AL76: 0
G77: декабрь | H77: 0 | K77: 0 | M77: 0 | O77: 0 | P77: 0 | Q77: 0 | V77: 0 | AC77: 0 | AH77: 0 | AL77: 0
A79: кот. 6 | G79: Год | H79: =SUM(H80:H91) -> 0 | I79: 0 | J79: 0 | K79: 0 | L79: 0 | M79: =SUM(M80:M91) -> 0 | N79: =SUM(N80:N91) -> 0 | O79: =SUM(O80:O91) -> 0 | P79: 0 | Q79: 0 | R79: 0 | S79: 0 | T79: 0 | U79: 0 | V79: 0 | W79: 0 | X79: 0 | Z79: =SUM(Z80:Z91) -> 0 | AB79: =SUM(AB80:AB91) -> 0 | AC79: 0 | AD79: 0 | AE79: =SUM(AE80:AE91) -> 0 | AF79: =SUM(AF80:AF91) -> 0 | AG79: 0 | AH79: 0 | AI79: 0 | AJ79: 0 | AK79: 0 | AL79: 0
G80: январь | H80: =Q80+L80+J80-I80 -> 0 | K80: =Q80+L80 -> 0 | M80: =R80+W80+AD80+AI80 -> 0 | O80: =T80+Z80+AF80 -> 0 | P80: =AL80+U80+AB80+AG80 -> 0 | Q80: =V80+AC80+AH80+AI80+AL80 -> 0 | V80: =R80+T80+U80 -> 0 | AC80: =W80+Z80+AB80 -> 0 | AH80: =AD80+AF80+AG80 -> 0 | AL80: =SUM(AJ80:AK80) -> 0
G81: февраль | H81: 0 | K81: 0 | M81: =R80+W81+AD81+AI81 -> 0 | O81: =T81+Z81+AF81 -> 0 | P81: =AL81+U81+AB81+AG81 -> 0 | Q81: 0 | V81: 0 | AC81: =W81+Z81+AB81 -> 0 | AH81: =AD81+AF81+AG81 -> 0 | AL81: 0
G82: март | H82: 0 | K82: 0 | M82: 0 | O82: 0 | P82: 0 | Q82: 0 | V82: 0 | AC82: 0 | AH82: 0 | AL82: 0
G83: апрель | H83: 0 | K83: 0 | M83: 0 | O83: 0 | P83: 0 | Q83: 0 | V83: 0 | AC83: 0 | AH83: 0 | AL83: 0
G84: май | H84: 0 | K84: 0 | M84: 0 | O84: 0 | P84: 0 | Q84: 0 | V84: 0 | AC84: 0 | AH84: 0 | AL84: 0
G85: июнь | H85: 0 | K85: 0 | M85: 0 | O85: 0 | P85: =AL85+U85+AB85+AG85 -> 0 | Q85: 0 | V85: 0 | AC85: 0 | AH85: 0 | AL85: 0
G86: июль | H86: 0 | K86: 0 | M86: 0 | O86: 0 | P86: =AL86+U86+AB86+AG86 -> 0 | Q86: 0 | V86: 0 | AC86: 0 | AH86: 0 | AL86: 0
G87: август | H87: 0 | K87: 0 | M87: =R86+W87+AD87+AI87 -> 0 | O87: 0 | P87: =AL87+U87+AB87+AG87 -> 0 | Q87: 0 | V87: 0 | AC87: 0 | AH87: 0 | AL87: 0
G88: сентябрь | H88: 0 | K88: 0 | M88: =R87+W88+AD88+AI88 -> 0 | O88: 0 | P88: =AL88+U88+AB88+AG88 -> 0 | Q88: 0 | V88: 0 | AC88: 0 | AH88: 0 | AL88: 0
G89: октябрь | H89: 0 | K89: 0 | M89: 0 | O89: 0 | P89: 0 | Q89: 0 | V89: 0 | AC89: 0 | AH89: 0 | AL89: 0
G90: ноябрь | H90: 0 | K90: 0 | M90: 0 | O90: 0 | P90: 0 | Q90: 0 | V90: 0 | AC90: 0 | AH90: 0 | AL90: 0
G91: декабрь | H91: 0 | K91: 0 | M91: 0 | O91: 0 | P91: 0 | Q91: 0 | V91: 0 | AC91: 0 | AH91: 0 | AL91: 0
A93: кот. 7 | G93: Год | H93: =SUM(H94:H105) -> 0 | I93: 0 | J93: 0 | K93: 0 | L93: 0 | M93: =SUM(M94:M105) -> 0 | N93: =SUM(N94:N105) -> 0 | O93: =SUM(O94:O105) -> 0 | P93: 0 | Q93: 0 | R93: 0 | S93: 0 | T93: 0 | U93: 0 | V93: 0 | W93: 0 | X93: 0 | Z93: =SUM(Z94:Z105) -> 0 | AB93: =SUM(AB94:AB105) -> 0 | AC93: 0 | AD93: 0 | AE93: =SUM(AE94:AE105) -> 0 | AF93: =SUM(AF94:AF105) -> 0 | AG93: 0 | AH93: 0 | AI93: 0 | AJ93: 0 | AK93: 0 | AL93: 0
G94: январь | H94: =Q94+L94+J94-I94 -> 0 | K94: =Q94+L94 -> 0 | M94: =R94+W94+AD94+AI94 -> 0 | O94: =T94+Z94+AF94 -> 0 | P94: =AL94+U94+AB94+AG94 -> 0 | Q94: =V94+AC94+AH94+AI94+AL94 -> 0 | V94: =R94+T94+U94 -> 0 | AC94: =W94+Z94+AB94 -> 0 | AH94: =AD94+AF94+AG94 -> 0 | AL94: =SUM(AJ94:AK94) -> 0
G95: февраль | H95: 0 | K95: 0 | M95: =R94+W95+AD95+AI95 -> 0 | O95: =T95+Z95+AF95 -> 0 | P95: =AL95+U95+AB95+AG95 -> 0 | Q95: 0 | V95: 0 | AC95: =W95+Z95+AB95 -> 0 | AH95: =AD95+AF95+AG95 -> 0 | AL95: 0
G96: март | H96: 0 | K96: 0 | M96: 0 | O96: 0 | P96: 0 | Q96: 0 | V96: 0 | AC96: 0 | AH96: 0 | AL96: 0
G97: апрель | H97: 0 | K97: 0 | M97: 0 | O97: 0 | P97: 0 | Q97: 0 | V97: 0 | AC97: 0 | AH97: 0 | AL97: 0
G98: май | H98: 0 | K98: 0 | M98: 0 | O98: 0 | P98: 0 | Q98: 0 | V98: 0 | AC98: 0 | AH98: 0 | AL98: 0
G99: июнь | H99: 0 | K99: 0 | M99: 0 | O99: 0 | P99: =AL99+U99+AB99+AG99 -> 0 | Q99: 0 | V99: 0 | AC99: 0 | AH99: 0 | AL99: 0
G100: июль | H100: 0 | K100: 0 | M100: 0 | O100: 0 | P100: =AL100+U100+AB100+AG100 -> 0 | Q100: 0 | V100: 0 | AC100: 0 | AH100: 0 | AL100: 0
G101: август | H101: 0 | K101: 0 | M101: =R100+W101+AD101+AI101 -> 0 | O101: 0 | P101: =AL101+U101+AB101+AG101 -> 0 | Q101: 0 | V101: 0 | AC101: 0 | AH101: 0 | AL101: 0
G102: сентябрь | H102: 0 | K102: 0 | M102: =R101+W102+AD102+AI102 -> 0 | O102: 0 | P102: =AL102+U102+AB102+AG102 -> 0 | Q102: 0 | V102: 0 | AC102: 0 | AH102: 0 | AL102: 0
G103: октябрь | H103: 0 | K103: 0 | M103: 0 | O103: 0 | P103: 0 | Q103: 0 | V103: 0 | AC103: 0 | AH103: 0 | AL103: 0
G104: ноябрь | H104: 0 | K104: 0 | M104: 0 | O104: 0 | P104: 0 | Q104: 0 | V104: 0 | AC104: 0 | AH104: 0 | AL104: 0
G105: декабрь | H105: 0 | K105: 0 | M105: 0 | O105: 0 | P105: 0 | Q105: 0 | V105: 0 | AC105: 0 | AH105: 0 | AL105: 0
A107: кот. 8 | G107: Год | H107: =SUM(H108:H119) -> 0 | I107: 0 | J107: 0 | K107: 0 | L107: 0 | M107: =SUM(M108:M119) -> 0 | N107: =SUM(N108:N119) -> 0 | O107: =SUM(O108:O119) -> 0 | P107: 0 | Q107: 0 | R107: 0 | S107: 0 | T107: 0 | U107: 0 | V107: 0 | W107: 0 | X107: 0 | Z107: =SUM(Z108:Z119) -> 0 | AB107: =SUM(AB108:AB119) -> 0 | AC107: 0 | AD107: 0 | AE107: =SUM(AE108:AE119) -> 0 | AF107: =SUM(AF108:AF119) -> 0 | AG107: 0 | AH107: 0 | AI107: 0 | AJ107: 0 | AK107: 0 | AL107: 0
G108: январь | H108: =Q108+L108+J108-I108 -> 0 | K108: =Q108+L108 -> 0 | M108: =R108+W108+AD108+AI108 -> 0 | O108: =T108+Z108+AF108 -> 0 | P108: =AL108+U108+AB108+AG108 -> 0 | Q108: =V108+AC108+AH108+AI108+AL108 -> 0 | V108: =R108+T108+U108 -> 0 | AC108: =W108+Z108+AB108 -> 0 | AH108: =AD108+AF108+AG108 -> 0 | AL108: =SUM(AJ108:AK108) -> 0
G109: февраль | H109: 0 | K109: 0 | M109: =R108+W109+AD109+AI109 -> 0 | O109: =T109+Z109+AF109 -> 0 | P109: =AL109+U109+AB109+AG109 -> 0 | Q109: 0 | V109: 0 | AC109: =W109+Z109+AB109 -> 0 | AH109: =AD109+AF109+AG109 -> 0 | AL109: 0
G110: март | H110: 0 | K110: 0 | M110: 0 | O110: 0 | P110: 0 | Q110: 0 | V110: 0 | AC110: 0 | AH110: 0 | AL110: 0
G111: апрель | H111: 0 | K111: 0 | M111: 0 | O111: 0 | P111: 0 | Q111: 0 | V111: 0 | AC111: 0 | AH111: 0 | AL111: 0
G112: май | H112: 0 | K112: 0 | M112: 0 | O112: 0 | P112: 0 | Q112: 0 | V112: 0 | AC112: 0 | AH112: 0 | AL112: 0
G113: июнь | H113: 0 | K113: 0 | M113: 0 | O113: 0 | P113: =AL113+U113+AB113+AG113 -> 0 | Q113: 0 | V113: 0 | AC113: 0 | AH113: 0 | AL113: 0
G114: июль | H114: 0 | K114: 0 | M114: 0 | O114: 0 | P114: =AL114+U114+AB114+AG114 -> 0 | Q114: 0 | V114: 0 | AC114: 0 | AH114: 0 | AL114: 0
G115: август | H115: 0 | K115: 0 | M115: =R114+W115+AD115+AI115 -> 0 | O115: 0 | P115: =AL115+U115+AB115+AG115 -> 0 | Q115: 0 | V115: 0 | AC115: 0 | AH115: 0 | AL115: 0
G116: сентябрь | H116: 0 | K116: 0 | M116: =R115+W116+AD116+AI116 -> 0 | O116: 0 | P116: =AL116+U116+AB116+AG116 -> 0 | Q116: 0 | V116: 0 | AC116: 0 | AH116: 0 | AL116: 0
G117: октябрь | H117: 0 | K117: 0 | M117: 0 | O117: 0 | P117: 0 | Q117: 0 | V117: 0 | AC117: 0 | AH117: 0 | AL117: 0
G118: ноябрь | H118: 0 | K118: 0 | M118: 0 | O118: 0 | P118: 0 | Q118: 0 | V118: 0 | AC118: 0 | AH118: 0 | AL118: 0
G119: декабрь | H119: 0 | K119: 0 | M119: 0 | O119: 0 | P119: 0 | Q119: 0 | V119: 0 | AC119: 0 | AH119: 0 | AL119: 0
A121: кот. 9 | G121: Год | H121: =SUM(H122:H133) -> 0 | I121: 0 | J121: 0 | K121: 0 | L121: 0 | M121: =SUM(M122:M133) -> 0 | N121: =SUM(N122:N133) -> 0 | O121: =SUM(O122:O133) -> 0 | P121: 0 | Q121: 0 | R121: 0 | S121: 0 | T121: 0 | U121: 0 | V121: 0 | W121: 0 | X121: 0 | Z121: =SUM(Z122:Z133) -> 0 | AB121: =SUM(AB122:AB133) -> 0 | AC121: 0 | AD121: 0 | AE121: =SUM(AE122:AE133) -> 0 | AF121: =SUM(AF122:AF133) -> 0 | AG121: 0 | AH121: 0 | AI121: 0 | AJ121: 0 | AK121: 0 | AL121: 0
G122: январь | H122: =Q122+L122+J122-I122 -> 0 | K122: =Q122+L122 -> 0 | M122: =R122+W122+AD122+AI122 -> 0 | O122: =T122+Z122+AF122 -> 0 | P122: =AL122+U122+AB122+AG122 -> 0 | Q122: =V122+AC122+AH122+AI122+AL122 -> 0 | V122: =R122+T122+U122 -> 0 | AC122: =W122+Z122+AB122 -> 0 | AH122: =AD122+AF122+AG122 -> 0 | AL122: =SUM(AJ122:AK122) -> 0
G123: февраль | H123: 0 | K123: 0 | M123: =R122+W123+AD123+AI123 -> 0 | O123: =T123+Z123+AF123 -> 0 | P123: =AL123+U123+AB123+AG123 -> 0 | Q123: 0 | V123: 0 | AC123: =W123+Z123+AB123 -> 0 | AH123: =AD123+AF123+AG123 -> 0 | AL123: 0
G124: март | H124: 0 | K124: 0 | M124: 0 | O124: 0 | P124: 0 | Q124: 0 | V124: 0 | AC124: 0 | AH124: 0 | AL124: 0
G125: апрель | H125: 0 | K125: 0 | M125: 0 | O125: 0 | P125: 0 | Q125: 0 | V125: 0 | AC125: 0 | AH125: 0 | AL125: 0
G126: май | H126: 0 | K126: 0 | M126: 0 | O126: 0 | P126: 0 | Q126: 0 | V126: 0 | AC126: 0 | AH126: 0 | AL126: 0
G127: июнь | H127: 0 | K127: 0 | M127: 0 | O127: 0 | P127: =AL127+U127+AB127+AG127 -> 0 | Q127: 0 | V127: 0 | AC127: 0 | AH127: 0 | AL127: 0
G128: июль | H128: 0 | K128: 0 | M128: 0 | O128: 0 | P128: =AL128+U128+AB128+AG128 -> 0 | Q128: 0 | V128: 0 | AC128: 0 | AH128: 0 | AL128: 0
G129: август | H129: 0 | K129: 0 | M129: =R128+W129+AD129+AI129 -> 0 | O129: 0 | P129: =AL129+U129+AB129+AG129 -> 0 | Q129: 0 | V129: 0 | AC129: 0 | AH129: 0 | AL129: 0
G130: сентябрь | H130: 0 | K130: 0 | M130: =R129+W130+AD130+AI130 -> 0 | O130: 0 | P130: =AL130+U130+AB130+AG130 -> 0 | Q130: 0 | V130: 0 | AC130: 0 | AH130: 0 | AL130: 0
G131: октябрь | H131: 0 | K131: 0 | M131: 0 | O131: 0 | P131: 0 | Q131: 0 | V131: 0 | AC131: 0 | AH131: 0 | AL131: 0
G132: ноябрь | H132: 0 | K132: 0 | M132: 0 | O132: 0 | P132: 0 | Q132: 0 | V132: 0 | AC132: 0 | AH132: 0 | AL132: 0
G133: декабрь | H133: 0 | K133: 0 | M133: 0 | O133: 0 | P133: 0 | Q133: 0 | V133: 0 | AC133: 0 | AH133: 0 | AL133: 0
A135: кот. 10 | G135: Год | H135: =SUM(H136:H147) -> 0 | I135: 0 | J135: 0 | K135: 0 | L135: 0 | M135: =SUM(M136:M147) -> 0 | N135: =SUM(N136:N147) -> 0 | O135: =SUM(O136:O147) -> 0 | P135: 0 | Q135: 0 | R135: 0 | S135: 0 | T135: 0 | U135: 0 | V135: 0 | W135: 0 | X135: 0 | Z135: =SUM(Z136:Z147) -> 0 | AB135: =SUM(AB136:AB147) -> 0 | AC135: 0 | AD135: 0 | AE135: =SUM(AE136:AE147) -> 0 | AF135: =SUM(AF136:AF147) -> 0 | AG135: 0 | AH135: 0 | AI135: 0 | AJ135: 0 | AK135: 0 | AL135: 0
G136: январь | H136: =Q136+L136+J136-I136 -> 0 | K136: =Q136+L136 -> 0 | M136: =R136+W136+AD136+AI136 -> 0 | O136: =T136+Z136+AF136 -> 0 | P136: =AL136+U136+AB136+AG136 -> 0 | Q136: =V136+AC136+AH136+AI136+AL136 -> 0 | V136: =R136+T136+U136 -> 0 | AC136: =W136+Z136+AB136 -> 0 | AH136: =AD136+AF136+AG136 -> 0 | AL136: =SUM(AJ136:AK136) -> 0
G137: февраль | H137: 0 | K137: 0 | M137: =R136+W137+AD137+AI137 -> 0 | O137: =T137+Z137+AF137 -> 0 | P137: =AL137+U137+AB137+AG137 -> 0 | Q137: 0 | V137: 0 | AC137: =W137+Z137+AB137 -> 0 | AH137: =AD137+AF137+AG137 -> 0 | AL137: 0
G138: март | H138: 0 | K138: 0 | M138: 0 | O138: 0 | P138: 0 | Q138: 0 | V138: 0 | AC138: 0 | AH138: 0 | AL138: 0
G139: апрель | H139: 0 | K139: 0 | M139: 0 | O139: 0 | P139: 0 | Q139: 0 | V139: 0 | AC139: 0 | AH139: 0 | AL139: 0
G140: май | H140: 0 | K140: 0 | M140: 0 | O140: 0 | P140: 0 | Q140: 0 | V140: 0 | AC140: 0 | AH140: 0 | AL140: 0
G141: июнь | H141: 0 | K141: 0 | M141: 0 | O141: 0 | P141: =AL141+U141+AB141+AG141 -> 0 | Q141: 0 | V141: 0 | AC141: 0 | AH141: 0 | AL141: 0
G142: июль | H142: 0 | K142: 0 | M142: 0 | O142: 0 | P142: =AL142+U142+AB142+AG142 -> 0 | Q142: 0 | V142: 0 | AC142: 0 | AH142: 0 | AL142: 0
G143: август | H143: 0 | K143: 0 | M143: =R142+W143+AD143+AI143 -> 0 | O143: 0 | P143: =AL143+U143+AB143+AG143 -> 0 | Q143: 0 | V143: 0 | AC143: 0 | AH143: 0 | AL143: 0
G144: сентябрь | H144: 0 | K144: 0 | M144: =R143+W144+AD144+AI144 -> 0 | O144: 0 | P144: =AL144+U144+AB144+AG144 -> 0 | Q144: 0 | V144: 0 | AC144: 0 | AH144: 0 | AL144: 0
G145: октябрь | H145: 0 | K145: 0 | M145: 0 | O145: 0 | P145: 0 | Q145: 0 | V145: 0 | AC145: 0 | AH145: 0 | AL145: 0
G146: ноябрь | H146: 0 | K146: 0 | M146: 0 | O146: 0 | P146: 0 | Q146: 0 | V146: 0 | AC146: 0 | AH146: 0 | AL146: 0
G147: декабрь | H147: 0 | K147: 0 | M147: 0 | O147: 0 | P147: 0 | Q147: 0 | V147: 0 | AC147: 0 | AH147: 0 | AL147: 0
A149: кот. 11 | G149: Год | H149: =SUM(H150:H161) -> 0 | I149: 0 | J149: 0 | K149: 0 | L149: 0 | M149: =SUM(M150:M161) -> 0 | N149: =SUM(N150:N161) -> 0 | O149: =SUM(O150:O161) -> 0 | P149: 0 | Q149: 0 | R149: 0 | S149: 0 | T149: 0 | U149: 0 | V149: 0 | W149: 0 | X149: 0 | Z149: =SUM(Z150:Z161) -> 0 | AB149: =SUM(AB150:AB161) -> 0 | AC149: 0 | AD149: 0 | AE149: =SUM(AE150:AE161) -> 0 | AF149: =SUM(AF150:AF161) -> 0 | AG149: 0 | AH149: 0 | AI149: 0 | AJ149: 0 | AK149: 0 | AL149: 0
G150: январь | H150: =Q150+L150+J150-I150 -> 0 | K150: =Q150+L150 -> 0 | M150: =R150+W150+AD150+AI150 -> 0 | O150: =T150+Z150+AF150 -> 0 | P150: =AL150+U150+AB150+AG150 -> 0 | Q150: =V150+AC150+AH150+AI150+AL150 -> 0 | V150: =R150+T150+U150 -> 0 | AC150: =W150+Z150+AB150 -> 0 | AH150: =AD150+AF150+AG150 -> 0 | AL150: =SUM(AJ150:AK150) -> 0
G151: февраль | H151: 0 | K151: 0 | M151: =R150+W151+AD151+AI151 -> 0 | O151: =T151+Z151+AF151 -> 0 | P151: =AL151+U151+AB151+AG151 -> 0 | Q151: 0 | V151: 0 | AC151: =W151+Z151+AB151 -> 0 | AH151: =AD151+AF151+AG151 -> 0 | AL151: 0
G152: март | H152: 0 | K152: 0 | M152: 0 | O152: 0 | P152: 0 | Q152: 0 | V152: 0 | AC152: 0 | AH152: 0 | AL152: 0
G153: апрель | H153: 0 | K153: 0 | M153: 0 | O153: 0 | P153: 0 | Q153: 0 | V153: 0 | AC153: 0 | AH153: 0 | AL153: 0
G154: май | H154: 0 | K154: 0 | M154: 0 | O154: 0 | P154: 0 | Q154: 0 | V154: 0 | AC154: 0 | AH154: 0 | AL154: 0
G155: июнь | H155: 0 | K155: 0 | M155: 0 | O155: 0 | P155: =AL155+U155+AB155+AG155 -> 0 | Q155: 0 | V155: 0 | AC155: 0 | AH155: 0 | AL155: 0
G156: июль | H156: 0 | K156: 0 | M156: 0 | O156: 0 | P156: =AL156+U156+AB156+AG156 -> 0 | Q156: 0 | V156: 0 | AC156: 0 | AH156: 0 | AL156: 0
G157: август | H157: 0 | K157: 0 | M157: =R156+W157+AD157+AI157 -> 0 | O157: 0 | P157: =AL157+U157+AB157+AG157 -> 0 | Q157: 0 | V157: 0 | AC157: 0 | AH157: 0 | AL157: 0
G158: сентябрь | H158: 0 | K158: 0 | M158: =R157+W158+AD158+AI158 -> 0 | O158: 0 | P158: =AL158+U158+AB158+AG158 -> 0 | Q158: 0 | V158: 0 | AC158: 0 | AH158: 0 | AL158: 0
G159: октябрь | H159: 0 | K159: 0 | M159: 0 | O159: 0 | P159: 0 | Q159: 0 | V159: 0 | AC159: 0 | AH159: 0 | AL159: 0
G160: ноябрь | H160: 0 | K160: 0 | M160: 0 | O160: 0 | P160: 0 | Q160: 0 | V160: 0 | AC160: 0 | AH160: 0 | AL160: 0
G161: декабрь | H161: 0 | K161: 0 | M161: 0 | O161: 0 | P161: 0 | Q161: 0 | V161: 0 | AC161: 0 | AH161: 0 | AL161: 0
A163: кот. 12 | G163: Год | H163: =SUM(H164:H175) -> 0 | I163: 0 | J163: 0 | K163: 0 | L163: 0 | M163: =SUM(M164:M175) -> 0 | N163: =SUM(N164:N175) -> 0 | O163: 0 | P163: 0 | Q163: 0 | R163: 0 | S163: 0 | T163: 0 | U163: 0 | V163: 0 | W163: 0 | X163: 0 | Z163: =SUM(Z164:Z175) -> 0 | AB163: =SUM(AB164:AB175) -> 0 | AC163: 0 | AD163: 0 | AE163: 0 | AF163: 0 | AG163: 0 | AH163: 0 | AI163: 0 | AJ163: 0 | AK163: 0 | AL163: 0
G164: январь | H164: =Q164+L164+J164-I164 -> 0 | K164: =Q164+L164 -> 0 | M164: =R164+W164+AD164+AI164 -> 0 | O164: =T164+Z164+AF164 -> 0 | P164: =AL164+U164+AB164+AG164 -> 0 | Q164: =V164+AC164+AH164+AI164+AL164 -> 0 | V164: =R164+T164+U164 -> 0 | AC164: =W164+Z164+AB164 -> 0 | AH164: =AD164+AF164+AG164 -> 0 | AL164: =SUM(AJ164:AK164) -> 0
G165: февраль | H165: 0 | K165: 0 | M165: =R164+W165+AD165+AI165 -> 0 | O165: =T165+Z165+AF165 -> 0 | P165: =AL165+U165+AB165+AG165 -> 0 | Q165: 0 | V165: 0 | AC165: =W165+Z165+AB165 -> 0 | AH165: =AD165+AF165+AG165 -> 0 | AL165: 0
G166: март | H166: 0 | K166: 0 | M166: 0 | O166: 0 | P166: 0 | Q166: 0 | V166: 0 | AC166: 0 | AH166: 0 | AL166: 0
G167: апрель | H167: 0 | K167: 0 | M167: 0 | O167: 0 | P167: 0 | Q167: 0 | V167: 0 | AC167: 0 | AH167: 0 | AL167: 0
G168: май | H168: 0 | K168: 0 | M168: 0 | O168: 0 | P168: 0 | Q168: 0 | V168: 0 | AC168: 0 | AH168: 0 | AL168: 0
G169: июнь | H169: 0 | K169: 0 | M169: 0 | O169: 0 | P169: =AL169+U169+AB169+AG169 -> 0 | Q169: 0 | V169: 0 | AC169: 0 | AH169: 0 | AL169: 0
G170: июль | H170: 0 | K170: 0 | M170: 0 | O170: 0 | P170: =AL170+U170+AB170+AG170 -> 0 | Q170: 0 | V170: 0 | AC170: 0 | AH170: 0 | AL170: 0
G171: август | H171: 0 | K171: 0 | M171: =R170+W171+AD171+AI171 -> 0 | O171: 0 | P171: =AL171+U171+AB171+AG171 -> 0 | Q171: 0 | V171: 0 | AC171: 0 | AH171: 0 | AL171: 0
G172: сентябрь | H172: 0 | K172: 0 | M172: =R171+W172+AD172+AI172 -> 0 | O172: 0 | P172: =AL172+U172+AB172+AG172 -> 0 | Q172: 0 | V172: 0 | AC172: 0 | AH172: 0 | AL172: 0
G173: октябрь | H173: 0 | K173: 0 | M173: 0 | O173: 0 | P173: 0 | Q173: 0 | V173: 0 | AC173: 0 | AH173: 0 | AL173: 0
G174: ноябрь | H174: 0 | K174: 0 | M174: 0 | O174: 0 | P174: 0 | Q174: 0 | V174: 0 | AC174: 0 | AH174: 0 | AL174: 0
G175: декабрь | H175: 0 | K175: 0 | M175: 0 | O175: 0 | P175: 0 | Q175: 0 | V175: 0 | AC175: 0 | AH175: 0 | AL175: 0
A177: кот. 13 | G177: Год | H177: =SUM(H178:H189) -> 0 | I177: 0 | J177: 0 | K177: 0 | L177: 0 | M177: =SUM(M178:M189) -> 0 | N177: =SUM(N178:N189) -> 0 | O177: 0 | P177: 0 | Q177: 0 | R177: 0 | S177: 0 | T177: 0 | U177: 0 | V177: 0 | W177: 0 | X177: 0 | Z177: =SUM(Z178:Z189) -> 0 | AB177: =SUM(AB178:AB189) -> 0 | AC177: 0 | AD177: 0 | AE177: 0 | AF177: 0 | AG177: 0 | AH177: 0 | AI177: 0 | AJ177: 0 | AK177: 0 | AL177: 0
G178: январь | H178: =Q178+L178+J178-I178 -> 0 | K178: =Q178+L178 -> 0 | M178: =R178+W178+AD178+AI178 -> 0 | O178: =T178+Z178+AF178 -> 0 | P178: =AL178+U178+AB178+AG178 -> 0 | Q178: =V178+AC178+AH178+AI178+AL178 -> 0 | V178: =R178+T178+U178 -> 0 | AC178: =W178+Z178+AB178 -> 0 | AH178: =AD178+AF178+AG178 -> 0 | AL178: =SUM(AJ178:AK178) -> 0
G179: февраль | H179: 0 | K179: 0 | M179: =R178+W179+AD179+AI179 -> 0 | O179: =T179+Z179+AF179 -> 0 | P179: =AL179+U179+AB179+AG179 -> 0 | Q179: 0 | V179: 0 | AC179: =W179+Z179+AB179 -> 0 | AH179: =AD179+AF179+AG179 -> 0 | AL179: 0
G180: март | H180: 0 | K180: 0 | M180: 0 | O180: 0 | P180: 0 | Q180: 0 | V180: 0 | AC180: 0 | AH180: 0 | AL180: 0
G181: апрель | H181: 0 | K181: 0 | M181: 0 | O181: 0 | P181: 0 | Q181: 0 | V181: 0 | AC181: 0 | AH181: 0 | AL181: 0
G182: май | H182: 0 | K182: 0 | M182: 0 | O182: 0 | P182: 0 | Q182: 0 | V182: 0 | AC182: 0 | AH182: 0 | AL182: 0
G183: июнь | H183: 0 | K183: 0 | M183: 0 | O183: 0 | P183: =AL183+U183+AB183+AG183 -> 0 | Q183: 0 | V183: 0 | AC183: 0 | AH183: 0 | AL183: 0
G184: июль | H184: 0 | K184: 0 | M184: 0 | O184: 0 | P184: =AL184+U184+AB184+AG184 -> 0 | Q184: 0 | V184: 0 | AC184: 0 | AH184: 0 | AL184: 0
G185: август | H185: 0 | K185: 0 | M185: =R184+W185+AD185+AI185 -> 0 | O185: 0 | P185: =AL185+U185+AB185+AG185 -> 0 | Q185: 0 | V185: 0 | AC185: 0 | AH185: 0 | AL185: 0
G186: сентябрь | H186: 0 | K186: 0 | M186: =R185+W186+AD186+AI186 -> 0 | O186: 0 | P186: =AL186+U186+AB186+AG186 -> 0 | Q186: 0 | V186: 0 | AC186: 0 | AH186: 0 | AL186: 0
G187: октябрь | H187: 0 | K187: 0 | M187: 0 | O187: 0 | P187: 0 | Q187: 0 | V187: 0 | AC187: 0 | AH187: 0 | AL187: 0
G188: ноябрь | H188: 0 | K188: 0 | M188: 0 | O188: 0 | P188: 0 | Q188: 0 | V188: 0 | AC188: 0 | AH188: 0 | AL188: 0
G189: декабрь | H189: 0 | K189: 0 | M189: 0 | O189: 0 | P189: 0 | Q189: 0 | V189: 0 | AC189: 0 | AH189: 0 | AL189: 0
A191: кот. 14 | G191: Год | H191: =SUM(H192:H203) -> 0 | I191: 0 | J191: 0 | K191: 0 | L191: 0 | M191: =SUM(M192:M203) -> 0 | N191: =SUM(N192:N203) -> 0 | O191: 0 | P191: 0 | Q191: 0 | R191: 0 | S191: 0 | T191: 0 | U191: 0 | V191: 0 | W191: 0 | X191: 0 | Z191: =SUM(Z192:Z203) -> 0 | AB191: =SUM(AB192:AB203) -> 0 | AC191: 0 | AD191: 0 | AE191: 0 | AF191: 0 | AG191: 0 | AH191: 0 | AI191: 0 | AJ191: 0 | AK191: 0 | AL191: 0
G192: январь | H192: =Q192+L192+J192-I192 -> 0 | K192: =Q192+L192 -> 0 | M192: =R192+W192+AD192+AI192 -> 0 | O192: =T192+Z192+AF192 -> 0 | P192: =AL192+U192+AB192+AG192 -> 0 | Q192: =V192+AC192+AH192+AI192+AL192 -> 0 | V192: =R192+T192+U192 -> 0 | AC192: =W192+Z192+AB192 -> 0 | AH192: =AD192+AF192+AG192 -> 0 | AL192: =SUM(AJ192:AK192) -> 0
G193: февраль | H193: 0 | K193: 0 | M193: =R192+W193+AD193+AI193 -> 0 | O193: =T193+Z193+AF193 -> 0 | P193: =AL193+U193+AB193+AG193 -> 0 | Q193: 0 | V193: 0 | AC193: =W193+Z193+AB193 -> 0 | AH193: =AD193+AF193+AG193 -> 0 | AL193: 0
G194: март | H194: 0 | K194: 0 | M194: 0 | O194: 0 | P194: 0 | Q194: 0 | V194: 0 | AC194: 0 | AH194: 0 | AL194: 0
G195: апрель | H195: 0 | K195: 0 | M195: 0 | O195: 0 | P195: 0 | Q195: 0 | V195: 0 | AC195: 0 | AH195: 0 | AL195: 0
G196: май | H196: 0 | K196: 0 | M196: 0 | O196: 0 | P196: 0 | Q196: 0 | V196: 0 | AC196: 0 | AH196: 0 | AL196: 0
G197: июнь | H197: 0 | K197: 0 | M197: 0 | O197: 0 | P197: =AL197+U197+AB197+AG197 -> 0 | Q197: 0 | V197: 0 | AC197: 0 | AH197: 0 | AL197: 0
G198: июль | H198: 0 | K198: 0 | M198: 0 | O198: 0 | P198: =AL198+U198+AB198+AG198 -> 0 | Q198: 0 | V198: 0 | AC198: 0 | AH198: 0 | AL198: 0
G199: август | H199: 0 | K199: 0 | M199: =R198+W199+AD199+AI199 -> 0 | O199: 0 | P199: =AL199+U199+AB199+AG199 -> 0 | Q199: 0 | V199: 0 | AC199: 0 | AH199: 0 | AL199: 0
G200: сентябрь | H200: 0 | K200: 0 | M200: =R199+W200+AD200+AI200 -> 0 | O200: 0 | P200: =AL200+U200+AB200+AG200 -> 0 | Q200: 0 | V200: 0 | AC200: 0 | AH200: 0 | AL200: 0
G201: октябрь | H201: 0 | K201: 0 | M201: 0 | O201: 0 | P201: 0 | Q201: 0 | V201: 0 | AC201: 0 | AH201: 0 | AL201: 0
G202: ноябрь | H202: 0 | K202: 0 | M202: 0 | O202: 0 | P202: 0 | Q202: 0 | V202: 0 | AC202: 0 | AH202: 0 | AL202: 0
G203: декабрь | H203: 0 | K203: 0 | M203: 0 | O203: 0 | P203: 0 | Q203: 0 | V203: 0 | AC203: 0 | AH203: 0 | AL203: 0
A205: кот. 15 | G205: Год | H205: =SUM(H206:H217) -> 0 | I205: 0 | J205: 0 | K205: 0 | L205: 0 | M205: =SUM(M206:M217) -> 0 | N205: =SUM(N206:N217) -> 0 | O205: 0 | P205: 0 | Q205: 0 | R205: 0 | S205: 0 | T205: 0 | U205: 0 | V205: 0 | W205: 0 | X205: 0 | Z205: =SUM(Z206:Z217) -> 0 | AB205: =SUM(AB206:AB217) -> 0 | AC205: 0 | AD205: 0 | AE205: 0 | AF205: 0 | AG205: 0 | AH205: 0 | AI205: 0 | AJ205: 0 | AK205: 0 | AL205: 0
G206: январь | H206: =Q206+L206+J206-I206 -> 0 | K206: =Q206+L206 -> 0 | M206: =R206+W206+AD206+AI206 -> 0 | O206: =T206+Z206+AF206 -> 0 | P206: =AL206+U206+AB206+AG206 -> 0 | Q206: =V206+AC206+AH206+AI206+AL206 -> 0 | V206: =R206+T206+U206 -> 0 | AC206: =W206+Z206+AB206 -> 0 | AH206: =AD206+AF206+AG206 -> 0 | AL206: =SUM(AJ206:AK206) -> 0
G207: февраль | H207: 0 | K207: 0 | M207: =R206+W207+AD207+AI207 -> 0 | O207: =T207+Z207+AF207 -> 0 | P207: =AL207+U207+AB207+AG207 -> 0 | Q207: 0 | V207: 0 | AC207: =W207+Z207+AB207 -> 0 | AH207: =AD207+AF207+AG207 -> 0 | AL207: 0
G208: март | H208: 0 | K208: 0 | M208: 0 | O208: 0 | P208: 0 | Q208: 0 | V208: 0 | AC208: 0 | AH208: 0 | AL208: 0
G209: апрель | H209: 0 | K209: 0 | M209: 0 | O209: 0 | P209: 0 | Q209: 0 | V209: 0 | AC209: 0 | AH209: 0 | AL209: 0
G210: май | H210: 0 | K210: 0 | M210: 0 | O210: 0 | P210: 0 | Q210: 0 | V210: 0 | AC210: 0 | AH210: 0 | AL210: 0
G211: июнь | H211: 0 | K211: 0 | M211: 0 | O211: 0 | P211: =AL211+U211+AB211+AG211 -> 0 | Q211: 0 | V211: 0 | AC211: 0 | AH211: 0 | AL211: 0
G212: июль | H212: 0 | K212: 0 | M212: 0 | O212: 0 | P212: =AL212+U212+AB212+AG212 -> 0 | Q212: 0 | V212: 0 | AC212: 0 | AH212: 0 | AL212: 0
G213: август | H213: 0 | K213: 0 | M213: =R212+W213+AD213+AI213 -> 0 | O213: 0 | P213: =AL213+U213+AB213+AG213 -> 0 | Q213: 0 | V213: 0 | AC213: 0 | AH213: 0 | AL213: 0
G214: сентябрь | H214: 0 | K214: 0 | M214: =R213+W214+AD214+AI214 -> 0 | O214: 0 | P214: =AL214+U214+AB214+AG214 -> 0 | Q214: 0 | V214: 0 | AC214: 0 | AH214: 0 | AL214: 0
G215: октябрь | H215: 0 | K215: 0 | M215: 0 | O215: 0 | P215: 0 | Q215: 0 | V215: 0 | AC215: 0 | AH215: 0 | AL215: 0
G216: ноябрь | H216: 0 | K216: 0 | M216: 0 | O216: 0 | P216: 0 | Q216: 0 | V216: 0 | AC216: 0 | AH216: 0 | AL216: 0
G217: декабрь | H217: 0 | K217: 0 | M217: 0 | O217: 0 | P217: 0 | Q217: 0 | V217: 0 | AC217: 0 | AH217: 0 | AL217: 0
... 117 more rows

Sheet Смета № 1
B3: № | C3: Статья расхода | D3: Ед.Изм. | E3: Фактические расходы 2021 года | K3: Ссылка на поддтверждающие документы* | L3: Примечание
E4: в отношении всех источников, используемых для осуществления деятельности по производству и передаче тепловой энергии | H4: в том числе в отношении всех источников, отпускающих тепловую энергию по ценам, определенным соглашением сторон | M4: *Ссылки на обоснование понесённых расходов прикреплять в соответствующую строку расходов
E5: 1 полугодие | F5: 2 полугодие | G5: Итого 2021 год | H5: 1 полугодие | I5: 2 полугодие | J5: Итого 2021 год
A6: 1 | C6: Теплоэнергия | D6: руб/Гкал | E6: =(#REF!*1)+(#REF!*1) ->  | F6: =(#REF!*1)+(#REF!*1) ->  | G6: =(E6*1)+(F6*1) -> 
A7: 3 | B7: 36 | C7: НВВ | E7: =E157*E158 -> 0 | F7: =F157*F158 -> 0 | G7: =(E7*1)+(F7*1) -> 0 | H7: =H157*H158 -> 0 | I7: =I157*I158 -> 0 | J7: =(H7*1)+(I7*1) -> 0
A8: 302 | B8: 31 | C8: Итого расходов | D8: тыс. руб. | E8: =(E13*1)+E10+E12+E136+E143 -> 0 | F8: =(F13*1)+F10+F12+F136+F143 -> 0 | G8: =(E8*1)+(F8*1) -> 0 | H8: =(H13*1)+H10+H12+H136+H143 -> 0 | I8: =(I13*1)+I10+I12+I136+I143 -> 0 | J8: =(H8*1)+(I8*1) -> 0
A9: 332 | C9: Налог на прибыль (нерассчетная) | E9: =(E10*1) -> 0 | F9: =(F10*1) -> 0 | G9: =(E9*1)+(F9*1) -> 0 | H9: =(H10*1) -> 0 | I9: =(I10*1) -> 0 | J9: =(H9*1)+(I9*1) -> 0
A10: 274 | B10: 30 | C10: Налог на прибыль | D10: тыс.руб. | G10: 0 | J10: 0
A11: 334 | C11: Налог по упрощённой системе налогообложения | D11: тыс. руб. | E11: =(E12*1) -> 0 | F11: =(F12*1) -> 0 | G11: 0 | H11: =(H12*1) -> 0 | I11: =(I12*1) -> 0 | J11: 0 | L11: - налоговая декларация
A12: 335 | C12: Налог по упрощённой системе налогообложения | D12: тыс.руб. | G12: 0 | J12: 0
A13: 6 | B13: 31.1 | C13: Итого расходов (без налога на прибыль) | D13: тыс. руб. | E13: =(E14*1)+(E30*1)+(E42*1)+(E63*1)+(E69*1)+(E78*1)+(E82*0)+(E83*1)+(E91*1)+(E92*1)+(E97*1)+(E110*1)+(E111*1)+(E112*1)+(E113*1)+(E114*1)+(E115*1)+(E116*1)+(E119*1)+(E120*1)+(E130*1)+(E131*1)+(E134*1)+(E135*1) -> 0 | F13: =(F14*1)+(F30*1)+(F42*1)+(F63*1)+(F69*1)+(F78*1)+(F82*0)+(F83*1)+(F91*1)+(F92*1)+(F97*1)+(F110*1)+(F111*1)+(F112*1)+(F113*1)+(F114*1)+(F115*1)+(F116*1)+(F119*1)+(F120*1)+(F130*1)+(F131*1)+(F134*1)+(F135*1)+F143 -> 0 | G13: 0 | H13: =(H14*1)+(H30*1)+(H42*1)+(H63*1)+(H69*1)+(H78*1)+(H82*0)+(H83*1)+(H91*1)+(H92*1)+(H97*1)+(H110*1)+(H111*1)+(H112*1)+(H113*1)+(H114*1)+(H115*1)+(H116*1)+(H119*1)+(H120*1)+(H130*1)+(H131*1)+(H134*1)+(H135*1) -> 0 | I13: =(I14*1)+(I30*1)+(I42*1)+(I63*1)+(I69*1)+(I78*1)+(I82*0)+(I83*1)+(I91*1)+(I92*1)+(I97*1)+(I110*1)+(I111*1)+(I112*1)+(I113*1)+(I114*1)+(I115*1)+(I116*1)+(I119*1)+(I120*1)+(I130*1)+(I131*1)+(I134*1)+(I135*1) -> 0 | J13: 0
A14: 39 | B14: 4 | C14: Стоимость натурального топлива с учётом транспортировки (перевозки) (топливо на технологические цели) | D14: тыс.руб. | E14: =(E15*1)+(E22*1)+(E23*1)+(E24*1)+(E25*1)+(E26*1)+(E27*0)+(E28*1)+(E29*0) -> 0 | F14: =(F15*1)+(F22*1)+(F23*1)+(F24*1)+(F25*1)+(F26*1)+(F28*1)+(F29*0) -> 0 | G14: 0 | H14: =(H15*1)+(H22*1)+(H23*1)+(H24*1)+(H25*1)+(H26*1)+(H27*0)+(H28*1)+(H29*0) -> 0 | I14: =(I15*1)+(I22*1)+(I23*1)+(I24*1)+(I25*1)+(I26*1)+(I27*0)+(I28*1) -> 0 | J14: 0 | L14: - счета-фактуры; - товарные накладные на поставку газа; - акты выполненных работ на транспортировку газа
A15: 41 | C15: Газ | D15: тыс.руб. | E15: =(E16*1)+(E17*0) -> 0 | F15: =(F16*1)+(F17*0) -> 0 | G15: 0 | H15: =(H16*1)+(H17*0) -> 0 | I15: =(I16*1)+(I17*0) -> 0 | J15: 0
A16: 45 | B16: 4.2 | C16: Газ природный | D16: тыс.руб. | E16: =E20*E21/1000 -> 0 | F16: =F20*F21/1000 -> 0 | G16: 0 | H16: =H20*H21/1000 -> 0 | I16: =I20*I21/1000 -> 0 | J16: 0
A17: 328 | B17: 4.30 | C17: Расчетные данные | E17: =(E18*0)+(E19*0)+(E20*1)+(E21*1) -> 0 | F17: =(F18*0)+(F19*0)+(F20*1)+(F21*1) -> 0 | G17: 0 | H17: =(H18*0)+(H19*0)+(H20*1)+(H21*1) -> 0 | I17: =(I18*0)+(I19*0)+(I20*1)+(I21*1) -> 0 | J17: 0
A18: 42 | B18: 4.2.1 | C18: Удельный расход условного топлива | D18: кг ут Гкал | G18: =F18 -> 0 | J18: =I18 -> 0
A19: 43 | B19: 4.2.2 | C19: Калорийный эквивалент | G19: =F19 -> 0 | J19: =I19 -> 0
A20: 44 | B20: 4.2.3 | C20: Объем | D20: тыс. м куб. | G20: =(E20*1)+(F20*1) -> 0 | J20: =(H20*1)+(I20*1) -> 0
A21: 291 | B21: 4.2.4 | C21: Цена | D21: руб./тыс. м3 | G21: =G16/G20*1000 ->  | J21: =J16/J20*1000 -> 
A22: 46 | B22: 4.4 | C22: Мазут | D22: тыс.руб. | G22: =(E22*1)+(F22*1) -> 0 | J22: =(H22*1)+(I22*1) -> 0
A23: 48 | B23: 4.6 | C23: Дизельное топливо | D23: тыс.руб. | E23: 0 | G23: 0 | H23: 0 | J23: 0
A24: 49 | B24: 4.7 | C24: Дрова | D24: тыс.руб. | E24: 0 | G24: 0 | H24: 0 | J24: 0
A25: 50 | B25: 4.8 | C25: Щепа | D25: тыс.руб. | E25: 0 | G25: 0 | H25: 0 | J25: 0
A26: 55 | B26: 4.13 | C26: Электроэнергия | D26: тыс.руб. | G26: 0 | H26: 0 | J26: 0
A27: 58 | B27: 4.13.1 | C27: объём энергии | D27: тыс.кВт*ч | G27: 0 | H27: 0 | J27: 0
A28: 40 | B28: 4.1 | C28: Уголь | D28: тыс.руб. | E28: 0 | G28: 0 | H28: 0 | J28: 0
A29: 333 | C29: Нормативный запас топлива | D29: т | E29: 0 | F29: 0 | G29: 0 | H29: 0 | I29: 0 | J29: 0
A30: 60 | B30: 5 | C30: Энергия, в том числе | D30: тыс.руб. | E30: =(E31*1)+(E34*1)+(E39*1) -> 0 | F30: =(F31*1)+(F34*1)+(F39*1) -> 0 | G30: 0 | H30: =(H31*1)+(H34*1)+(H39*1) -> 0 | I30: =(I31*1)+(I34*1)+(I39*1) -> 0 | J30: 0 | L30: - счета за потреблённую электроэнергию. - справка-расчёт отнесения объёмов электроэнергии на регулируемый вид деятельности (в случае осуществления ТСО иных видов деятельности)
A31: 61 | B31: 5.3.0. | C31: Затраты на покупную мощность | D31: тыс.руб. | E31: =(E32*1)*(E33*1) -> 0 | F31: =(F32*1)*(F33*1) -> 0 | G31: 0 | H31: =(H32*1)*(H33*1) -> 0 | I31: =(I32*1)*(I33*1) -> 0 | J31: 0
A32: 316 | B32: 5.3.1 | C32: Цена | D32: руб./кВт*мес. | G32: =F32 -> 0 | J32: =I32 -> 0
A33: 317 | B33: 5.3.2 | C33: Объем | D33: МВт | G33: =(E33*1)+(F33*1) -> 0 | J33: =(H33*1)+(I33*1) -> 0
A34: 289 | B34: 5.2.0 | C34: затраты на покупную электрическую энергию | D34: тыс.руб. | E34: =(E35*1)+(E36*0)+(E37*0)+(E38*0) -> 0 | F34: =(F35*1)+(F36*0)+(F37*0)+(F38*0) -> 0 | G34: =(E34*1)+(F34*1) -> 0 | H34: =(H35*1)+(H36*0)+(H37*0)+(H38*0) -> 0 | I34: =(I35*1)+(I36*0)+(I37*0)+(I38*0) -> 0 | J34: =(H34*1)+(I34*1) -> 0
A35: 314 | B35: 5.2 | C35: Затраты на покупную электрическую энергию | D35: тыс.руб. | E35: =E37*E38 -> 0 | F35: =F37*F38 -> 0 | G35: =(E35*1)+(F35*1) -> 0 | H35: =H37*H38 -> 0 | I35: =I37*I38 -> 0 | J35: =(H35*1)+(I35*1) -> 0
A36: 287 | B36: 5.2.1.1 | C36: Удельный расход электрической энергии | D36: кВт*ч/Гкал | G36: =F36+E36 -> 0 | J36: =I36+H36 -> 0
A37: 315 | B37: 5.2.1 | C37: Объем | D37: тыс.кВт*час | G37: =(E37*1)+(F37*1) -> 0 | J37: =(H37*1)+(I37*1) -> 0
A38: 92 | B38: 5.2.2 | C38: тариф на энергию | D38: руб./кВт*ч | G38: =G35/G37 ->  | J38: =J35/J37 -> 
A39: 62 | B39: 5.1.0 | C39: затраты на покупную тепловую энергию | D39: тыс.руб. | E39: =(E40*1)*(E41*1) -> 0 | F39: =(F40*1)*(F41*1) -> 0 | G39: =(E39*1)+(F39*1) -> 0 | H39: =(H40*1)*(H41*1) -> 0 | I39: =(I40*1)*(I41*1) -> 0 | J39: =(H39*1)+(I39*1) -> 0
A40: 284 | B40: 5.1.2 | C40: Тариф на тепловую энергию | D40: руб./Гкал | G40: =F40 -> 0 | J40: =I40 -> 0
A41: 286 | B41: 5.1.1 | C41: Объем | D41: тыс. Гкал | G41: =(E41*1)+(F41*1) -> 0 | J41: =(H41*1)+(I41*1) -> 0
A42: 168 | B42: 6 | C42: Затраты на оплату труда | D42: тыс.руб. | E42: =(E43*1)+(E47*1)+(E51*1)+(E55*1)+(E59*1) -> 0 | F42: =(F43*1)+(F47*1)+(F51*1)+(F55*1)+(F59*1) -> 0 | G42: =(E42*1)+(F42*1) -> 0 | H42: =(H43*1)+(H47*1)+(H51*1)+(H55*1)+(H59*1) -> 0 | I42: =(I43*1)+(I47*1)+(I51*1)+(I55*1)+(I59*1) -> 0 | J42: =(H42*1)+(I42*1) -> 0 | L42: - штатное расписание; - статистическая форма № П-4
A43: 174 | B43: 6.1 | C43: оплата труда основных производственных рабочих | D43: тыс.руб. | E43: =(E44*0.001)*(E45*1)*(E46*1) -> 0 | F43: =(F44*0.001)*(F45*1)*(F46*1) -> 0 | G43: =(E43*1)+(F43*1) -> 0 | H43: =(H44*0.001)*(H45*1)*(H46*1) -> 0 | I43: =(I44*0.001)*(I45*1)*(I46*1) -> 0 | J43: =(H43*1)+(I43*1) -> 0
A44: 175 | B44: 6.1.1 | C44: среднемесячная оплата труда основных производственных рабочих | D44: руб./мес. | G44: =G43/G46/G45*1000 ->  | J44: =J43/J46/J45*1000 -> 
A45: 176 | B45: 6.1.2 | C45: численность основного производственного персонала, относимого на регулируемый вид деятельности | D45: ед. | G45: =(E45+F45)/2 -> 0 | J45: =(H45+I45)/2 -> 0
A46: 275 | B46: 6.1.6 | C46: Количество месяцев | D46: мес. | E46: 6 | F46: 6 | G46: =(E46*1)+(F46*1) -> 12 | H46: 6 | I46: 6 | J46: =(H46*1)+(I46*1) -> 12
A47: 181 | B47: 6.2 | C47: оплата труда ремонтного персонала | D47: тыс.руб. | E47: =(E48*0.001)*(E49*1)*(E50*1) -> 0 | F47: =(F48*0.001)*(F49*1)*(F50*1) -> 0 | G47: =(E47*1)+(F47*1) -> 0 | H47: =(H48*0.001)*(H49*1)*(H50*1) -> 0 | I47: =(I48*0.001)*(I49*1)*(I50*1) -> 0 | J47: =(H47*1)+(I47*1) -> 0
A48: 182 | B48: 6.2.1 | C48: среднемесячная оплата труда ремонтного персонала | D48: руб./мес. | G48: =G47/G50/G49*1000 ->  | J48: =J47/J50/J49*1000 -> 
A49: 183 | B49: 6.2.2 | C49: численность ремонтного персонала, относимого на регулируемый вид деятельности | D49: ед. | G49: =(E49+F49)/2 -> 0 | J49: =(H49+I49)/2 -> 0
A50: 276 | B50: 6.2.6 | C50: Количество месяцев | E50: 6 | F50: 6 | G50: =(E50*1)+(F50*1) -> 12 | H50: 6 | I50: 6 | J50: =(H50*1)+(I50*1) -> 12
A51: 188 | B51: 6.3 | C51: оплата труда цехового персонала | D51: тыс.руб. | E51: =(E52*0.001)*(E53*1)*(E54*1) -> 0 | F51: =(F52*0.001)*(F53*1)*(F54*1) -> 0 | G51: =(E51*1)+(F51*1) -> 0 | H51: =(H52*0.001)*(H53*1)*(H54*1) -> 0 | I51: =(I52*0.001)*(I53*1)*(I54*1) -> 0 | J51: =(H51*1)+(I51*1) -> 0
A52: 189 | B52: 6.3.1 | C52: среднемесячная оплата труда цехового персонала | D52: руб./мес. | G52: =G51/G54/G53*1000 ->  | J52: =J51/J54/J53*1000 -> 
A53: 190 | B53: 6.3.2 | C53: численность цехового персонала, относимого на регулируемый вид деятельности | D53: ед. | G53: =(E53+F53)/2 -> 0 | J53: =(H53+I53)/2 -> 0
A54: 278 | B54: 6.0.6 | C54: Количесво месяцев | E54: 6 | F54: 6 | G54: =(E54*1)+(F54*1) -> 12 | H54: 6 | I54: 6 | J54: =(H54*1)+(I54*1) -> 12
A55: 192 | B55: 6.4 | C55: оплата труда АУП | D55: тыс.руб. | E55: =(E56*0.001)*(E57*1)*(E58*1) -> 0 | F55: =(F56*0.001)*(F57*1)*(F58*1) -> 0 | G55: =(E55*1)+(F55*1) -> 0 | H55: =(H56*0.001)*(H57*1)*(H58*1) -> 0 | I55: =(I56*0.001)*(I57*1)*(I58*1) -> 0 | J55: =(H55*1)+(I55*1) -> 0
A56: 193 | B56: 6.4.1 | C56: среднемесячная оплата труда АУП | D56: руб./мес. | G56: =G55/G58/G57*1000 ->  | J56: =J55/J58/J57*1000 -> 
A57: 194 | B57: 6.4.2 | C57: численность АУП, относимого на регулируемый вид деятельности | D57: ед. | G57: =(E57+F57)/2 -> 0 | J57: =(H57+I57)/2 -> 0
A58: 277 | B58: 6.4.3 | C58: Количество месяцев | E58: 6 | F58: 6 | G58: =(E58*1)+(F58*1) -> 12 | H58: 6 | I58: 6 | J58: =(H58*1)+(I58*1) -> 12
A59: 196 | B59: 6.5 | C59: оплата труда прочего персонала, относимого на регулируемый вид деятельности | D59: тыс.руб. | E59: =(E60*0.001)*(E61*1)*(E62*1) -> 0 | F59: =(F60*0.001)*(F61*1)*(F62*1) -> 0 | G59: =(E59*1)+(F59*1) -> 0 | H59: =(H60*0.001)*(H61*1)*(H62*1) -> 0 | I59: =(I60*0.001)*(I61*1)*(I62*1) -> 0 | J59: =(H59*1)+(I59*1) -> 0
A60: 197 | B60: 6.5.1 | C60: среднемесячная оплата труда прочего персонала, относимого на регулируемый вид деятельности | D60: руб./мес. | G60: =G59/G62/G61*1000 ->  | J60: =J59/J62/J61*1000 -> 
A61: 198 | B61: 6.5.2 | C61: численность прочего персонала, относимого на регулируемый вид деятельности | D61: ед. | G61: =(E61+F61)/2 -> 0 | J61: =(H61+I61)/2 -> 0
A62: 279 | B62: 6.5.3. | C62: Количество месяцев | E62: 6 | F62: 6 | G62: =(E62*1)+(F62*1) -> 12 | H62: 6 | I62: 6 | J62: =(H62*1)+(I62*1) -> 12
A63: 325 | B63: 7.9 | C63: Отчисления на социальные нужды | D63: тыс. руб. | E63: =(E64*1)+(E65*1)+(E66*1)+(E67*1)+(E68*1) -> 0 | F63: =(F64*1)+(F65*1)+(F66*1)+(F67*1)+(F68*1) -> 0 | G63: 0 | H63: =(H64*1)+(H65*1)+(H66*1)+(H67*1)+(H68*1) -> 0 | I63: =(I64*1)+(I65*1)+(I66*1)+(I67*1)+(I68*1) -> 0 | J63: 0
A64: 202 | B64: 7.1 | C64: отчисления на соц. нужды от заработной платы основных производственных рабочих | D64: тыс.руб. | E64: =E43*E151/100 -> 0 | F64: =F43*F151/100 -> 0 | G64: 0 | H64: =H43*H151/100 -> 0 | I64: =I43*I151/100 -> 0 | J64: 0
A65: 203 | B65: 7.2 | C65: отчисления на соц. нужды от заработной платы ремонтного персонала | D65: тыс.руб. | E65: =E47*E151/100 -> 0 | F65: =F47*F151/100 -> 0 | G65: 0 | H65: =H47*H151/100 -> 0 | I65: =I47*I151/100 -> 0 | J65: 0
A66: 204 | B66: 7.3 | C66: отчисления на соц. нужды от заработной платы цехового персонала | D66: тыс.руб. | E66: =E51*E151/100 -> 0 | F66: =F51*F151/100 -> 0 | G66: 0 | H66: =H51*H151/100 -> 0 | I66: =I51*I151/100 -> 0 | J66: 0
A67: 205 | B67: 7.4 | C67: отчисления на соц. нужды от заработной платы АУП | D67: тыс.руб. | E67: =E55*E151/100 -> 0 | F67: =F55*F151/100 -> 0 | G67: 0 | H67: =H55*H151/100 -> 0 | I67: =I55*I151/100 -> 0 | J67: 0
A68: 206 | B68: 7.5. | C68: отчисления на соц. нужды от заработной платы прочего персонала | D68: тыс.руб. | E68: =E59*E151/100 -> 0 | F68: =F59*F151/100 -> 0 | G68: 0 | H68: =H59*H151/100 -> 0 | I68: =I59*I151/100 -> 0 | J68: 0
A69: 207 | B69: 8.0. | C69: Холодная вода | D69: тыс.руб. | E69: =(E70*1)+(E71*0)+(E72*0)+(E73*0)+(E74*1)+(E75*0)+(E76*0)+(E77*0) -> 0 | F69: =(F70*1)+(F71*0)+(F72*0)+(F73*0)+(F74*1)+(F75*0)+(F76*0)+(F77*0) -> 0 | G69: 0 | H69: =(H70*1)+(H71*0)+(H72*0)+(H73*0)+(H74*1)+(H75*0)+(H76*0)+(H77*0) -> 0 | I69: =(I70*1)+(I71*0)+(I72*0)+(I73*0)+(I74*1)+(I75*0)+(I76*0)+(I77*0) -> 0 | J69: 0
A70: 312 | B70: 8 | C70: Холодная вода питьевая | D70: тыс.руб. | E70: =E72*E73 -> 0 | F70: =F72*F73 -> 0 | G70: 0 | H70: =H72*H73 -> 0 | I70: =I72*I73 -> 0 | J70: 0 | L70: - счета-фактуры на приобретение воды; - договор на питьевую воду; - акты выполненных работ
A71: 293 | B71: 8.1.3 | C71: Удельный расход питьевой воды | D71: м куб/Гкал | E71: 0 | F71: 0 | H71: 0 | I71: 0
A72: 208 | B72: 8.1.1 | C72: Цена питьевой воды | D72: руб./куб.м | G72: =G70/G73 ->  | J72: =J70/J73 -> 
A73: 209 | B73: 8.1.2 | C73: Объём питьевой воды | D73: тыс.куб.м | G73: =(E73*1)+(F73*1) -> 0 | J73: =(H73*1)+(I73*1) -> 0
A74: 327 | B74: 8.2. | C74: Холодная вода техническая | D74: тыс.руб. | E74: =E76*E77 -> 0 | F74: =F76*F77 -> 0 | G74: =(E74*1)+(F74*1) -> 0 | H74: =H76*H77 -> 0 | I74: =I76*I77 -> 0 | J74: =(H74*1)+(I74*1) -> 0 | L74: - счета-фактуры на приобретение воды; - договор на техническую воду; - акты выполненных работ
A75: 295 | B75: 8.2.3 | C75: Удельный расход технической воды | D75: тыс.руб. | E75: 0 | F75: 0 | H75: 0 | I75: 0
A76: 296 | B76: 8.2.1 | C76: Цена технической воды | D76: руб./куб. м | G76: =G74/G77 ->  | J76: =J74/J77 -> 
A77: 297 | B77: 8.2.2 | C77: Объем технической воды | D77: тыс. м куб. | G77: =(E77*1)+(F77*1) -> 0 | J77: =(H77*1)+(I77*1) -> 0
A78: 210 | C78: Водоотведение | D78: тыс.руб. | E78: =(E79*1)+(E80*0)+(E81*0) -> 0 | F78: =(F79*1)+(F80*0)+(F81*0) -> 0 | G78: =(E78*1)+(F78*1) -> 0 | H78: =(H79*1)+(H80*0)+(H81*0) -> 0 | I78: =(I79*1)+(I80*0)+(I81*0) -> 0 | J78: =(H78*1)+(I78*1) -> 0
A79: 318 | B79: 9 | C79: Водоотведение | D79: тыс.руб. | E79: =E80*E81 -> 0 | F79: =F80*F81 -> 0 | G79: =(E79*1)+(F79*1) -> 0 | H79: =H80*H81 -> 0 | I79: =I80*I81 -> 0 | J79: =(H79*1)+(I79*1) -> 0 | L79: - счета-фактуры на водоотведение; - договор на водоотведение; - акты выполненных работ
A80: 211 | B80: 9.1 | C80: Цена | D80: руб./куб.м | G80: =G78/G81 ->  | J80: =J78/J81 -> 
A81: 282 | B81: 9.2 | C81: Объём | D81: тыс.куб.м | G81: =(E81*1)+(F81*1) -> 0 | J81: =(H81*1)+(I81*1) -> 0
A82: 299 | B82: 9.2.1 | C82: Удельный расход стоков | D82: м куб./Гкал | E82: 0 | F82: 0 | H82: 0 | I82: 0
A83: 215 | B83: 12 | C83: Расходы на приобретение сырья и материалов | D83: тыс.руб. | E83: =(E84*1)+(E85*1)+(E86*1)+(E87*1)+(E88*1)+(E89*1)+(E90*1) -> 0 | F83: =(F84*1)+(F85*1)+(F86*1)+(F87*1)+(F88*1)+(F89*1)+(F90*1) -> 0 | G83: =(E83*1)+(F83*1) -> 0 | H83: =(H84*1)+(H85*1)+(H86*1)+(H87*1)+(H88*1)+(H89*1)+(H90*1) -> 0 | I83: =(I84*1)+(I85*1)+(I86*1)+(I87*1)+(I88*1)+(I89*1)+(I90*1) -> 0 | J83: =(H83*1)+(I83*1) -> 0
A84: 216 | B84: 12.1 | C84: Реагенты, фильтрующие и ионообменные материалы для водоподготовки | D84: тыс.руб. | G84: 0 | J84: 0 | L84: - реестр расходов на химреагенты (объёмы, цены, договоры поставки)
A85: 217 | B85: 12.2 | C85: ГСМ | D85: тыс.руб. | G85: 0 | J85: 0 | L85: - материальный отчёт по ГСМ (объём, цена, затраты)
A86: 218 | B86: 12.3 | C86: На текущий и капитальный ремонт | D86: тыс.руб. | G86: 0 | J86: 0 | L86: - бухгалтерский учёт сырья и материалов (по каждомуу полугодию, по каждому материально-ответственному лицу)
A87: 219 | B87: 12.4 | C87: На текущее содержание и техническое обслуживание | D87: тыс.руб. | G87: 0 | J87: 0 | L87: - бухгалтерский учёт сырья и материалов (по каждомуу полугодию, по каждому материально-ответственному лицу)
A88: 220 | B88: 12.5 | C88: Специальная одежда | D88: тыс.руб. | G88: 0 | J88: 0 | L88: - реестр расходов на спецодежду (количество, цены, обоснования)
A89: 221 | B89: 12.6 | C89: Хозяйственный инвентарь и другие вспомогательные материалы | D89: тыс.руб. | G89: 0 | J89: 0 | L89: - реестр расходов (количество, цены, обоснования)
A90: 222 | B90: 12.7 | C90: Прочие расходы | D90: тыс.руб. | G90: 0 | J90: 0
A91: 223 | B91: 13 | C91: Ремонт основных средств, выполняемый подрядным способом | D91: тыс.руб. | G91: 0 | J91: 0 | L91: - реестр выполненных работ (с указанием реквизитов договора); - договоры на выполнение ремонтных работ; - акты выполненных работ (форма КС-2); - платёжные документы; - подтверждение проведения конкурсных процедур
A92: 224 | B92: 14 | C92: Расходы на оплату работ и услуг производственного характера, выполняемых по договорам со сторонними организациями | D92: тыс.руб. | E92: =(E93*1)+(E94*1)+(E95*1)+(E96*1) -> 0 | F92: =(F93*1)+(F94*1)+(F95*1)+(F96*1) -> 0 | G92: =(E92*1)+(F92*1) -> 0 | H92: =(H93*1)+(H94*1)+(H95*1)+(H96*1) -> 0 | I92: =(I93*1)+(I94*1)+(I95*1)+(I96*1) -> 0 | J92: 0
A93: 225 | B93: 14.1 | C93: транспортные услуги | D93: тыс.руб. | G93: 0 | J93: 0 | L93: - реестр расходов (количество, цены, обоснования)
A94: 226 | B94: 14.2 | C94: работы по техническому регламенту | D94: тыс.руб. | G94: 0 | J94: 0 | L94: - реестр выполненных работ; - сопутствующие обоснования
A95: 227 | B95: 14.3 | C95: прочие услуги вспомогательных производств | D95: тыс.руб. | G95: 0 | J95: 0
A96: 228 | B96: 14.4 | C96: иные работы и услуги производственного характера | D96: тыс.руб. | G96: 0 | J96: 0
A97: 229 | B97: 15 | C97: Расходы на оплату иных работ и услуг, выполняемых по договорам с организациями, включая: | D97: тыс.руб. | E97: =(E98*1)+(E99*1)+(E100*1)+(E101*1)+(E102*1)+(E103*1)+(E104*1)+(E105*1)+(E106*1)+(E107*1)+(E108*1)+(E109*1) -> 0 | F97: =(F98*1)+(F99*1)+(F100*1)+(F101*1)+(F102*1)+(F103*1)+(F104*1)+(F105*1)+(F106*1)+(F107*1)+(F108*1)+(F109*1) -> 0 | G97: =(E97*1)+(F97*1) -> 0 | H97: =(H98*1)+(H99*1)+(H100*1)+(H101*1)+(H102*1)+(H103*1)+(H104*1)+(H105*1)+(H106*1)+(H107*1)+(H108*1)+(H109*1) -> 0 | I97: =(I98*1)+(I99*1)+(I100*1)+(I101*1)+(I102*1)+(I103*1)+(I104*1)+(I105*1)+(I106*1)+(I107*1)+(I108*1)+(I109*1) -> 0 | J97: 0 | L97: Ссылки на обоснование понесённых расходов прикреплять в соответствующую строку расходов (с обязательным реестром расходов)
A98: 232 | B98: 15.3 | C98: коммунальные услуги | D98: тыс.руб. | G98: 0 | J98: 0
A99: 236 | B99: 15.7 | C99: расходы на аудиторские услуги | D99: тыс.руб. | G99: 0 | J99: 0
A100: 241 | B100: 15.12 | C100: иные работы и услуги | D100: тыс.руб. | G100: 0 | J100: 0
A101: 230 | B101: 15.1 | C101: услуги связи | D101: тыс.руб. | G101: 0 | J101: 0
A102: 231 | B102: 15.2 | C102: услуги вневедомственной охраны | D102: тыс.руб. | G102: 0 | J102: 0
A103: 233 | B103: 15.4 | C103: расходы на консультационные услуги | D103: тыс.руб. | G103: 0 | J103: 0
A104: 234 | B104: 15.5 | C104: расходы на юридические услуги | D104: тыс.руб. | G104: 0 | J104: 0
A105: 235 | B105: 15.6 | C105: расходы на информационные услуги | D105: тыс.руб. | G105: 0 | J105: 0
A106: 237 | B106: 15.8 | C106: услуги по стратегическому управлению организацией | D106: тыс.руб. | G106: 0 | J106: 0
A107: 238 | B107: 15.9 | C107: расходы по подготовке и освоению производства (пуско-наладочные работы) | D107: тыс.руб. | G107: 0 | J107: 0
A108: 239 | B108: 15.10 | C108: целевые средства на НИОКР | D108: тыс.руб. | G108: 0 | J108: 0
A109: 240 | B109: 15.11 | C109: средства на необязательное (дополнительное) страхование | D109: тыс.руб. | G109: 0 | J109: 0
A110: 242 | B110: 16 | C110: Расходы на служебные командировки | D110: тыс.руб. | G110: 0 | J110: 0
A111: 243 | B111: 17 | C111: Расходы на обучение персонала | D111: тыс.руб. | G111: 0 | J111: 0
A112: 244 | B112: 18 | C112: Расходы на вывод из эксплуатации (в том числе на консервацию) и вывод из консервации | D112: тыс.руб. | G112: 0 | J112: 0
A113: 245 | B113: 19 | C113: Услуги банков | D113: тыс.руб. | G113: 0 | J113: 0
A114: 303 | B114: 20 | C114: Прочие операционные расходы | D114: тыс.руб. | G114: 0 | J114: 0
A115: 249 | B115: 21 | C115: Расходы на оплату услуг, оказываемых организациями, осуществляющими регулируемые виды деятельности | D115: тыс.руб. | G115: =(E115*1)+(F115*1) -> 0 | J115: 0
A116: 250 | B116: 22 | C116: Арендная плата | D116: тыс.руб. | E116: =(E117*1)+(E118*1) -> 0 | F116: =(F117*1)+(F118*1) -> 0 | G116: =(E116*1)+(F116*1) -> 0 | H116: =(H117*1)+(H118*1) -> 0 | I116: =(I117*1)+(I118*1) -> 0 | J116: =(H116*1)+(I116*1) -> 0 | L116: - реестр договоров аренды с указанием арендной платы; - платёжные документы, подтверждающие факт понесения расходов по арендной плате
A117: 251 | B117: 22.1 | C117: аренда производственных объектов | D117: тыс.руб. | G117: 0 | J117: 0
A118: 252 | B118: 22.2 | C118: аренда непроизводственных объектов | D118: тыс.руб. | G118: 0 | J118: 0
A119: 253 | B119: 23 | C119: Концессионная плата | D119: тыс.руб. | G119: 0 | J119: 0
A120: 258 | B120: 25 | C120: Расходы на уплату налогов, сборов и других обязательных платежей, в том числе: | D120: тыс.руб. | E120: =(E121*1)+(E122*1)+(E123*1)+(E124*1) -> 0 | F120: =(F121*1)+(F122*1)+(F123*1)+(F124*1) -> 0 | G120: 0 | H120: =(H121*1)+(H122*1)+(H123*1)+(H124*1) -> 0 | I120: =(I121*1)+(I122*1)+(I123*1)+(I124*1) -> 0 | J120: 0
A121: 259 | B121: 25.1 | C121: плата за выбросы и сбросы загрязняющих веществ в окружающую среду, размещение отходов и другие виды негативного воздействия на окружающую среду в пределах установленных нормативов и (или) лимитов | D121: тыс.руб. | G121: 0 | J121: 0
A122: 260 | B122: 25.2 | C122: расходы на обязательное страхование | D122: тыс.руб. | G122: 0 | J122: 0 | L122: - договоры на страхование; - платежные документы
A123: 261 | B123: 25.3 | C123: иные расходы | D123: тыс.руб. | G123: 0 | J123: 0
A124: 262 | B124: 25.4 | C124: уплата налогов, всего | D124: тыс.руб. | E124: =(E125*1)+(E126*1)+(E127*1)+(E128*1)+(E129*1) -> 0 | F124: =(F125*1)+(F126*1)+(F127*1)+(F128*1)+(F129*1) -> 0 | G124: 0 | H124: =(H125*1)+(H126*1)+(H127*1)+(H128*1)+(H129*1) -> 0 | I124: =(I125*1)+(I126*1)+(I127*1)+(I128*1)+(I129*1) -> 0 | J124: =(H124*1)+(I124*1) -> 0 | L124: - налоговые декларации; - расчёт отнесения расходов на регулируемый вид деятельности в сфере теплоснабжения; - платёжные документы
A125: 267 | B125: 25.4.5 | C125: прочие налоги | D125: тыс.руб. | G125: 0 | J125: 0
A126: 263 | B126: 25.4.1 | C126: налог на имущество организаций | D126: тыс.руб. | G126: 0 | J126: 0
A127: 264 | B127: 25.4.2 | C127: земельный налог | D127: тыс.руб. | G127: 0 | J127: 0
A128: 265 | B128: 25.4.3 | C128: транспортный налог | D128: тыс.руб. | G128: 0 | J128: 0
A129: 266 | B129: 25.4.4 | C129: водный налог | D129: тыс.руб. | G129: 0 | J129: 0
A130: 268 | B130: 26 | C130: Расходы по сомнительным долгам | D130: тыс.руб. | G130: 0 | J130: 0
A131: 269 | B131: 27 | C131: Амортизация основных средств и нематериальных активов | D131: тыс.руб. | E131: =(E132*1)+(E133*1) -> 0 | F131: =(F132*1)+(F133*1) -> 0 | G131: 0 | H131: =(H132*1)+(H133*1) -> 0 | I131: =(I132*1)+(I133*1) -> 0 | J131: 0 | L131: - Ведомость основных производственных средств с указанием первоначальной и остаточной балансовой стоимости основных фондов, даты ввода, а также амортизационных отчислений за отчётный период (котельные и тепловые сети)
A132: 271 | B132: 27.2 | C132: Амортизация иных основных средств и нематериальных активов | D132: тыс.руб. | G132: 0 | J132: 0
A133: 270 | B133: 27.1 | C133: Амортизация производственного оборудования | D133: тыс.руб. | G133: 0 | J133: 0 | L133: - отчёт об использования амортизационных отчислений
A134: 272 | B134: 28 | C134: Расходы на выплаты по договорам займа и кредитным договорам, включая проценты по ним | D134: тыс.руб. | G134: =(E134*1)+(F134*1) -> 0 | J134: =(H134*1)+(I134*1) -> 0
A135: 273 | B135: 29 | C135: Прочие неподконтрольные расходы | D135: тыс.руб. | G135: =(E135*1)+(F135*1) -> 0 | J135: =(H135*1)+(I135*1) -> 0
A136: 13 | B136: 32 | C136: выпадающие доходы/экономия средств | D136: тыс.руб. | G136: =(E136*1)+(F136*1) -> 0 | J136: =(H136*1)+(I136*1) -> 0
A137: 16 | B137: 33 | C137: Избыток средств, полученный за отчётные периоды регулирования | D137: тыс.руб. | G137: =(E137*1)+(F137*1) -> 0 | J137: 0
A138: 20 | B138: 35 | C138: Прибыль | D138: тыс.руб. | E138: =E139+E141 -> 0 | F138: =F139+F141 -> 0 | G138: =G7-G8 -> 0 | H138: =H139+H141 -> 0 | I138: =I139+I141 -> 0 | J138: =J7-J8 -> 0
A139: 330 | C139: нормативный уровень прибыли (нерасчетный) | E139: =(E140*1) -> 0 | F139: =(F140*1) -> 0 | G139: 0 | H139: =(H140*1) -> 0 | I139: =(I140*1) -> 0 | J139: 0
A140: 22 | B140: 35.1 | C140: Нормативный уровень прибыли | D140: тыс.руб. | E140: =E143 -> 0 | F140: =F143 -> 0 | G140: 0 | H140: =H143 -> 0 | I140: =I143 -> 0 | J140: 0
A141: 331 | C141: Предпринимательская прибыль | E141: =(E142*1) -> 0 | F141: =(F142*1) -> 0 | G141: 0 | H141: =(H142*1) -> 0 | I141: =(I142*1) -> 0 | J141: 0
A142: 24 | B142: 35.1.1 | C142: Расчётная предпринимательская прибыль | D142: тыс.руб. | E142: 0 | F142: 0 | G142: 0 | H142: 0 | I142: 0 | J142: 0
A143: 339 | C143: Прибыль составляющие | D143: тыс. руб. | E143: =E144+E145+E146 -> 0 | F143: =F144+F145+F146 -> 0 | G143: 0 | H143: =H144+H145+H146 -> 0 | I143: =I144+I145+I146 -> 0 | J143: 0
A144: 27 | B144: 35.2 | C144: Денежные выплаты социального характера (по коллективному договору) | D144: тыс.руб. | G144: 0 | J144: 0
A145: 28 | B145: 35.3 | C145: Резервный фонд | D145: тыс.руб. | G145: 0 | J145: 0
A146: 300 | B146: 35.4 | C146: Капитальные вложения (инвестиции) | D146: тыс.руб. | G146: 0 | J146: 0
A147: 283 | B147: 36 | C147: Справочные данные | E147: =(E148*0)+(E149*0)+(E150*1)+(E151*1)+(E152*1)+(E153*1)+(E154*1)+(E155*1) -> 0 | F147: =(F148*0)+(F149*0)+(F150*1)+(F151*1)+(F152*1)+(F153*1)+(F154*1)+(F155*1) -> 0 | G147: =(E147*1)+(F147*1) -> 0 | H147: =(H148*0)+(H149*0)+(H150*1)+(H151*1)+(H152*1)+(H153*1)+(H154*1)+(H155*1) -> 0 | I147: =(I148*0)+(I149*0)+(I150*1)+(I151*1)+(I152*1)+(I153*1)+(I154*1)+(I155*1) -> 0 | J147: =(H147*1)+(I147*1) -> 0
A148: 21 | B148: 36.1 | C148: Ставка налога на прибыль | D148: % | E148: 0 | F148: 0 | G148: 0 | H148: 0 | I148: 0 | J148: 0
A149: 23 | B149: 36.2 | C149: Справочно: нормативный уровень прибыли | D149: % | E149: 0 | F149: 0 | G149: 0 | H149: 0 | I149: 0 | J149: 0
A150: 25 | B150: 36.3 | C150: Справочно: расчётная предпринимательская прибыль | D150: % | E150: 0 | G150: 0 | H150: 0 | I150: 0 | J150: 0
A151: 201 | B151: 7.0 | C151: процент отчислений на социальные нужды | D151: % | G151: 0 | J151: 0
A152: 304 | B152: 35.5 | C152: Индекс эффективности расходов | D152: % | G152: 0 | J152: 0
A153: 305 | B153: 35.6 | C153: Индекс потребительских цен | D153: % | G153: 0 | J153: 0
A154: 306 | B154: 35.7 | C154: Индекс количества активов | D154: % | G154: 0 | J154: 0
A155: 336 | C155: Справочно налог по упрощённой системе налогообложения | D155: % | G155: 0 | J155: 0
A156: 308 | C156: Загрузка: | G156: 0 | J156: 0
A157: 324 | B157: 42 | C157: полезный отпуск теплоэнергии | D157: тыс.Гкал | G157: =(E157*1)+(F157*1) -> 0 | J157: 0 | L157: НЕОБХОДИМО ТАКЖЕ ЗАПОЛНИТЬ
A158: 319 | B158: 37 | C158: Утвержденный тариф | D158: руб./Гкал | G158: =(E158*1)+(F158*1) -> 0 | J158: 0
B160: НР | C160: Неподконтрольные | E160: =(E136*1)+(E135*1)+(E134*1)+(E131*1)+(E130*1)+(E129*1)+(E128*1)+(E127*1)+(E126*1)+(E125*1)+(E123*1)+(E122*1)+(E121*1)+(E119*1)+(E117*1)+(E115*1)+(E68*1)+(E67*1)+(E66*1)+(E65*1)+(E64*1)+(E11*1)+(E10*1) -> 0 | F160: 0 | G160: 0 | H160: 0 | I160: 0 | J160: 0
B161: ОР | C161: Операционные | E161: =(E118*1)+(E114*1)+(E113*1)+(E112*1)+(E111*1)+(E110*1)+(E97*1)+(E92*1)+(E91*1)+(E83*1)+(E59*1)+(E55*1)+(E51*1)+(E47*1)+(E43*1) -> 0 | F161: 0 | G161: 0 | H161: =(H118*1)+(H114*1)+(H113*1)+(H112*1)+(H111*1)+(H110*1)+(H97*1)+(H92*1)+(H91*1)+(H83*1)+(H59*1)+(H55*1)+(H51*1)+(H47*1)+(H43*1) -> 0 | I161: 0 | J161: 0
B162: ЭР | C162: Энергоресурсы | E162: =(E78*1)+(E74*1)+(E70*1)+(E30*1)+(E28*1)+(E26*1)+(E25*1)+(E24*1)+(E23*1)+(E22*1)+(E16*1) -> 0 | F162: 0 | G162: 0 | H162: 0 | I162: 0 | J162: 0
B163: П | C163: Прибыль | E163: =(E138*1) -> 0 | F163: 0 | G163: =(G138*1) -> 0
B166: Обязательно проставьте Утвержденные тарифы и фактический полезный отпуск тепловой энергии по полугодиям
C169: При большом количестве обосновывающих материалов перед загрузкой в хранилище их необходимо преобразовать в архив

Sheet Смета № 2
B3: № | C3: Статья расхода | D3: Ед.Изм. | E3: Фактические расходы 2021 года | S3: Ссылка на поддтверждающие документы* | T3: Примечание
E4: в отношении источников, учтенных при установлении тарифов на тепловую энергию на 2021 год | L4: в том числе в отношении источников, отпускающих тепловую энергию по ценам, определенным соглашением сторон
E5: 1 полугодие 2021 | H5: 2 полугодие 2021 | K5: Итого 2021 год | L5: 1 полугодие 2021 | O5: 2 полугодие 2021 | R5: Итого 2021 год | U5: *Ссылки на обоснование понесённых расходов прикреплять в соответствующую строку расходов
E6: Передача | F6: Производство | G6: Всего | H6: Передача | I6: Производство | J6: Всего | L6: Передача | M6: Производство | N6: Всего | O6: Передача | P6: Производство | Q6: Всего
A7: 1 | C7: Теплоэнергия | D7: руб/Гкал | E7: =(E8*1)+(E148*0)+(E157*1) -> 0 | F7: =(F8*1)+(F148*0)+(F157*1) -> 0 | G7: =(E7*1)+(F7*1) -> 0 | H7: =(H8*1)+(H148*0)+(H157*1) -> 0 | I7: =(I8*1)+(I148*0)+(I157*1) -> 0 | J7: =(H7*1)+(I7*1) -> 0 | K7: =(G7*1)+(J7*1) -> 0
A8: 3 | B8: 36 | C8: НВВ | G8: =F158*F159 -> 0 | J8: =I158*I159 -> 0 | K8: 0
A9: 302 | B9: 31 | C9: Итого расходов | D9: тыс. руб. | E9: =(E14*1)+E11+E13+E144 -> 0 | F9: =(F14*1)+F11+F13+F144 -> 0 | G9: 0 | H9: =(H14*1)+H11+H13+H144 -> 0 | I9: =(I14*1)+I11+I13+I144 -> 0 | J9: 0 | K9: 0 | L9: =(L14*1)+L11+L13+L144 -> 0 | M9: =(M14*1)+M11+M13+M144 -> 0 | N9: =(L9*1)+(M9*1) -> 0 | O9: =(O14*1)+O11+O13+O144 -> 0 | P9: =(P14*1)+P11+P13+P144 -> 0 | Q9: =(O9*1)+(P9*1) -> 0 | R9: =(N9*1)+(Q9*1) -> 0
A10: 332 | C10: Налог на прибыль (нерассчетная) | E10: =(E11*1) -> 0 | F10: =(F11*1) -> 0 | G10: 0 | H10: =(H11*1) -> 0 | I10: =(I11*1) -> 0 | J10: 0 | K10: 0 | N10: 0
A11: 274 | B11: 30 | C11: Налог на прибыль | D11: тыс.руб. | G11: 0 | J11: 0 | K11: 0 | N11: 0 | Q11: =(O11*1)+(P11*1) -> 0 | R11: =(N11*1)+(Q11*1) -> 0
A12: 334 | C12: Налог по упрощённой системе налогообложения | D12: тыс. руб. | E12: =(E13*1) -> 0 | F12: =(F13*1) -> 0 | G12: 0 | H12: =(H13*1) -> 0 | I12: =(I13*1) -> 0 | J12: 0 | K12: 0 | N12: 0 | T12: - налоговая декларация
A13: 335 | C13: Налог по упрощённой системе налогообложения | D13: тыс.руб. | E13: 0 | F13: 0 | G13: 0 | H13: 0 | I13: 0 | J13: 0 | K13: =(G13*1)+(J13*1) -> 0 | N13: 0
A14: 6 | B14: 31.1 | C14: Итого расходов (без налога на прибыль) | D14: тыс. руб. | E14: =(E15*1)+(E31*1)+(E43*1)+(E64*1)+(E70*1)+(E79*1)+(E83*0)+(E84*1)+(E92*1)+(E93*1)+(E98*1)+(E111*1)+(E112*1)+(E113*1)+(E114*1)+(E115*1)+(E116*1)+(E117*1)+(E120*1)+(E121*1)+(E131*1)+(E132*1)+(E135*1)+(E136*1)+(E137*1)-E138 -> 0 | F14: =(F15*1)+(F31*1)+(F43*1)+(F64*1)+(F70*1)+(F79*1)+(F83*0)+(F84*1)+(F92*1)+(F93*1)+(F98*1)+(F111*1)+(F112*1)+(F113*1)+(F114*1)+(F115*1)+(F116*1)+(F117*1)+(F120*1)+(F121*1)+(F131*1)+(F132*1)+(F135*1)+(F136*1)+(F137*1)-F138 -> 0 | G14: 0 | H14: =(H15*1)+(H31*1)+(H43*1)+(H64*1)+(H70*1)+(H79*1)+(H83*0)+(H84*1)+(H92*1)+(H93*1)+(H98*1)+(H111*1)+(H112*1)+(H113*1)+(H114*1)+(H115*1)+(H116*1)+(H117*1)+(H120*1)+(H121*1)+(H131*1)+(H132*1)+(H135*1)+(H136*1)+(H137*1)-H138 -> 0 | I14: =(I15*1)+(I31*1)+(I43*1)+(I64*1)+(I70*1)+(I79*1)+(I83*0)+(I84*1)+(I92*1)+(I93*1)+(I98*1)+(I111*1)+(I112*1)+(I113*1)+(I114*1)+(I115*1)+(I116*1)+(I117*1)+(I120*1)+(I121*1)+(I131*1)+(I132*1)+(I135*1)+(I136*1)+(I137*1)-I138 -> 0 | J14: 0 | K14: 0 | L14: =(L15*1)+(L31*1)+(L43*1)+(L64*1)+(L70*1)+(L79*1)+(L83*0)+(L84*1)+(L92*1)+(L93*1)+(L98*1)+(L111*1)+(L112*1)+(L113*1)+(L114*1)+(L115*1)+(L116*1)+(L117*1)+(L120*1)+(L121*1)+(L131*1)+(L132*1)+(L135*1)+(L136*1)+(L137*1)-L138 -> 0 | M14: =(M15*1)+(M31*1)+(M43*1)+(M64*1)+(M70*1)+(M79*1)+(M83*0)+(M84*1)+(M92*1)+(M93*1)+(M98*1)+(M111*1)+(M112*1)+(M113*1)+(M114*1)+(M115*1)+(M116*1)+(M117*1)+(M120*1)+(M121*1)+(M131*1)+(M132*1)+(M135*1)+(M136*1)+(M137*1)-M138 -> 0 | N14: 0 | O14: =(O15*1)+(O31*1)+(O43*1)+(O64*1)+(O70*1)+(O79*1)+(O83*0)+(O84*1)+(O92*1)+(O93*1)+(O98*1)+(O111*1)+(O112*1)+(O113*1)+(O114*1)+(O115*1)+(O116*1)+(O117*1)+(O120*1)+(O121*1)+(O131*1)+(O132*1)+(O135*1)+(O136*1)+(O137*1)-O138 -> 0 | P14: =(P15*1)+(P31*1)+(P43*1)+(P64*1)+(P70*1)+(P79*1)+(P83*0)+(P84*1)+(P92*1)+(P93*1)+(P98*1)+(P111*1)+(P112*1)+(P113*1)+(P114*1)+(P115*1)+(P116*1)+(P117*1)+(P120*1)+(P121*1)+(P131*1)+(P132*1)+(P135*1)+(P136*1)+(P137*1)-P138 -> 0 | Q14: =(O14*1)+(P14*1) -> 0 | R14: =(N14*1)+(Q14*1) -> 0
A15: 39 | B15: 4 | C15: Стоимость натурального топлива с учётом транспортировки (перевозки) (топливо на технологические цели) | D15: тыс.руб. | E15: =(E16*1)+(E23*1)+(E24*1)+(E25*1)+(E26*1)+(E27*1)+(E28*0)+(E29*1)+(E30*0) -> 0 | F15: =(F16*1)+(F23*1)+(F24*1)+(F25*1)+(F26*1)+(F27*1)+(F28*0)+(F29*1)+(F30*0) -> 0 | G15: 0 | H15: =(H16*1)+(H23*1)+(H24*1)+(H25*1)+(H26*1)+(H27*1)+(H28*0)+(H29*1)+(H30*0) -> 0 | I15: =(I16*1)+(I23*1)+(I24*1)+(I25*1)+(I26*1)+(I27*1)+(I28*0)+(I29*1)+(I30*0) -> 0 | J15: 0 | K15: 0 | L15: =(L16*1)+(L23*1)+(L24*1)+(L25*1)+(L26*1)+(L27*1)+(L28*0)+(L29*1)+(L30*0) -> 0 | M15: =(M16*1)+(M23*1)+(M24*1)+(M25*1)+(M26*1)+(M27*1)+(M28*0)+(M29*1)+(M30*0) -> 0 | N15: 0 | O15: =(O16*1)+(O23*1)+(O24*1)+(O25*1)+(O26*1)+(O27*1)+(O28*0)+(O29*1)+(O30*0) -> 0 | P15: =(P16*1)+(P23*1)+(P24*1)+(P25*1)+(P26*1)+(P27*1)+(P28*0)+(P29*1)+(P30*0) -> 0 | Q15: 0 | R15: 0 | T15: - счета-фактуры; - товарные накладные на поставку газа; - акты выполненных работ на транспортировку газа
A16: 41 | C16: Газ | D16: тыс.руб. | E16: =(E17*1)+(E18*0) -> 0 | F16: =(F17*1)+(F18*0) -> 0 | G16: 0 | H16: =(H17*1)+(H18*0) -> 0 | I16: =(I17*1)+(I18*0) -> 0 | J16: 0 | K16: 0 | L16: =(L17*1)+(L18*0) -> 0 | M16: =(M17*1)+(M18*0) -> 0 | N16: 0 | O16: =(O17*1)+(O18*0) -> 0 | P16: =(P17*1)+(P18*0) -> 0 | Q16: 0 | R16: 0
A17: 45 | B17: 4.2 | C17: Газ природный | D17: тыс.руб. | E17: =E22*E21 -> 0 | F17: =F21*F22/1000 -> 0 | G17: 0 | H17: =H22*H21 -> 0 | I17: =I21*I22/1000 -> 0 | J17: 0 | K17: 0 | L17: =L22*L21 -> 0 | M17: =M21*M22/1000 -> 0 | N17: 0 | O17: =O22*O21 -> 0 | P17: =P21*P22/1000 -> 0 | Q17: 0 | R17: 0
A18: 328 | B18: 4.30 | C18: Расчетные данные | E18: =(E19*0)+(E20*0)+(E21*1)+(E22*1) -> 0 | F18: =(F19*0)+(F20*0)+(F21*1)+(F22*1) -> 0 | G18: 0 | H18: =(H19*0)+(H20*0)+(H21*1)+(H22*1) -> 0 | I18: =(I19*0)+(I20*0)+(I21*1)+(I22*1) -> 0 | J18: 0 | K18: 0 | L18: =(L19*0)+(L20*0)+(L21*1)+(L22*1) -> 0 | M18: =(M19*0)+(M20*0)+(M21*1)+(M22*1) -> 0 | N18: 0 | O18: =(O19*0)+(O20*0)+(O21*1)+(O22*1) -> 0 | P18: =(P19*0)+(P20*0)+(P21*1)+(P22*1) -> 0 | Q18: 0 | R18: 0
A19: 42 | B19: 4.2.1 | C19: Удельный расход условного топлива | D19: кг ут Гкал | G19: 0 | J19: 0 | K19: =(G19+J19)/2 -> 0 | N19: 0 | Q19: 0 | R19: =(N19+Q19)/2 -> 0
A20: 43 | B20: 4.2.2 | C20: Калорийный эквивалент | G20: 0 | J20: 0 | K20: =(G20+J20)/2 -> 0 | N20: 0 | Q20: 0 | R20: =(N20+Q20)/2 -> 0
A21: 44 | B21: 4.2.3 | C21: Объем | D21: тыс. м куб. | G21: =F21 -> 0 | J21: 0 | K21: 0 | N21: 0 | Q21: 0 | R21: =(N21*1)+(Q21*1) -> 0
A22: 291 | B22: 4.2.4 | C22: Цена | D22: руб./тыс. м3 | G22: =F22 -> 0 | J22: =I22 -> 0 | K22: =K17/K21*1000 ->  | N22: 0 | Q22: 0 | R22: =R17/R21*1000 -> 
A23: 46 | B23: 4.4 | C23: Мазут | D23: тыс.руб. | G23: 0 | J23: 0 | K23: 0 | N23: 0 | Q23: 0 | R23: =(N23*1)+(Q23*1) -> 0
A24: 48 | B24: 4.6 | C24: Дизельное топливо | D24: тыс.руб. | E24: 0 | F24: 0 | G24: 0 | H24: 0 | I24: 0 | J24: 0 | K24: 0 | N24: 0 | Q24: =(O24*1)+(P24*1) -> 0 | R24: =(N24*1)+(Q24*1) -> 0
A25: 49 | B25: 4.7 | C25: Дрова | D25: тыс.руб. | E25: 0 | F25: 0 | G25: 0 | H25: 0 | I25: 0 | J25: 0 | K25: 0 | N25: 0 | Q25: 0 | R25: 0
A26: 50 | B26: 4.8 | C26: Щепа | D26: тыс.руб. | E26: 0 | F26: 0 | G26: 0 | H26: 0 | I26: 0 | J26: 0 | K26: 0 | N26: 0 | Q26: 0 | R26: 0
A27: 55 | B27: 4.13 | C27: Электроэнергия | D27: тыс.руб. | E27: 0 | F27: 0 | G27: 0 | H27: 0 | I27: 0 | J27: 0 | K27: 0 | N27: 0 | Q27: 0 | R27: 0
A28: 58 | B28: 4.13.1 | C28: объём энергии | D28: тыс.кВт*ч | E28: 0 | F28: 0 | G28: 0 | H28: 0 | I28: 0 | J28: 0 | K28: 0 | N28: 0 | Q28: 0 | R28: 0
A29: 40 | B29: 4.1 | C29: Уголь | D29: тыс.руб. | E29: 0 | F29: 0 | G29: 0 | H29: 0 | I29: 0 | J29: 0 | K29: 0 | N29: 0 | Q29: 0 | R29: 0
A30: 333 | C30: Нормативный запас топлива | D30: т | E30: 0 | F30: 0 | G30: 0 | H30: 0 | I30: 0 | J30: 0 | K30: 0 | N30: 0 | Q30: 0 | R30: 0
A31: 60 | B31: 5 | C31: Энергия, в том числе | D31: тыс.руб. | E31: =(E32*1)+(E35*1)+(E40*1) -> 0 | F31: =(F32*1)+(F35*1)+(F40*1) -> 0 | G31: 0 | H31: =(H32*1)+(H35*1)+(H40*1) -> 0 | I31: =(I32*1)+(I35*1)+(I40*1) -> 0 | J31: 0 | K31: 0 | L31: =(L32*1)+(L35*1)+(L40*1) -> 0 | M31: =(M32*1)+(M35*1)+(M40*1) -> 0 | N31: 0 | O31: =(O32*1)+(O35*1)+(O40*1) -> 0 | P31: =(P32*1)+(P35*1)+(P40*1) -> 0 | Q31: 0 | R31: 0 | T31: - счета за потреблённую электроэнергию. - справка-расчёт отнесения объёмов электроэнергии на регулируемый вид деятельности (в случае осуществления ТСО иных видов деятельности)
A32: 61 | B32: 5.3.0. | C32: Затраты на покупную мощность | D32: тыс.руб. | E32: =(E33*1)*(E34*1) -> 0 | F32: =(F33*1)*(F34*1) -> 0 | G32: =(E32*1)+(F32*1) -> 0 | H32: =(H33*1)*(H34*1) -> 0 | I32: =(I33*1)*(I34*1) -> 0 | J32: =(H32*1)+(I32*1) -> 0 | K32: =(G32*1)+(J32*1) -> 0 | L32: =(L33*1)*(L34*1) -> 0 | M32: =(M33*1)*(M34*1) -> 0 | N32: =(L32*1)+(M32*1) -> 0 | O32: =(O33*1)*(O34*1) -> 0 | P32: =(P33*1)*(P34*1) -> 0 | Q32: =(O32*1)+(P32*1) -> 0 | R32: =(N32*1)+(Q32*1) -> 0
A33: 316 | B33: 5.3.1 | C33: Цена | D33: руб./кВт*мес. | G33: =G32/G34 ->  | J33: =J32/J34 ->  | K33: =K32/K34 ->  | N33: =N32/N34 ->  | Q33: =Q32/Q34 ->  | R33: =R32/R34 -> 
A34: 317 | B34: 5.3.2 | C34: Объем | D34: МВт | G34: =(E34*1)+(F34*1) -> 0 | J34: =(H34*1)+(I34*1) -> 0 | K34: =(G34*1)+(J34*1) -> 0 | N34: =(L34*1)+(M34*1) -> 0 | Q34: =(O34*1)+(P34*1) -> 0 | R34: =(N34*1)+(Q34*1) -> 0
A35: 289 | B35: 5.2.0 | C35: затраты на покупную электрическую энергию | D35: тыс.руб. | E35: =(E36*1)+(E37*0)+(E38*0)+(E39*0) -> 0 | F35: =(F36*1)+(F37*0)+(F38*0)+(F39*0) -> 0 | G35: 0 | H35: =(H36*1)+(H37*0)+(H38*0)+(H39*0) -> 0 | I35: =(I36*1)+(I37*0)+(I38*0)+(I39*0) -> 0 | J35: 0 | K35: =(G35*1)+(J35*1) -> 0 | N35: 0 | Q35: 0 | R35: =(N35*1)+(Q35*1) -> 0
A36: 314 | B36: 5.2 | C36: Затраты на покупную электрическую энергию | D36: тыс.руб. | E36: =E38*E39 -> 0 | F36: =F38*F39 -> 0 | G36: 0 | H36: =H38*H39 -> 0 | I36: =I38*I39 -> 0 | J36: 0 | K36: =(G36*1)+(J36*1) -> 0 | N36: 0 | Q36: 0 | R36: =(N36*1)+(Q36*1) -> 0
A37: 287 | B37: 5.2.1.1 | C37: Удельный расход электрической энергии | D37: кВт*ч/Гкал | E37: 0 | F37: 0 | H37: 0 | I37: 0
A38: 315 | B38: 5.2.1 | C38: Объем | D38: тыс.кВт*час | G38: 0 | J38: 0 | K38: =(G38*1)+(J38*1) -> 0 | N38: 0 | Q38: =(O38*1)+(P38*1) -> 0 | R38: =(N38*1)+(Q38*1) -> 0
A39: 92 | B39: 5.2.2 | C39: тариф на энергию | D39: руб./кВт*ч | G39: =G36/G38 ->  | J39: =J36/J38 ->  | K39: =K36/K38 ->  | N39: =N36/N38 ->  | Q39: =Q36/Q38 ->  | R39: =R36/R38 -> 
A40: 62 | B40: 5.1.0 | C40: затраты на покупную тепловую энергию | D40: тыс.руб. | E40: =(E41*1)*(E42*1) -> 0 | F40: =(F41*1)*(F42*1) -> 0 | G40: =(E40*1)+(F40*1) -> 0 | H40: =(H41*1)*(H42*1) -> 0 | I40: =(I41*1)*(I42*1) -> 0 | J40: =(H40*1)+(I40*1) -> 0 | K40: =(G40*1)+(J40*1) -> 0 | L40: =(L41*1)*(L42*1) -> 0 | M40: =(M41*1)*(M42*1) -> 0 | N40: =(L40*1)+(M40*1) -> 0 | O40: =(O41*1)*(O42*1) -> 0 | P40: =(P41*1)*(P42*1) -> 0 | Q40: =(O40*1)+(P40*1) -> 0 | R40: =(N40*1)+(Q40*1) -> 0
A41: 284 | B41: 5.1.2 | C41: Тариф на тепловую энергию | D41: руб./Гкал | G41: =G40/G42 ->  | J41: =J40/J42 ->  | K41: =K40/K42 ->  | N41: =N40/N42 ->  | Q41: =Q40/Q42 ->  | R41: =R40/R42 -> 
A42: 286 | B42: 5.1.1 | C42: Объем | D42: тыс. Гкал | G42: =(E42*1)+(F42*1) -> 0 | J42: =(H42*1)+(I42*1) -> 0 | K42: =(G42*1)+(J42*1) -> 0 | N42: =(L42*1)+(M42*1) -> 0 | Q42: =(O42*1)+(P42*1) -> 0 | R42: =(N42*1)+(Q42*1) -> 0
A43: 168 | B43: 6 | C43: Затраты на оплату труда | D43: тыс.руб. | E43: =(E44*1)+(E48*1)+(E52*1)+(E56*1)+(E60*1) -> 0 | F43: =(F44*1)+(F48*1)+(F52*1)+(F56*1)+(F60*1) -> 0 | G43: =(E43*1)+(F43*1) -> 0 | H43: =(H44*1)+(H48*1)+(H52*1)+(H56*1)+(H60*1) -> 0 | I43: =(I44*1)+(I48*1)+(I52*1)+(I56*1)+(I60*1) -> 0 | J43: =(H43*1)+(I43*1) -> 0 | K43: =(G43*1)+(J43*1) -> 0 | L43: =(L44*1)+(L48*1)+(L52*1)+(L56*1)+(L60*1) -> 0 | M43: =(M44*1)+(M48*1)+(M52*1)+(M56*1)+(M60*1) -> 0 | N43: =(L43*1)+(M43*1) -> 0 | O43: =(O44*1)+(O48*1)+(O52*1)+(O56*1)+(O60*1) -> 0 | P43: =(P44*1)+(P48*1)+(P52*1)+(P56*1)+(P60*1) -> 0 | Q43: =(O43*1)+(P43*1) -> 0 | R43: =(N43*1)+(Q43*1) -> 0 | T43: - штатное расписание; - статистическая форма № П-4
A44: 174 | B44: 6.1 | C44: оплата труда основных производственных рабочих | D44: тыс.руб. | E44: =(E45*0.001)*(E46*1)*(E47*1) -> 0 | F44: =(F45*0.001)*(F46*1)*(F47*1) -> 0 | G44: =(E44*1)+(F44*1) -> 0 | H44: =(H45*0.001)*(H46*1)*(H47*1) -> 0 | I44: =(I45*0.001)*(I46*1)*(I47*1) -> 0 | J44: =(H44*1)+(I44*1) -> 0 | K44: =(G44*1)+(J44*1) -> 0 | L44: =(L45*0.001)*(L46*1)*(L47*1) -> 0 | M44: =(M45*0.001)*(M46*1)*(M47*1) -> 0 | N44: =(L44*1)+(M44*1) -> 0 | O44: =(O45*0.001)*(O46*1)*(O47*1) -> 0 | P44: =(P45*0.001)*(P46*1)*(P47*1) -> 0 | Q44: =(O44*1)+(P44*1) -> 0 | R44: =(N44*1)+(Q44*1) -> 0
A45: 175 | B45: 6.1.1 | C45: среднемесячная оплата труда основных производственных рабочих | D45: руб./мес. | G45: =G44/G47/G46*1000 ->  | J45: =J44/J47/J46*1000 ->  | K45: =K44/K47/K46*1000 ->  | N45: =N44/N47/N46*1000 ->  | Q45: =Q44/Q47/Q46*1000 ->  | R45: =R44/R47/R46*1000 -> 
A46: 176 | B46: 6.1.2 | C46: численность основного производственного персонала, относимого на регулируемый вид деятельности | D46: ед. | G46: =(E46*1)+(F46*1) -> 0 | J46: =(H46*1)+(I46*1) -> 0 | K46: =(G46+J46)/2 -> 0 | N46: =(L46*1)+(M46*1) -> 0 | Q46: =(O46*1)+(P46*1) -> 0 | R46: =(N46+Q46)/2 -> 0
A47: 275 | B47: 6.1.6 | C47: Количество месяцев | D47: мес. | E47: 6 | F47: 6 | G47: 6 | H47: 6 | I47: 6 | J47: 6 | K47: =(G47*1)+(J47*1) -> 12 | L47: 6 | M47: 6 | N47: 6 | O47: 6 | P47: 6 | Q47: 6 | R47: =(N47*1)+(Q47*1) -> 12
A48: 181 | B48: 6.2 | C48: оплата труда ремонтного персонала | D48: тыс.руб. | E48: =(E49*0.001)*(E50*1)*(E51*1) -> 0 | F48: =(F49*0.001)*(F50*1)*(F51*1) -> 0 | G48: =(E48*1)+(F48*1) -> 0 | H48: =(H49*0.001)*(H50*1)*(H51*1) -> 0 | I48: =(I49*0.001)*(I50*1)*(I51*1) -> 0 | J48: =(H48*1)+(I48*1) -> 0 | K48: =(G48*1)+(J48*1) -> 0 | L48: =(L49*0.001)*(L50*1)*(L51*1) -> 0 | M48: =(M49*0.001)*(M50*1)*(M51*1) -> 0 | N48: =(L48*1)+(M48*1) -> 0 | O48: =(O49*0.001)*(O50*1)*(O51*1) -> 0 | P48: =(P49*0.001)*(P50*1)*(P51*1) -> 0 | Q48: =(O48*1)+(P48*1) -> 0 | R48: =(N48*1)+(Q48*1) -> 0
A49: 182 | B49: 6.2.1 | C49: среднемесячная оплата труда ремонтного персонала | D49: руб./мес. | G49: =G48/G50/G51*1000 ->  | J49: =J48/J50/J51*1000 ->  | K49: =K48/K51/K50*1000 ->  | N49: =N48/N50/N51*1000 ->  | Q49: =Q48/Q50/Q51*1000 ->  | R49: =R48/R51/R50*1000 -> 
A50: 183 | B50: 6.2.2 | C50: численность ремонтного персонала, относимого на регулируемый вид деятельности | D50: ед. | G50: =E50+F50 -> 0 | J50: =H50+I50 -> 0 | K50: =(G50+J50)/2 -> 0 | N50: =(L50*1)+(M50*1) -> 0 | Q50: =(O50*1)+(P50*1) -> 0 | R50: =(N50*1)+(Q50*1) -> 0
A51: 276 | B51: 6.2.6 | C51: Количество месяцев | E51: 6 | F51: 6 | G51: 6 | H51: 6 | I51: 6 | J51: 6 | K51: =(G51*1)+(J51*1) -> 12 | L51: 6 | M51: 6 | O51: 6 | P51: 6 | Q51: 6 | R51: =(N51*1)+(Q51*1) -> 6
A52: 188 | B52: 6.3 | C52: оплата труда цехового персонала | D52: тыс.руб. | E52: =(E53*0.001)*(E54*1)*(E55*1) -> 0 | F52: =(F53*0.001)*(F54*1)*(F55*1) -> 0 | G52: =(E52*1)+(F52*1) -> 0 | H52: =(H53*0.001)*(H54*1)*(H55*1) -> 0 | I52: =(I53*0.001)*(I54*1)*(I55*1) -> 0 | J52: =(H52*1)+(I52*1) -> 0 | K52: =(G52*1)+(J52*1) -> 0 | L52: =(L53*0.001)*(L54*1)*(L55*1) -> 0 | M52: =(M53*0.001)*(M54*1)*(M55*1) -> 0 | N52: =(L52*1)+(M52*1) -> 0 | O52: =(O53*0.001)*(O54*1)*(O55*1) -> 0 | P52: =(P53*0.001)*(P54*1)*(P55*1) -> 0 | Q52: =(O52*1)+(P52*1) -> 0 | R52: =(N52*1)+(Q52*1) -> 0
A53: 189 | B53: 6.3.1 | C53: среднемесячная оплата труда цехового персонала | D53: руб./мес. | G53: =G52/G54/G55*1000 ->  | J53: =J52/J54/J55*1000 ->  | K53: =K52/K55/K54*1000 ->  | N53: =N52/N54/N55*1000 ->  | Q53: =Q52/Q54/Q55*1000 ->  | R53: =R52/R55/R54*1000 -> 
A54: 190 | B54: 6.3.2 | C54: численность цехового персонала, относимого на регулируемый вид деятельности | D54: ед. | G54: =E54+F54 -> 0 | J54: =H54+I54 -> 0 | K54: =(G54+J54)/2 -> 0 | Q54: =O54+P54 -> 0 | R54: =(N54+Q54)/2 -> 0
A55: 278 | B55: 6.0.6 | C55: Количесво месяцев | E55: 6 | F55: 6 | G55: 6 | H55: 6 | I55: 6 | J55: 6 | K55: =(G55*1)+(J55*1) -> 12 | L55: 6 | M55: 6 | O55: 6 | P55: 6 | Q55: 6 | R55: =(N55*1)+(Q55*1) -> 6
A56: 192 | B56: 6.4 | C56: оплата труда АУП | D56: тыс.руб. | E56: =(E57*0.001)*(E58*1)*(E59*1) -> 0 | F56: =(F57*0.001)*(F58*1)*(F59*1) -> 0 | G56: =(E56*1)+(F56*1) -> 0 | H56: =(H57*0.001)*(H58*1)*(H59*1) -> 0 | I56: =(I57*0.001)*(I58*1)*(I59*1) -> 0 | J56: =(H56*1)+(I56*1) -> 0 | K56: =(G56*1)+(J56*1) -> 0 | L56: =(L57*0.001)*(L58*1)*(L59*1) -> 0 | M56: =(M57*0.001)*(M58*1)*(M59*1) -> 0 | N56: =(L56*1)+(M56*1) -> 0 | O56: =(O57*0.001)*(O58*1)*(O59*1) -> 0 | P56: =(P57*0.001)*(P58*1)*(P59*1) -> 0 | Q56: =(O56*1)+(P56*1) -> 0 | R56: =(N56*1)+(Q56*1) -> 0
A57: 193 | B57: 6.4.1 | C57: среднемесячная оплата труда АУП | D57: руб./мес. | G57: =G56/G58/G59*1000 ->  | J57: =J56/J58/J59*1000 ->  | K57: =K56/K59/K58*1000 ->  | N57: =N56/N59/N58*1000 ->  | Q57: =Q56/Q58/Q59*1000 ->  | R57: =R56/R59/R58*1000 -> 
A58: 194 | B58: 6.4.2 | C58: численность АУП, относимого на регулируемый вид деятельности | D58: ед. | G58: =E58+F58 -> 0 | J58: =H58+I58 -> 0 | K58: =(G58+J58)/2 -> 0 | N58: =(J58+M58)/2 -> 0 | Q58: =O58+P58 -> 0 | R58: =(N58+Q58)/2 -> 0
A59: 277 | B59: 6.4.3 | C59: Количество месяцев | E59: 6 | F59: 6 | G59: 6 | H59: 6 | I59: 6 | J59: 6 | K59: =(G59*1)+(J59*1) -> 12 | L59: 6 | M59: 6 | N59: 6 | O59: 6 | P59: 6 | Q59: 6 | R59: =(N59*1)+(Q59*1) -> 12
A60: 196 | B60: 6.5 | C60: оплата труда прочего персонала, относимого на регулируемый вид деятельности | D60: тыс.руб. | E60: =(E61*0.001)*(E62*1)*(E63*1) -> 0 | F60: =(F61*0.001)*(F62*1)*(F63*1) -> 0 | G60: =(E60*1)+(F60*1) -> 0 | H60: =(H61*0.001)*(H62*1)*(H63*1) -> 0 | I60: =(I61*0.001)*(I62*1)*(I63*1) -> 0 | J60: =(H60*1)+(I60*1) -> 0 | K60: =(G60*1)+(J60*1) -> 0 | L60: =(L61*0.001)*(L62*1)*(L63*1) -> 0 | M60: =(M61*0.001)*(M62*1)*(M63*1) -> 0 | N60: =(L60*1)+(M60*1) -> 0 | O60: =(O61*0.001)*(O62*1)*(O63*1) -> 0 | P60: =(P61*0.001)*(P62*1)*(P63*1) -> 0 | Q60: =(O60*1)+(P60*1) -> 0 | R60: =(N60*1)+(Q60*1) -> 0
A61: 197 | B61: 6.5.1 | C61: среднемесячная оплата труда прочего персонала, относимого на регулируемый вид деятельности | D61: руб./мес. | G61: =G60/G62/G63*1000 ->  | J61: =J60/J62/J63*1000 ->  | K61: =K60/K63/K62*1000 ->  | N61: =N60/N62/N63*1000 ->  | Q61: =Q60/Q62/Q63*1000 ->  | R61: =R60/R63/R62*1000 -> 
A62: 198 | B62: 6.5.2 | C62: численность прочего персонала, относимого на регулируемый вид деятельности | D62: ед. | G62: =E62+F62 -> 0 | J62: =H62+I62 -> 0 | K62: =(G62+J62)/2 -> 0 | N62: =L62+M62 -> 0 | Q62: =O62+P62 -> 0 | R62: =(N62+Q62)/2 -> 0
A63: 279 | B63: 6.5.3. | C63: Количество месяцев | E63: 6 | F63: 6 | G63: 6 | H63: 6 | I63: 6 | J63: 6 | K63: =(G63*1)+(J63*1) -> 12 | L63: 6 | M63: 6 | N63: 6 | O63: 6 | P63: 6 | Q63: 6 | R63: =(N63*1)+(Q63*1) -> 12
A64: 325 | B64: 7.9 | C64: Отчисления на социальные нужды | D64: тыс. руб. | E64: =(E65*1)+(E66*1)+(E67*1)+(E68*1)+(E69*1) -> 0 | F64: =(F65*1)+(F66*1)+(F67*1)+(F68*1)+(F69*1) -> 0 | G64: =(E64*1)+(F64*1) -> 0 | H64: =(H65*1)+(H66*1)+(H67*1)+(H68*1)+(H69*1) -> 0 | I64: =(I65*1)+(I66*1)+(I67*1)+(I68*1)+(I69*1) -> 0 | J64: =(H64*1)+(I64*1) -> 0 | K64: =(G64*1)+(J64*1) -> 0 | L64: =(L65*1)+(L66*1)+(L67*1)+(L68*1)+(L69*1) -> 0 | M64: =(M65*1)+(M66*1)+(M67*1)+(M68*1)+(M69*1) -> 0 | N64: =(L64*1)+(M64*1) -> 0 | O64: =(O65*1)+(O66*1)+(O67*1)+(O68*1)+(O69*1) -> 0 | P64: =(P65*1)+(P66*1)+(P67*1)+(P68*1)+(P69*1) -> 0 | Q64: =(O64*1)+(P64*1) -> 0 | R64: =(N64*1)+(Q64*1) -> 0
A65: 202 | B65: 7.1 | C65: отчисления на соц. нужды от заработной платы основных производственных рабочих | D65: тыс.руб. | E65: =E44*E152/100 -> 0 | F65: =F44*F152/100 -> 0 | G65: =(E65*1)+(F65*1) -> 0 | H65: =H44*H152/100 -> 0 | I65: =I44*I152/100 -> 0 | J65: =(H65*1)+(I65*1) -> 0 | K65: 0 | L65: =L44*L152/100 -> 0 | M65: =M44*M152/100 -> 0 | N65: =(L65*1)+(M65*1) -> 0 | O65: =O44*O152/100 -> 0 | P65: =P44*P152/100 -> 0 | Q65: =(O65*1)+(P65*1) -> 0 | R65: =(N65*1)+(Q65*1) -> 0
A66: 203 | B66: 7.2 | C66: отчисления на соц. нужды от заработной платы ремонтного персонала | D66: тыс.руб. | E66: =E48*E152/100 -> 0 | F66: =F48*F152/100 -> 0 | G66: 0 | H66: =H48*H152/100 -> 0 | I66: =I48*I152/100 -> 0 | J66: 0 | K66: 0 | L66: =L48*L152/100 -> 0 | M66: =M48*M152/100 -> 0 | N66: 0 | O66: =O48*O152/100 -> 0 | P66: =P48*P152/100 -> 0 | Q66: 0 | R66: 0
A67: 204 | B67: 7.3 | C67: отчисления на соц. нужды от заработной платы цехового персонала | D67: тыс.руб. | E67: =E52*E152/100 -> 0 | F67: =F52*F152/100 -> 0 | G67: 0 | H67: =H52*H152/100 -> 0 | I67: =I52*I152/100 -> 0 | J67: 0 | K67: 0 | L67: =L52*L152/100 -> 0 | M67: =M52*M152/100 -> 0 | N67: 0 | O67: =O52*O152/100 -> 0 | P67: =P52*P152/100 -> 0 | Q67: 0 | R67: 0
A68: 205 | B68: 7.4 | C68: отчисления на соц. нужды от заработной платы АУП | D68: тыс.руб. | E68: =E56*E152/100 -> 0 | F68: =F56*F152/100 -> 0 | G68: 0 | H68: =H56*H152/100 -> 0 | I68: =I56*I152/100 -> 0 | J68: 0 | K68: 0 | L68: =L56*L152/100 -> 0 | M68: =M56*M152/100 -> 0 | N68: 0 | O68: =O56*O152/100 -> 0 | P68: =P56*P152/100 -> 0 | Q68: 0 | R68: 0
A69: 206 | B69: 7.5. | C69: отчисления на соц. нужды от заработной платы прочего персонала | D69: тыс.руб. | E69: =E60*E152/100 -> 0 | F69: =F60*F152/100 -> 0 | G69: 0 | H69: =H60*H152/100 -> 0 | I69: =I60*I152/100 -> 0 | J69: 0 | K69: 0 | L69: =L60*L152/100 -> 0 | M69: =M60*M152/100 -> 0 | N69: 0 | O69: =O60*O152/100 -> 0 | P69: =P60*P152/100 -> 0 | Q69: 0 | R69: 0
A70: 207 | B70: 8.0. | C70: Холодная вода | D70: тыс.руб. | E70: =(E71*1)+(E72*0)+(E73*0)+(E74*0)+(E75*1)+(E76*0)+(E77*0)+(E78*0) -> 0 | F70: =(F71*1)+(F72*0)+(F73*0)+(F74*0)+(F75*1)+(F76*0)+(F77*0)+(F78*0) -> 0 | G70: 0 | H70: =(H71*1)+(H72*0)+(H73*0)+(H74*0)+(H75*1)+(H76*0)+(H77*0)+(H78*0) -> 0 | I70: =(I71*1)+(I72*0)+(I73*0)+(I74*0)+(I75*1)+(I76*0)+(I77*0)+(I78*0) -> 0 | J70: 0 | K70: 0 | L70: =(L71*1)+(L72*0)+(L73*0)+(L74*0)+(L75*1)+(L76*0)+(L77*0)+(L78*0) -> 0 | M70: =(M71*1)+(M72*0)+(M73*0)+(M74*0)+(M75*1)+(M76*0)+(M77*0)+(M78*0) -> 0 | N70: 0 | O70: =(O71*1)+(O72*0)+(O73*0)+(O74*0)+(O75*1)+(O76*0)+(O77*0)+(O78*0) -> 0 | P70: =(P71*1)+(P72*0)+(P73*0)+(P74*0)+(P75*1)+(P76*0)+(P77*0)+(P78*0) -> 0 | Q70: 0 | R70: 0
A71: 312 | B71: 8 | C71: Холодная вода питьевая | D71: тыс.руб. | E71: =E73*E74 -> 0 | F71: =F73*F74 -> 0 | G71: =(E71*1)+(F71*1) -> 0 | H71: =H73*H74 -> 0 | I71: =I73*I74 -> 0 | J71: 0 | K71: 0 | L71: =L73*L74 -> 0 | M71: =M73*M74 -> 0 | N71: =(L71*1)+(M71*1) -> 0 | O71: =O73*O74 -> 0 | P71: =P73*P74 -> 0 | Q71: 0 | R71: 0 | T71: - счета-фактуры на приобретение воды; - договор на питьевую воду; - акты выполненных работ
A72: 293 | B72: 8.1.3 | C72: Удельный расход питьевой воды | D72: м куб/Гкал | E72: 0 | F72: 0 | G72: 0 | H72: 0 | I72: 0 | J72: 0 | N72: =(L72*1)+(M72*1) -> 0 | Q72: 0
A73: 208 | B73: 8.1.1 | C73: Цена питьевой воды | D73: руб./куб.м | G73: =G71/G74 ->  | J73: =J71/J74 ->  | K73: =K71/K74 ->  | N73: =N71/N74 ->  | Q73: =Q71/Q74 ->  | R73: =R71/R74 -> 
A74: 209 | B74: 8.1.2 | C74: Объём питьевой воды | D74: тыс.куб.м | G74: 0 | J74: 0 | K74: 0 | N74: 0 | Q74: 0 | R74: =(N74*1)+(Q74*1) -> 0
A75: 327 | B75: 8.2. | C75: Холодная вода техническая | D75: тыс.руб. | E75: =E77*E78 -> 0 | F75: =F77*F78 -> 0 | G75: =(E75*1)+(F75*1) -> 0 | H75: =H77*H78 -> 0 | I75: =I77*I78 -> 0 | J75: =(H75*1)+(I75*1) -> 0 | K75: =(G75*1)+(J75*1) -> 0 | L75: =L77*L78 -> 0 | M75: =M77*M78 -> 0 | N75: =(L75*1)+(M75*1) -> 0 | O75: =O77*O78 -> 0 | P75: =P77*P78 -> 0 | Q75: =(O75*1)+(P75*1) -> 0 | R75: =(N75*1)+(Q75*1) -> 0 | T75: - счета-фактуры на приобретение воды; - договор на техническую воду; - акты выполненных работ
A76: 295 | B76: 8.2.3 | C76: Удельный расход технической воды | D76: тыс.руб. | E76: 0 | F76: 0 | G76: 0 | H76: 0 | I76: 0 | J76: 0 | N76: 0 | Q76: =(O76*1)+(P76*1) -> 0
A77: 296 | B77: 8.2.1 | C77: Цена технической воды | D77: руб./куб. м | G77: =G75/G78 ->  | J77: =J75/J78 ->  | K77: =K75/K78 ->  | N77: =N75/N78 ->  | Q77: =Q75/Q78 -> 
A78: 297 | B78: 8.2.2 | C78: Объем технической воды | D78: тыс. м куб. | G78: 0 | J78: 0 | K78: 0 | N78: 0 | Q78: 0 | R78: =(N78*1)+(Q78*1) -> 0
A79: 210 | C79: Водоотведение | D79: тыс.руб. | E79: =(E80*1)+(E81*0)+(E82*0) -> 0 | F79: =(F80*1)+(F81*0)+(F82*0) -> 0 | G79: 0 | H79: =(H80*1)+(H81*0)+(H82*0) -> 0 | I79: =(I80*1)+(I81*0)+(I82*0) -> 0 | J79: 0 | K79: 0 | N79: 0 | Q79: 0 | R79: 0
A80: 318 | B80: 9 | C80: Водоотведение | D80: тыс.руб. | E80: =E81*E82 -> 0 | F80: =F81*F82 -> 0 | G80: =(E80*1)+(F80*1) -> 0 | H80: =H81*H82 -> 0 | I80: =I81*I82 -> 0 | J80: =(H80*1)+(I80*1) -> 0 | K80: =(G80*1)+(J80*1) -> 0 | L80: =L81*L82 -> 0 | M80: =M81*M82 -> 0 | N80: =(L80*1)+(M80*1) -> 0 | O80: =O81*O82 -> 0 | P80: =P81*P82 -> 0 | Q80: =(O80*1)+(P80*1) -> 0 | R80: =(N80*1)+(Q80*1) -> 0 | T80: - счета-фактуры на водоотведение; - договор на водоотведение; - акты выполненных работ
A81: 211 | B81: 9.1 | C81: Цена | D81: руб./куб.м | G81: =G80/G82 ->  | J81: =J80/J82 ->  | K81: =K80/K82 ->  | N81: =N80/N82 ->  | Q81: =Q80/Q82 ->  | R81: =R80/R82 -> 
A82: 282 | B82: 9.2 | C82: Объём | D82: тыс.куб.м | G82: =(E82*1)+(F82*1) -> 0 | J82: =(H82*1)+(I82*1) -> 0 | K82: =(G82*1)+(J82*1) -> 0 | N82: =(L82*1)+(M82*1) -> 0 | Q82: =(O82*1)+(P82*1) -> 0 | R82: =(N82*1)+(Q82*1) -> 0
A83: 299 | B83: 9.2.1 | C83: Удельный расход стоков | D83: м куб./Гкал | E83: 0 | F83: 0 | G83: 0 | H83: 0 | I83: 0 | J83: 0 | N83: 0 | Q83: =(O83*1)+(P83*1) -> 0
A84: 215 | B84: 12 | C84: Расходы на приобретение сырья и материалов | D84: тыс.руб. | E84: =(E85*1)+(E86*1)+(E87*1)+(E88*1)+(E89*1)+(E90*1)+(E91*1) -> 0 | F84: =(F85*1)+(F86*1)+(F87*1)+(F88*1)+(F89*1)+(F90*1)+(F91*1) -> 0 | G84: =(E84*1)+(F84*1) -> 0 | H84: =(H85*1)+(H86*1)+(H87*1)+(H88*1)+(H89*1)+(H90*1)+(H91*1) -> 0 | I84: =(I85*1)+(I86*1)+(I87*1)+(I88*1)+(I89*1)+(I90*1)+(I91*1) -> 0 | J84: =(H84*1)+(I84*1) -> 0 | K84: =(G84*1)+(J84*1) -> 0 | L84: =(L85*1)+(L86*1)+(L87*1)+(L88*1)+(L89*1)+(L90*1)+(L91*1) -> 0 | M84: =(M85*1)+(M86*1)+(M87*1)+(M88*1)+(M89*1)+(M90*1)+(M91*1) -> 0 | N84: =(L84*1)+(M84*1) -> 0 | O84: =(O85*1)+(O86*1)+(O87*1)+(O88*1)+(O89*1)+(O90*1)+(O91*1) -> 0 | P84: =(P85*1)+(P86*1)+(P87*1)+(P88*1)+(P89*1)+(P90*1)+(P91*1) -> 0 | Q84: =(O84*1)+(P84*1) -> 0 | R84: =(N84*1)+(Q84*1) -> 0
A85: 216 | B85: 12.1 | C85: Реагенты, фильтрующие и ионообменные материалы для водоподготовки | D85: тыс.руб. | G85: 0 | J85: 0 | K85: =(G85*1)+(J85*1) -> 0 | N85: 0 | Q85: =(O85*1)+(P85*1) -> 0 | R85: =(N85*1)+(Q85*1) -> 0 | T85: - реестр расходов на химреагенты (объёмы, цены, договоры поставки)
A86: 217 | B86: 12.2 | C86: ГСМ | D86: тыс.руб. | G86: 0 | J86: 0 | K86: 0 | N86: 0 | Q86: 0 | R86: =(N86*1)+(Q86*1) -> 0 | T86: - материальный отчёт по ГСМ (объём, цена, затраты)
A87: 218 | B87: 12.3 | C87: На текущий и капитальный ремонт | D87: тыс.руб. | G87: 0 | J87: 0 | K87: 0 | N87: 0 | Q87: 0 | R87: 0 | T87: - бухгалтерский учёт сырья и материалов (по каждомуу полугодию, по каждому материально-ответственному лицу)
A88: 219 | B88: 12.4 | C88: На текущее содержание и техническое обслуживание | D88: тыс.руб. | G88: 0 | J88: 0 | K88: 0 | N88: 0 | Q88: 0 | R88: 0 | T88: - бухгалтерский учёт сырья и материалов (по каждомуу полугодию, по каждому материально-ответственному лицу)
A89: 220 | B89: 12.5 | C89: Специальная одежда | D89: тыс.руб. | G89: 0 | J89: 0 | K89: 0 | N89: 0 | Q89: 0 | R89: 0 | T89: - реестр расходов на спецодежду (количество, цены, обоснования)
A90: 221 | B90: 12.6 | C90: Хозяйственный инвентарь и другие вспомогательные материалы | D90: тыс.руб. | G90: 0 | J90: 0 | K90: 0 | N90: 0 | Q90: =(O90*1)+(P90*1) -> 0 | R90: =(N90*1)+(Q90*1) -> 0 | T90: - реестр расходов (количество, цены, обоснования)
A91: 222 | B91: 12.7 | C91: Прочие расходы | D91: тыс.руб. | G91: 0 | J91: 0 | K91: 0 | N91: 0 | Q91: 0 | R91: 0
A92: 223 | B92: 13 | C92: Ремонт основных средств, выполняемый подрядным способом | D92: тыс.руб. | G92: 0 | J92: 0 | K92: 0 | N92: 0 | Q92: 0 | R92: 0 | T92: - реестр выполненных работ (с указанием реквизитов договора); - договоры на выполнение ремонтных работ; - акты выполненных работ (форма КС-2); - платёжные документы; - подтверждение проведения конкурсных процедур
A93: 224 | B93: 14 | C93: Расходы на оплату работ и услуг производственного характера, выполняемых по договорам со сторонними организациями | D93: тыс.руб. | E93: =(E94*1)+(E95*1)+(E96*1)+(E97*1) -> 0 | F93: =(F94*1)+(F95*1)+(F96*1)+(F97*1) -> 0 | G93: 0 | H93: =(H94*1)+(H95*1)+(H96*1)+(H97*1) -> 0 | I93: =(I94*1)+(I95*1)+(I96*1)+(I97*1) -> 0 | J93: 0 | K93: 0 | L93: =(L94*1)+(L95*1)+(L96*1)+(L97*1) -> 0 | M93: =(M94*1)+(M95*1)+(M96*1)+(M97*1) -> 0 | N93: 0 | O93: =(O94*1)+(O95*1)+(O96*1)+(O97*1) -> 0 | P93: =(P94*1)+(P95*1)+(P96*1)+(P97*1) -> 0 | Q93: 0 | R93: 0
A94: 225 | B94: 14.1 | C94: транспортные услуги | D94: тыс.руб. | G94: 0 | J94: 0 | K94: 0 | N94: 0 | Q94: 0 | R94: 0 | T94: - реестр расходов (количество, цены, обоснования)
A95: 226 | B95: 14.2 | C95: работы по техническому регламенту | D95: тыс.руб. | G95: 0 | J95: 0 | K95: 0 | N95: 0 | Q95: 0 | R95: 0 | T95: - реестр выполненных работ; - сопутствующие обоснования
A96: 227 | B96: 14.3 | C96: прочие услуги вспомогательных производств | D96: тыс.руб. | G96: 0 | J96: 0 | K96: 0 | N96: 0 | Q96: 0 | R96: 0
A97: 228 | B97: 14.4 | C97: иные работы и услуги производственного характера | D97: тыс.руб. | G97: 0 | J97: 0 | K97: 0 | N97: 0 | Q97: 0 | R97: 0
A98: 229 | B98: 15 | C98: Расходы на оплату иных работ и услуг, выполняемых по договорам с организациями, включая: | D98: тыс.руб. | E98: =(E99*1)+(E100*1)+(E101*1)+(E102*1)+(E103*1)+(E104*1)+(E105*1)+(E106*1)+(E107*1)+(E108*1)+(E109*1)+(E110*1) -> 0 | F98: =(F99*1)+(F100*1)+(F101*1)+(F102*1)+(F103*1)+(F104*1)+(F105*1)+(F106*1)+(F107*1)+(F108*1)+(F109*1)+(F110*1) -> 0 | G98: 0 | H98: =(H99*1)+(H100*1)+(H101*1)+(H102*1)+(H103*1)+(H104*1)+(H105*1)+(H106*1)+(H107*1)+(H108*1)+(H109*1)+(H110*1) -> 0 | I98: =(I99*1)+(I100*1)+(I101*1)+(I102*1)+(I103*1)+(I104*1)+(I105*1)+(I106*1)+(I107*1)+(I108*1)+(I109*1)+(I110*1) -> 0 | J98: 0 | K98: 0 | L98: =(L99*1)+(L100*1)+(L101*1)+(L102*1)+(L103*1)+(L104*1)+(L105*1)+(L106*1)+(L107*1)+(L108*1)+(L109*1)+(L110*1) -> 0 | M98: =(M99*1)+(M100*1)+(M101*1)+(M102*1)+(M103*1)+(M104*1)+(M105*1)+(M106*1)+(M107*1)+(M108*1)+(M109*1)+(M110*1) -> 0 | N98: 0 | O98: =(O99*1)+(O100*1)+(O101*1)+(O102*1)+(O103*1)+(O104*1)+(O105*1)+(O106*1)+(O107*1)+(O108*1)+(O109*1)+(O110*1) -> 0 | P98: =(P99*1)+(P100*1)+(P101*1)+(P102*1)+(P103*1)+(P104*1)+(P105*1)+(P106*1)+(P107*1)+(P108*1)+(P109*1)+(P110*1) -> 0 | Q98: 0 | R98: 0 | T98: Ссылки на обоснование понесённых расходов прикреплять в соответствующую строку расходов (с обязательным реестром расходов)
A99: 232 | B99: 15.3 | C99: коммунальные услуги | D99: тыс.руб. | G99: 0 | J99: 0 | K99: 0 | N99: 0 | Q99: 0 | R99: 0
A100: 236 | B100: 15.7 | C100: расходы на аудиторские услуги | D100: тыс.руб. | G100: 0 | J100: 0 | K100: 0 | N100: 0 | Q100: 0 | R100: 0
A101: 241 | B101: 15.12 | C101: иные работы и услуги | D101: тыс.руб. | G101: 0 | J101: 0 | K101: 0 | N101: 0 | Q101: 0 | R101: 0
A102: 230 | B102: 15.1 | C102: услуги связи | D102: тыс.руб. | G102: 0 | J102: 0 | K102: 0 | N102: 0 | Q102: 0 | R102: 0
A103: 231 | B103: 15.2 | C103: услуги вневедомственной охраны | D103: тыс.руб. | G103: 0 | J103: 0 | K103: 0 | N103: 0 | Q103: 0 | R103: 0
A104: 233 | B104: 15.4 | C104: расходы на консультационные услуги | D104: тыс.руб. | G104: 0 | J104: 0 | K104: 0 | N104: 0 | Q104: 0 | R104: 0
A105: 234 | B105: 15.5 | C105: расходы на юридические услуги | D105: тыс.руб. | G105: 0 | J105: 0 | K105: 0 | N105: 0 | Q105: 0 | R105: 0
A106: 235 | B106: 15.6 | C106: расходы на информационные услуги | D106: тыс.руб. | G106: 0 | J106: 0 | K106: 0 | N106: 0 | Q106: 0 | R106: 0
A107: 237 | B107: 15.8 | C107: услуги по стратегическому управлению организацией | D107: тыс.руб. | G107: 0 | J107: 0 | K107: 0 | N107: 0 | Q107: 0 | R107: 0
A108: 238 | B108: 15.9 | C108: расходы по подготовке и освоению производства (пуско-наладочные работы) | D108: тыс.руб. | G108: 0 | J108: 0 | K108: 0 | N108: 0 | Q108: 0 | R108: 0
A109: 239 | B109: 15.10 | C109: целевые средства на НИОКР | D109: тыс.руб. | G109: 0 | J109: 0 | K109: 0 | N109: 0 | Q109: 0 | R109: 0
A110: 240 | B110: 15.11 | C110: средства на необязательное (дополнительное) страхование | D110: тыс.руб. | G110: 0 | J110: 0 | K110: 0 | N110: 0 | Q110: 0 | R110: 0
A111: 242 | B111: 16 | C111: Расходы на служебные командировки | D111: тыс.руб. | G111: 0 | J111: 0 | K111: 0 | N111: 0 | Q111: 0 | R111: 0
A112: 243 | B112: 17 | C112: Расходы на обучение персонала | D112: тыс.руб. | G112: 0 | J112: 0 | K112: 0 | N112: 0 | Q112: 0 | R112: 0
A113: 244 | B113: 18 | C113: Расходы на вывод из эксплуатации (в том числе на консервацию) и вывод из консервации | D113: тыс.руб. | G113: 0 | J113: 0 | K113: 0 | N113: 0 | Q113: 0 | R113: 0
A114: 245 | B114: 19 | C114: Услуги банков | D114: тыс.руб. | G114: 0 | J114: 0 | K114: 0 | N114: 0 | Q114: 0 | R114: 0
A115: 303 | B115: 20 | C115: Прочие операционные расходы | D115: тыс.руб. | G115: 0 | J115: 0 | K115: 0 | N115: 0 | Q115: 0 | R115: 0
A116: 249 | B116: 21 | C116: Расходы на оплату услуг, оказываемых организациями, осуществляющими регулируемые виды деятельности | D116: тыс.руб. | G116: 0 | J116: 0 | K116: 0 | N116: 0 | Q116: 0 | R116: 0
A117: 250 | B117: 22 | C117: Арендная плата | D117: тыс.руб. | E117: =(E118*1)+(E119*1) -> 0 | F117: =(F118*1)+(F119*1) -> 0 | G117: 0 | H117: =(H118*1)+(H119*1) -> 0 | I117: =(I118*1)+(I119*1) -> 0 | J117: 0 | K117: 0 | L117: =(L118*1)+(L119*1) -> 0 | M117: =(M118*1)+(M119*1) -> 0 | N117: 0 | O117: =(O118*1)+(O119*1) -> 0 | P117: =(P118*1)+(P119*1) -> 0 | Q117: 0 | R117: 0 | T117: - реестр договоров аренды с указанием арендной платы; - платёжные документы, подтверждающие факт понесения расходов по арендной плате
A118: 251 | B118: 22.1 | C118: аренда производственных объектов | D118: тыс.руб. | G118: 0 | J118: 0 | K118: 0 | N118: 0 | Q118: 0 | R118: 0
A119: 252 | B119: 22.2 | C119: аренда непроизводственных объектов | D119: тыс.руб. | G119: 0 | J119: 0 | K119: 0 | N119: 0 | Q119: 0 | R119: 0
A120: 253 | B120: 23 | C120: Концессионная плата | D120: тыс.руб. | G120: 0 | J120: 0 | K120: 0 | N120: 0 | Q120: 0 | R120: 0
A121: 258 | B121: 25 | C121: Расходы на уплату налогов, сборов и других обязательных платежей, в том числе: | D121: тыс.руб. | E121: =(E122*1)+(E123*1)+(E124*1)+(E125*1) -> 0 | F121: =(F122*1)+(F123*1)+(F124*1)+(F125*1) -> 0 | G121: 0 | H121: =(H122*1)+(H123*1)+(H124*1)+(H125*1) -> 0 | I121: =(I122*1)+(I123*1)+(I124*1)+(I125*1) -> 0 | J121: 0 | K121: 0 | L121: =(L122*1)+(L123*1)+(L124*1)+(L125*1) -> 0 | M121: =(M122*1)+(M123*1)+(M124*1)+(M125*1) -> 0 | N121: 0 | O121: =(O122*1)+(O123*1)+(O124*1)+(O125*1) -> 0 | P121: =(P122*1)+(P123*1)+(P124*1)+(P125*1) -> 0 | Q121: 0 | R121: 0
A122: 259 | B122: 25.1 | C122: плата за выбросы и сбросы загрязняющих веществ в окружающую среду, размещение отходов и другие виды негативного воздействия на окружающую среду в пределах установленных нормативов и (или) лимитов | D122: тыс.руб. | G122: 0 | J122: 0 | K122: 0 | N122: 0 | Q122: 0 | R122: 0
A123: 260 | B123: 25.2 | C123: расходы на обязательное страхование | D123: тыс.руб. | G123: 0 | J123: 0 | K123: 0 | N123: 0 | Q123: =(O123*1)+(P123*1) -> 0 | R123: =(N123*1)+(Q123*1) -> 0 | T123: - договоры на страхование; - платежные документы
A124: 261 | B124: 25.3 | C124: иные расходы | D124: тыс.руб. | G124: 0 | J124: 0 | K124: 0 | N124: 0 | Q124: 0 | R124: 0
A125: 262 | B125: 25.4 | C125: уплата налогов, всего | D125: тыс.руб. | E125: =(E126*1)+(E127*1)+(E128*1)+(E129*1)+(E130*1) -> 0 | F125: =(F126*1)+(F127*1)+(F128*1)+(F129*1)+(F130*1) -> 0 | G125: 0 | H125: =(H126*1)+(H127*1)+(H128*1)+(H129*1)+(H130*1) -> 0 | I125: =(I126*1)+(I127*1)+(I128*1)+(I129*1)+(I130*1) -> 0 | J125: 0 | K125: 0 | L125: =(L126*1)+(L127*1)+(L128*1)+(L129*1)+(L130*1) -> 0 | M125: =(M126*1)+(M127*1)+(M128*1)+(M129*1)+(M130*1) -> 0 | N125: 0 | O125: =(O126*1)+(O127*1)+(O128*1)+(O129*1)+(O130*1) -> 0 | P125: =(P126*1)+(P127*1)+(P128*1)+(P129*1)+(P130*1) -> 0 | Q125: 0 | R125: 0 | T125: - налоговые декларации; - расчёт отнесения расходов на регулируемый вид деятельности в сфере теплоснабжения; - платёжные документы
A126: 267 | B126: 25.4.5 | C126: прочие налоги | D126: тыс.руб. | G126: 0 | J126: 0 | K126: 0 | N126: 0 | Q126: 0 | R126: 0
A127: 263 | B127: 25.4.1 | C127: налог на имущество организаций | D127: тыс.руб. | G127: 0 | J127: 0 | K127: =(G127*1)+(J127*1) -> 0 | N127: 0 | Q127: 0 | R127: 0
A128: 264 | B128: 25.4.2 | C128: земельный налог | D128: тыс.руб. | G128: 0 | J128: 0 | K128: 0 | N128: 0 | Q128: 0 | R128: 0
A129: 265 | B129: 25.4.3 | C129: транспортный налог | D129: тыс.руб. | G129: =(E129*1)+(F129*1) -> 0 | J129: =(H129*1)+(I129*1) -> 0 | K129: 0 | N129: 0 | Q129: 0 | R129: 0
A130: 266 | B130: 25.4.4 | C130: водный налог | D130: тыс.руб. | G130: 0 | J130: 0 | K130: 0 | N130: 0 | Q130: 0 | R130: 0
A131: 268 | B131: 26 | C131: Расходы по сомнительным долгам | D131: тыс.руб. | G131: 0 | J131: 0 | K131: 0 | N131: 0 | Q131: 0 | R131: 0
A132: 269 | B132: 27 | C132: Амортизация основных средств и нематериальных активов | D132: тыс.руб. | E132: =(E133*1)+(E134*1) -> 0 | F132: =(F133*1)+(F134*1) -> 0 | G132: 0 | H132: =(H133*1)+(H134*1) -> 0 | I132: =(I133*1)+(I134*1) -> 0 | J132: 0 | K132: 0 | L132: =(L133*1)+(L134*1) -> 0 | M132: =(M133*1)+(M134*1) -> 0 | N132: 0 | O132: =(O133*1)+(O134*1) -> 0 | P132: =(P133*1)+(P134*1) -> 0 | Q132: 0 | R132: 0 | T132: - Ведомость основных производственных средств с указанием первоначальной и остаточной балансовой стоимости основных фондов, даты ввода, а также амортизационных отчислений за отчётный период (котельные и тепловые сети)
A133: 271 | B133: 27.2 | C133: Амортизация иных основных средств и нематериальных активов | D133: тыс.руб. | G133: 0 | J133: 0 | K133: 0 | N133: 0 | Q133: 0 | R133: 0
A134: 270 | B134: 27.1 | C134: Амортизация производственного оборудования | D134: тыс.руб. | G134: 0 | J134: 0 | K134: 0 | N134: 0 | Q134: 0 | R134: 0 | T134: - отчёт об использования амортизационных отчислений
A135: 272 | B135: 28 | C135: Расходы на выплаты по договорам займа и кредитным договорам, включая проценты по ним | D135: тыс.руб. | G135: 0 | J135: 0 | K135: 0 | N135: 0 | Q135: 0 | R135: 0
A136: 273 | B136: 29 | C136: Прочие неподконтрольные расходы | D136: тыс.руб. | G136: 0 | J136: 0 | K136: 0 | N136: =(L136*1)+(M136*1) -> 0 | Q136: 0 | R136: 0
A137: 13 | B137: 32 | C137: выпадающие доходы/экономия средств | D137: тыс.руб. | G137: 0 | J137: 0 | K137: 0 | N137: 0 | Q137: 0 | R137: 0
A138: 16 | B138: 33 | C138: Избыток средств, полученный за отчётные периоды регулирования | D138: тыс.руб. | G138: 0 | J138: 0 | K138: 0 | N138: 0 | Q138: 0 | R138: 0
A139: 20 | B139: 35 | C139: Прибыль | D139: тыс.руб. | G139: =G8-G9 -> 0 | H139: =(H140*1)+(H142*1)+(H144*0) -> 0 | I139: =(I140*1)+(I142*1)+(I144*0) -> 0 | J139: =J8-J9 -> 0 | K139: =(G139*1)+(J139*1) -> 0 | N139: 0 | Q139: 0 | R139: 0
A140: 330 | C140: нормативный уровень прибыли (нерасчетный) | E140: =(E141*1) -> 0 | F140: =(F141*1) -> 0 | G140: 0 | H140: =(H141*1) -> 0 | I140: =(I141*1) -> 0 | J140: 0 | K140: 0 | N140: 0 | Q140: 0 | R140: 0
A141: 22 | B141: 35.1 | C141: Нормативный уровень прибыли | D141: тыс.руб. | E141: =E144 -> 0 | F141: =F144 -> 0 | G141: 0 | H141: =H144 -> 0 | I141: =I144 -> 0 | J141: 0 | K141: 0 | L141: =L144 -> 0 | M141: =M144 -> 0 | N141: 0 | O141: =O144 -> 0 | P141: =P144 -> 0 | Q141: 0 | R141: 0
A142: 331 | C142: Предпринимательская прибыль | E142: =(E143*1) -> 0 | F142: =(F143*1) -> 0 | G142: 0 | H142: =(H143*1) -> 0 | I142: =(I143*1) -> 0 | J142: 0 | K142: 0 | N142: 0 | Q142: 0 | R142: 0
A143: 24 | B143: 35.1.1 | C143: Расчётная предпринимательская прибыль | D143: тыс.руб. | E143: 0 | F143: 0 | G143: 0 | H143: 0 | I143: 0 | J143: 0 | K143: 0 | N143: 0 | Q143: 0 | R143: 0
A144: 339 | C144: Прибыль составляющие | D144: тыс. руб. | E144: =(E145*1)+(E146*1)+(E147*1) -> 0 | F144: =(F145*1)+(F146*1)+(F147*1) -> 0 | G144: 0 | H144: =(H145*1)+(H146*1)+(H147*1) -> 0 | I144: =(I145*1)+(I146*1)+(I147*1) -> 0 | J144: 0 | K144: 0 | L144: =(L145*1)+(L146*1)+(L147*1) -> 0 | M144: 0 | N144: 0 | O144: =(O145*1)+(O146*1)+(O147*1) -> 0 | P144: 0 | Q144: 0 | R144: 0
A145: 27 | B145: 35.2 | C145: Денежные выплаты социального характера (по коллективному договору) | D145: тыс.руб. | H145: 0 | I145: 0 | J145: 0 | K145: 0 | N145: 0 | Q145: 0 | R145: 0
A146: 28 | B146: 35.3 | C146: Резервный фонд | D146: тыс.руб. | J146: 0 | K146: 0 | N146: 0 | Q146: 0 | R146: 0
A147: 300 | B147: 35.4 | C147: Капитальные вложения (инвестиции) | D147: тыс.руб. | G147: 0 | H147: 0 | I147: 0 | J147: 0 | K147: 0 | N147: 0 | Q147: 0 | R147: 0
A148: 283 | B148: 36 | C148: Справочные данные | E148: =(E149*0)+(E150*0)+(E151*1)+(E152*1)+(E153*1)+(E154*1)+(E155*1)+(E156*1) -> 0 | F148: =(F149*0)+(F150*0)+(F151*1)+(F152*1)+(F153*1)+(F154*1)+(F155*1)+(F156*1) -> 0 | G148: 0 | H148: =(H149*0)+(H150*0)+(H151*1)+(H152*1)+(H153*1)+(H154*1)+(H155*1)+(H156*1) -> 0 | I148: =(I149*0)+(I150*0)+(I151*1)+(I152*1)+(I153*1)+(I154*1)+(I155*1)+(I156*1) -> 0 | J148: 0 | K148: 0 | N148: 0 | Q148: 0 | R148: 0
A149: 21 | B149: 36.1 | C149: Ставка налога на прибыль | D149: % | E149: 0 | F149: 0 | G149: 0 | H149: 0 | I149: 0 | J149: 0 | K149: 0 | N149: 0 | Q149: 0 | R149: 0
A150: 23 | B150: 36.2 | C150: Справочно: нормативный уровень прибыли | D150: % | E150: 0 | F150: 0 | G150: 0 | H150: 0 | I150: 0 | J150: 0 | K150: 0 | N150: 0 | Q150: 0 | R150: 0
A151: 25 | B151: 36.3 | C151: Справочно: расчётная предпринимательская прибыль | D151: % | E151: 0 | F151: 0 | G151: 0 | H151: 0 | I151: 0 | J151: 0 | K151: 0 | N151: 0 | Q151: 0 | R151: 0
A152: 201 | B152: 7.0 | C152: процент отчислений на социальные нужды | D152: % | E152: 0 | F152: 0 | G152: 0 | H152: 0 | I152: 0 | J152: 0 | K152: 0 | N152: 0 | Q152: 0 | R152: 0
A153: 304 | B153: 35.5 | C153: Индекс эффективности расходов | D153: % | E153: 0 | F153: 0 | G153: 0 | H153: 0 | I153: 0 | J153: 0 | K153: 0 | N153: 0 | Q153: 0 | R153: 0
A154: 305 | B154: 35.6 | C154: Индекс потребительских цен | D154: % | E154: 0 | F154: 0 | G154: 0 | H154: 0 | I154: 0 | J154: 0 | K154: 0 | N154: 0 | Q154: =(O154*1)+(P154*1) -> 0 | R154: =(N154*1)+(Q154*1) -> 0
A155: 306 | B155: 35.7 | C155: Индекс количества активов | D155: % | E155: 0 | F155: 0 | G155: 0 | H155: 0 | I155: 0 | J155: 0 | K155: 0 | N155: 0 | Q155: 0 | R155: 0
A156: 336 | C156: Справочно налог по упрощённой системе налогообложения | D156: % | E156: 0 | F156: 0 | G156: 0 | H156: 0 | I156: 0 | J156: =(H156*1)+(I156*1) -> 0 | K156: 0 | N156: 0 | Q156: 0 | R156: 0
A157: 308 | C157: Загрузка: | K157: =(G157*1)+(J157*1) -> 0 | N157: 0 | Q157: 0 | R157: 0
A158: 324 | B158: 42 | C158: полезный отпуск теплоэнергии | D158: тыс.Гкал | G158: 0 | J158: =(H158*1)+(I158*1) -> 0 | K158: =(G158*1)+(J158*1) -> 0 | N158: 0 | Q158: 0 | R158: 0 | T158: НЕОБХОДИМО ТАКЖЕ ЗАПОЛНИТЬ
A159: 319 | B159: 37 | C159: Утвержденный тариф | D159: руб./Гкал | G159: 0 | J159: 0 | K159: =(G159*1)+(J159*1) -> 0
B161: НР | C161: Неподконтрольные | E161: =(E137*1)+(E136*1)+(E135*1)+(E132*1)+(E131*1)+(E130*1)+(E129*1)+(E128*1)+(E127*1)+(E126*1)+(E124*1)+(E123*1)+(E122*1)+(E120*1)+(E118*1)+(E116*1)+(E69*1)+(E68*1)+(E67*1)+(E66*1)+(E65*1)+(E12*1)+(E11*1) -> 0 | F161: =(F137*1)+(F136*1)+(F135*1)+(F132*1)+(F131*1)+(F130*1)+(F129*1)+(F128*1)+(F127*1)+(F126*1)+(F124*1)+(F123*1)+(F122*1)+(F120*1)+(F118*1)+(F116*1)+(F69*1)+(F68*1)+(F67*1)+(F66*1)+(F65*1)+(F12*1)+(F11*1) -> 0 | G161: 0 | H161: 0 | I161: 0 | J161: 0 | K161: 0 | N161: =(N137*1)+(N136*1)+(N135*1)+(N132*1)+(N131*1)+(N130*1)+(N129*1)+(N128*1)+(N127*1)+(N126*1)+(N124*1)+(N123*1)+(N122*1)+(N120*1)+(N118*1)+(N116*1)+(N69*1)+(N68*1)+(N67*1)+(N66*1)+(N65*1)+(N12*1)+(N11*1) -> 0 | Q161: =(Q137*1)+(Q136*1)+(Q135*1)+(Q132*1)+(Q131*1)+(Q130*1)+(Q129*1)+(Q128*1)+(Q127*1)+(Q126*1)+(Q124*1)+(Q123*1)+(Q122*1)+(Q120*1)+(Q118*1)+(Q116*1)+(Q69*1)+(Q68*1)+(Q67*1)+(Q66*1)+(Q65*1)+(Q12*1)+(Q11*1) -> 0 | R161: 0
B162: ОР | C162: Операционные | E162: =(E119*1)+(E115*1)+(E114*1)+(E113*1)+(E112*1)+(E111*1)+(E98*1)+(E93*1)+(E92*1)+(E84*1)+(E60*1)+(E56*1)+(E52*1)+(E48*1)+(E44*1) -> 0 | F162: 0 | G162: 0 | H162: 0 | I162: 0 | J162: 0 | K162: 0 | N162: =(N119*1)+(N115*1)+(N114*1)+(N113*1)+(N112*1)+(N111*1)+(N98*1)+(N93*1)+(N92*1)+(N84*1)+(N60*1)+(N56*1)+(N52*1)+(N48*1)+(N44*1) -> 0 | Q162: =(Q119*1)+(Q115*1)+(Q114*1)+(Q113*1)+(Q112*1)+(Q111*1)+(Q98*1)+(Q93*1)+(Q92*1)+(Q84*1)+(Q60*1)+(Q56*1)+(Q52*1)+(Q48*1)+(Q44*1) -> 0 | R162: 0
B163: ЭР | C163: Энергоресурсы | E163: =(E79*1)+(E75*1)+(E71*1)+(E31*1)+(E29*1)+(E27*1)+(E26*1)+(E25*1)+(E24*1)+(E23*1)+(E17*1) -> 0 | F163: 0 | G163: 0 | H163: 0 | I163: 0 | J163: 0 | K163: 0 | N163: =(N79*1)+(N75*1)+(N71*1)+(N31*1)+(N29*1)+(N27*1)+(N26*1)+(N25*1)+(N24*1)+(N23*1)+(N17*1) -> 0 | Q163: =(Q79*1)+(Q75*1)+(Q71*1)+(Q31*1)+(Q29*1)+(Q27*1)+(Q26*1)+(Q25*1)+(Q24*1)+(Q23*1)+(Q17*1) -> 0 | R163: 0
B164: П | C164: Прибыль | E164: =(E139*1) -> 0 | F164: 0 | G164: 0 | H164: 0 | I164: 0 | J164: 0 | K164: 0 | N164: =(N139*1) -> 0 | Q164: =(Q139*1) -> 0 | R164: 0
C166: Закупочные процедуры | T166: Ссылки на закупочные процедуры (торги),размещенные на электронной площадке,по статьям сметы
C167: Инвестиционная программа | D167: тыс.руб. | T167: обоснования выполненных работ (реестр расходов с указанием выполненных иных работ и услуг; - договоры на выполнение работ и услуг; - акты выполненных работ (форма КС-2); - платёжные документы)
B168: Обязательно проставьте Утвержденные тарифы и фактический полезный отпуск тепловой энергии по полугодиям
C171: При большом количестве обосновывающих материалов перед загрузкой в хранилище их необходимо преобразовать в архив

Sheet Смета № 3
B3: № | C3: Статья расхода | D3: Ед.Изм. | E3: Фактические расходы 2021 года (в отношении регулируемых источников тепловой энергии) | L3: Ссылка на поддтверждающие документы* | M3: Примечание
E4: 1 полугодие | H4: 2 полугодие | K4: Итого 2021 год | N4: *Ссылки на обоснование понесённых расходов прикреплять в соответствующую строку расходов
E5: Передача | F5: Производство | G5: Всего | H5: Передача | I5: Производство | J5: Всего
A6: 1 | C6: Теплоэнергия | D6: руб/Гкал | E6: =(E7*1)+(E147*0)+(E156*1) -> 0 | F6: =(F7*1)+(F147*0)+(F156*1) -> 17420.7472 | G6: =(E6*1)+(F6*1) -> 17420.7472 | H6: =(H7*1)+(H147*0)+(H156*1) -> 0 | I6: =(I7*1)+(I147*0)+(I156*1) -> 13885.3743 | J6: =(H6*1)+(I6*1) -> 13885.3743 | K6: =(G6*1)+(J6*1) -> 31306.1215
A7: 3 | B7: 36 | C7: НВВ | F7: =F157*F158 -> 17420.7472 | G7: =F7 -> 17420.7472 | I7: =I157*I158 -> 13885.3743 | J7: =I7 -> 13885.3743 | K7: =G7+J7 -> 31306.1215
A8: 302 | B8: 31 | C8: Итого расходов | D8: тыс. руб. | E8: =(E13*1)+E10+E12+E143 -> 671.8783692 | F8: =(F13*1)+F10+F12+F143 -> 17564.08032 | G8: =(E8*1)+(F8*1) -> 18235.95869 | H8: =(H13*1)+H10+H12+H143 -> 671.8783692 | I8: 13422.50948 | J8: =(H8*1)+(I8*1) -> 14094.38785 | K8: 32330.34653
A9: 332 | C9: Налог на прибыль (нерассчетная) | E9: =(E10*1) -> 0 | F9: =(F10*1) -> 60.46 | G9: 60.46 | H9: =(H10*1) -> 0 | I9: =(I10*1) -> 45.24 | J9: 45.24 | K9: 105.7
A10: 274 | B10: 30 | C10: Налог на прибыль | D10: тыс.руб. | F10: 60.46 | G10: 60.46 | I10: 45.24 | J10: 45.24 | K10: 105.7 | L10: https://portal.eias.ru/Portal/DownloadPage.aspx?type=12&guid=68bff4a7-3ba8-412a-801a-2f6529e4b54f
A11: 334 | C11: Налог по упрощённой системе налогообложения | D11: тыс. руб. | E11: =(E12*1) -> 0 | F11: =(F12*1) -> 0 | G11: 0 | H11: =(H12*1) -> 0 | I11: =(I12*1) -> 0 | J11: 0 | K11: 0 | M11: - налоговая декларация
A12: 335 | C12: Налог по упрощённой системе налогообложения | D12: тыс.руб. | G12: 0 | J12: 0 | K12: =(G12*1)+(J12*1) -> 0
A13: 6 | B13: 31.1 | C13: Итого расходов (без налога на прибыль) | D13: тыс. руб. | E13: =(E14*1)+(E30*1)+(E42*1)+(E63*1)+(E69*1)+(E78*1)+(E83*1)+(E91*1)+(E92*1)+(E97*1)+(E110*1)+(E111*1)+(E112*1)+(E113*1)+(E114*1)+(E115*1)+(E116*1)+(E119*1)+(E120*1)+(E130*1)+(E131*1)+(E134*1)+(E135*1)+(E136*1)+(E137*-1) -> 671.8783692 | F13: =(F14*1)+(F30*1)+(F42*1)+(F63*1)+(F69*1)+(F78*1)+(F83*1)+(F91*1)+(F92*1)+(F97*1)+(F110*1)+(F111*1)+(F112*1)+(F113*1)+(F114*1)+(F115*1)+(F116*1)+(F119*1)+(F120*1)+(F130*1)+(F131*1)+(F134*1)+(F135*1)+(F136*1)+(F137*-1) -> 17503.62032 | G13: 18175.49869 | H13: =(H14*1)+(H30*1)+(H42*1)+(H63*1)+(H69*1)+(H78*1)+(H83*1)+(H91*1)+(H92*1)+(H97*1)+(H110*1)+(H111*1)+(H112*1)+(H113*1)+(H114*1)+(H115*1)+(H116*1)+(H119*1)+(H120*1)+(H130*1)+(H131*1)+(H134*1)+(H135*1)+(H136*1)+(H137*-1) -> 671.8783692 | I13: =(I14*1)+(I30*1)+(I42*1)+(I63*1)+(I69*1)+(I78*1)+(I83*1)+(I91*1)+(I92*1)+(I97*1)+(I110*1)+(I111*1)+(I112*1)+(I113*1)+(I114*1)+(I115*1)+(I116*1)+(I119*1)+(I120*1)+(I130*1)+(I131*1)+(I134*1)+(I135*1)+(I136*1)+(I137*-1) -> 13377.26948 | J13: 14049.14785 | K13: 32224.64653
A14: 39 | B14: 4 | C14: Стоимость натурального топлива с учётом транспортировки (перевозки) (топливо на технологические цели) | D14: тыс.руб. | E14: =(E15*1)+(E22*1)+(E23*1)+(E24*1)+(E25*1)+(E26*1)+(E27*0)+(E28*1)+(E29*0) -> 0 | F14: =(F15*1)+(F22*1)+(F23*1)+(F24*1)+(F25*1)+(F26*1)+(F27*0)+(F28*1)+(F29*0) -> 11905.00125 | G14: 11905.00125 | H14: =(H15*1)+(H22*1)+(H23*1)+(H24*1)+(H25*1)+(H26*1)+(H27*0)+(H28*1)+(H29*0) -> 0 | I14: =(I15*1)+(I22*1)+(I23*1)+(I24*1)+(I25*1)+(I26*1)+(I27*0)+(I28*1)+(I29*0) -> 8475.604146 | J14: =(H14*1)+(I14*1) -> 8475.604146 | K14: 20380.6054 | L14: https://portal.eias.ru/Portal/DownloadPage.aspx?type=12&guid=39fb5dd7-244b-44c1-acf4-c0045907f3c0 | M14: - счета-фактуры; - товарные накладные на поставку газа; - акты выполненных работ на транспортировку газа
A15: 41 | C15: Газ | D15: тыс.руб. | E15: =(E16*1)+(E17*0) -> 0 | F15: =(F16*1)+(F17*0) -> 11905.00125 | G15: 11905.00125 | H15: =(H16*1)+(H17*0) -> 0 | I15: =(I16*1)+(I17*0) -> 8475.604146 | J15: 8475.604146 | K15: 20380.6054
A16: 45 | B16: 4.2 | C16: Газ природный | D16: тыс.руб. | E16: =E21*E20 -> 0 | F16: =F20*F21/1000 -> 11905.00125 | G16: 11905.00125 | H16: =H21*H20 -> 0 | I16: =I20*I21/1000 -> 8475.604146 | J16: 8475.604146 | K16: 20380.6054
A17: 328 | B17: 4.30 | C17: Расчетные данные | E17: =(E18*0)+(E19*0)+(E20*1)+(E21*1) -> 0 | F17: =(F18*0)+(F19*0)+(F20*1)+(F21*1) -> 8557.0434 | G17: 8557.0434 | H17: =(H18*0)+(H19*0)+(H20*1)+(H21*1) -> 0 | I17: =(I18*0)+(I19*0)+(I20*1)+(I21*1) -> 8212.1617 | J17: 8212.1617 | K17: 16769.2051
A18: 42 | B18: 4.2.1 | C18: Удельный расход условного топлива | D18: кг ут Гкал | G18: 0 | J18: 0 | K18: =(G18+J18)/2 -> 0
A19: 43 | B19: 4.2.2 | C19: Калорийный эквивалент | F19: 1.17 | G19: 1.17 | I19: 1.17 | J19: 1.17 | K19: =(G19+J19)/2 -> 1.17
A20: 44 | B20: 4.2.3 | C20: Объем | D20: тыс. м куб. | F20: 1748.552 | G20: =F20 -> 1748.552 | I20: 1210.516 | J20: 1210.516 | K20: =((G20*1)+(J20*1)) -> 2959.068
A21: 291 | B21: 4.2.4 | C21: Цена | D21: руб./тыс. м3 | F21: 6808.4914 | G21: =F21 -> 6808.4914 | I21: 7001.6457 | J21: =I21 -> 7001.6457 | K21: =K16/K20*1000 -> 6887.508297
A22: 46 | B22: 4.4 | C22: Мазут | D22: тыс.руб. | G22: 0 | J22: 0 | K22: 0
A23: 48 | B23: 4.6 | C23: Дизельное топливо | D23: тыс.руб. | E23: 0 | G23: 0 | H23: 0 | J23: 0 | K23: 0
A24: 49 | B24: 4.7 | C24: Дрова | D24: тыс.руб. | E24: 0 | G24: 0 | H24: 0 | J24: 0 | K24: 0
A25: 50 | B25: 4.8 | C25: Щепа | D25: тыс.руб. | E25: 0 | G25: 0 | H25: 0 | J25: 0 | K25: 0
A26: 55 | B26: 4.13 | C26: Электроэнергия | D26: тыс.руб. | E26: 0 | G26: 0 | H26: 0 | J26: 0 | K26: 0
A27: 58 | B27: 4.13.1 | C27: объём энергии | D27: тыс.кВт*ч | E27: 0 | G27: 0 | H27: 0 | J27: 0 | K27: 0
A28: 40 | B28: 4.1 | C28: Уголь | D28: тыс.руб. | E28: 0 | G28: 0 | H28: 0 | J28: 0 | K28: 0
A29: 333 | C29: Нормативный запас топлива | D29: т | E29: 0 | F29: 0 | G29: 0 | H29: 0 | I29: 0 | J29: 0 | K29: 0
A30: 60 | B30: 5 | C30: Энергия, в том числе | D30: тыс.руб. | E30: =(E31*1)+(E34*1)+(E39*1) -> 0 | F30: =(F31*1)+(F34*1)+(F39*1) -> 2181.72304 | G30: 2181.72304 | H30: =(H31*1)+(H34*1)+(H39*1) -> 0 | I30: =(I31*1)+(I34*1)+(I39*1) -> 1608.24928 | J30: 1608.24928 | K30: 3789.97232 | L30: https://portal.eias.ru/Portal/DownloadPage.aspx?type=12&guid=630442dc-2ac7-4130-80ba-72a1a0038cbf | M30: - счета за потреблённую электроэнергию. - справка-расчёт отнесения объёмов электроэнергии на регулируемый вид деятельности (в случае осуществления ТСО иных видов деятельности)
A31: 61 | B31: 5.3.0. | C31: Затраты на покупную мощность | D31: тыс.руб. | E31: =(E32*1)*(E33*1) -> 0 | F31: =(F32*1)*(F33*1) -> 0 | G31: =(E31*1)+(F31*1) -> 0 | H31: =(H32*1)*(H33*1) -> 0 | I31: =(I32*1)*(I33*1) -> 0 | J31: =(H31*1)+(I31*1) -> 0 | K31: =(G31*1)+(J31*1) -> 0
A32: 316 | B32: 5.3.1 | C32: Цена | D32: руб./кВт*мес. | G32: =G31/G33 ->  | J32: =J31/J33 ->  | K32: =K31/K33 -> 
A33: 317 | B33: 5.3.2 | C33: Объем | D33: МВт | G33: =(E33*1)+(F33*1) -> 0 | J33: =(H33*1)+(I33*1) -> 0 | K33: =(G33*1)+(J33*1) -> 0
A34: 289 | B34: 5.2.0 | C34: затраты на покупную электрическую энергию | D34: тыс.руб. | E34: =(E35*1)+(E36*0)+(E37*0)+(E38*0) -> 0 | F34: =(F35*1)+(F36*0)+(F37*0)+(F38*0) -> 2181.72304 | G34: 2181.72304 | H34: =(H35*1)+(H36*0)+(H37*0)+(H38*0) -> 0 | I34: =(I35*1)+(I36*0)+(I37*0)+(I38*0) -> 1608.24928 | J34: 1608.24928 | K34: =(G34*1)+(J34*1) -> 3789.97232
A35: 314 | B35: 5.2 | C35: Затраты на покупную электрическую энергию | D35: тыс.руб. | E35: =E37*E38 -> 0 | F35: =F37*F38 -> 2181.72304 | G35: 2181.72304 | H35: =H37*H38 -> 0 | I35: =I37*I38 -> 1608.24928 | J35: 1608.24928 | K35: =(G35*1)+(J35*1) -> 3789.97232
A36: 287 | B36: 5.2.1.1 | C36: Удельный расход электрической энергии | D36: кВт*ч/Гкал | E36: 0 | F36: 34 | H36: 0 | I36: 35
A37: 315 | B37: 5.2.1 | C37: Объем | D37: тыс.кВт*час | F37: 370.16 | G37: 370.16 | I37: 286.88 | J37: =(H37*1)+(I37*1) -> 286.88 | K37: =(G37*1)+(J37*1) -> 657.04
A38: 92 | B38: 5.2.2 | C38: тариф на энергию | D38: руб./кВт*ч | F38: 5.894 | G38: =G35/G37 -> 5.894 | I38: 5.606 | J38: =J35/J37 -> 5.606 | K38: =K35/K37 -> 5.768252039
A39: 62 | B39: 5.1.0 | C39: затраты на покупную тепловую энергию | D39: тыс.руб. | E39: =(E40*1)*(E41*1) -> 0 | F39: =(F40*1)*(F41*1) -> 0 | G39: =(E39*1)+(F39*1) -> 0 | H39: =(H40*1)*(H41*1) -> 0 | I39: =(I40*1)*(I41*1) -> 0 | J39: =(H39*1)+(I39*1) -> 0 | K39: =(G39*1)+(J39*1) -> 0
A40: 284 | B40: 5.1.2 | C40: Тариф на тепловую энергию | D40: руб./Гкал | G40: =G39/G41 ->  | J40: =J39/J41 ->  | K40: =K39/K41 -> 
A41: 286 | B41: 5.1.1 | C41: Объем | D41: тыс. Гкал | G41: =(E41*1)+(F41*1) -> 0 | J41: =(H41*1)+(I41*1) -> 0 | K41: =(G41*1)+(J41*1) -> 0
A42: 168 | B42: 6 | C42: Затраты на оплату труда | D42: тыс.руб. | E42: =(E43*1)+(E47*1)+(E51*1)+(E55*1)+(E59*1) -> 507.18972 | F42: =(F43*1)+(F47*1)+(F51*1)+(F55*1)+(F59*1) -> 933.1404528 | G42: =(E42*1)+(F42*1) -> 1440.330173 | H42: =(H43*1)+(H47*1)+(H51*1)+(H55*1)+(H59*1) -> 507.18972 | I42: =(I43*1)+(I47*1)+(I51*1)+(I55*1)+(I59*1) -> 933.1404528 | J42: =(H42*1)+(I42*1) -> 1440.330173 | K42: =(G42*1)+(J42*1) -> 2880.660346 | L42: https://portal.eias.ru/Portal/DownloadPage.aspx?type=12&guid=2f6fc9bd-2a1c-4945-bb7c-ddab723a5858 | M42: - штатное расписание; - статистическая форма № П-4
A43: 174 | B43: 6.1 | C43: оплата труда основных производственных рабочих | D43: тыс.руб. | E43: =(E44*0.001)*(E45*1)*(E46*1) -> 0 | F43: =(F44*0.001)*(F45*1)*(F46*1) -> 462.9961728 | G43: =(E43*1)+(F43*1) -> 462.9961728 | H43: =(H44*0.001)*(H45*1)*(H46*1) -> 0 | I43: =(I44*0.001)*(I45*1)*(I46*1) -> 462.9961728 | J43: =(H43*1)+(I43*1) -> 462.9961728 | K43: =(G43*1)+(J43*1) -> 925.9923456
A44: 175 | B44: 6.1.1 | C44: среднемесячная оплата труда основных производственных рабочих | D44: руб./мес. | F44: 30142.98 | G44: =G43/G46/G45*1000 -> 30142.98 | I44: 30142.98 | J44: =J43/J46/J45*1000 -> 30142.98 | K44: =K43/K46/K45*1000 -> 30142.98
A45: 176 | B45: 6.1.2 | C45: численность основного производственного персонала, относимого на регулируемый вид деятельности | D45: ед. | F45: 2.56 | G45: =(E45*1)+(F45*1) -> 2.56 | I45: 2.56 | J45: =(H45*1)+(I45*1) -> 2.56 | K45: =(G45+J45)/2 -> 2.56
A46: 275 | B46: 6.1.6 | C46: Количество месяцев | D46: мес. | E46: 6 | F46: 6 | G46: 6 | H46: 6 | I46: 6 | J46: 6 | K46: =(G46*1)+(J46*1) -> 12
A47: 181 | B47: 6.2 | C47: оплата труда ремонтного персонала | D47: тыс.руб. | E47: =(E48*0.001)*(E49*1)*(E50*1) -> 362.37924 | F47: =(F48*0.001)*(F49*1)*(F50*1) -> 0 | G47: =(E47*1)+(F47*1) -> 362.37924 | H47: =(H48*0.001)*(H49*1)*(H50*1) -> 362.37924 | I47: =(I48*0.001)*(I49*1)*(I50*1) -> 0 | J47: =(H47*1)+(I47*1) -> 362.37924 | K47: =(G47*1)+(J47*1) -> 724.75848
A48: 182 | B48: 6.2.1 | C48: среднемесячная оплата труда ремонтного персонала | D48: руб./мес. | E48: 30198.27 | G48: =G47/G49/G50*1000 -> 30198.27 | H48: 30198.27 | J48: =J47/J49/J50*1000 -> 30198.27 | K48: =K47/K50/K49*1000 -> 30198.27
A49: 183 | B49: 6.2.2 | C49: численность ремонтного персонала, относимого на регулируемый вид деятельности | D49: ед. | E49: 2 | G49: =E49+F49 -> 2 | H49: 2 | J49: =H49+I49 -> 2 | K49: =(G49+J49)/2 -> 2
A50: 276 | B50: 6.2.6 | C50: Количество месяцев | E50: 6 | F50: 6 | G50: 6 | H50: 6 | I50: 6 | J50: 6 | K50: =(G50*1)+(J50*1) -> 12
A51: 188 | B51: 6.3 | C51: оплата труда цехового персонала | D51: тыс.руб. | E51: =(E52*0.001)*(E53*1)*(E54*1) -> 72.2964 | F51: =(F52*0.001)*(F53*1)*(F54*1) -> 397.6302 | G51: =(E51*1)+(F51*1) -> 469.9266 | H51: =(H52*0.001)*(H53*1)*(H54*1) -> 72.2964 | I51: =(I52*0.001)*(I53*1)*(I54*1) -> 397.6302 | J51: =(H51*1)+(I51*1) -> 469.9266 | K51: =(G51*1)+(J51*1) -> 939.8532
A52: 189 | B52: 6.3.1 | C52: среднемесячная оплата труда цехового персонала | D52: руб./мес. | E52: 30123.5 | F52: 30123.5 | G52: =G51/G53/G54*1000 -> 30123.5 | H52: 30123.5 | I52: 30123.5 | J52: =J51/J53/J54*1000 -> 30123.5 | K52: =K51/K54/K53*1000 -> 30123.5
A53: 190 | B53: 6.3.2 | C53: численность цехового персонала, относимого на регулируемый вид деятельности | D53: ед. | E53: 0.4 | F53: 2.2 | G53: =E53+F53 -> 2.6 | H53: 0.4 | I53: 2.2 | J53: =H53+I53 -> 2.6 | K53: =(G53+J53)/2 -> 2.6
A54: 278 | B54: 6.0.6 | C54: Количесво месяцев | E54: 6 | F54: 6 | G54: 6 | H54: 6 | I54: 6 | J54: 6 | K54: =(G54*1)+(J54*1) -> 12
A55: 192 | B55: 6.4 | C55: оплата труда АУП | D55: тыс.руб. | E55: =(E56*0.001)*(E57*1)*(E58*1) -> 72.51408 | F55: =(F56*0.001)*(F57*1)*(F58*1) -> 72.51408 | G55: =(E55*1)+(F55*1) -> 145.02816 | H55: =(H56*0.001)*(H57*1)*(H58*1) -> 72.51408 | I55: =(I56*0.001)*(I57*1)*(I58*1) -> 72.51408 | J55: =(H55*1)+(I55*1) -> 145.02816 | K55: =(G55*1)+(J55*1) -> 290.05632
A56: 193 | B56: 6.4.1 | C56: среднемесячная оплата труда АУП | D56: руб./мес. | E56: 50357 | F56: 50357 | G56: =G55/G57/G58*1000 -> 50357 | H56: 50357 | I56: 50357 | J56: =J55/J57/J58*1000 -> 50357 | K56: =K55/K58/K57*1000 -> 50357
A57: 194 | B57: 6.4.2 | C57: численность АУП, относимого на регулируемый вид деятельности | D57: ед. | E57: 0.24 | F57: 0.24 | G57: =E57+F57 -> 0.48 | H57: 0.24 | I57: 0.24 | J57: =H57+I57 -> 0.48 | K57: =(G57+J57)/2 -> 0.48
A58: 277 | B58: 6.4.3 | C58: Количество месяцев | E58: 6 | F58: 6 | G58: 6 | H58: 6 | I58: 6 | J58: 6 | K58: =(G58*1)+(J58*1) -> 12
A59: 196 | B59: 6.5 | C59: оплата труда прочего персонала, относимого на регулируемый вид деятельности | D59: тыс.руб. | E59: =(E60*0.001)*(E61*1)*(E62*1) -> 0 | F59: =(F60*0.001)*(F61*1)*(F62*1) -> 0 | G59: =(E59*1)+(F59*1) -> 0 | H59: =(H60*0.001)*(H61*1)*(H62*1) -> 0 | I59: =(I60*0.001)*(I61*1)*(I62*1) -> 0 | J59: =(H59*1)+(I59*1) -> 0 | K59: =(G59*1)+(J59*1) -> 0
A60: 197 | B60: 6.5.1 | C60: среднемесячная оплата труда прочего персонала, относимого на регулируемый вид деятельности | D60: руб./мес. | G60: =G59/G61/G62*1000 ->  | J60: =J59/J61/J62*1000 ->  | K60: =K59/K62/K61*1000 -> 
A61: 198 | B61: 6.5.2 | C61: численность прочего персонала, относимого на регулируемый вид деятельности | D61: ед. | G61: =E61+F61 -> 0 | J61: =H61+I61 -> 0 | K61: =(G61+J61)/2 -> 0
A62: 279 | B62: 6.5.3. | C62: Количество месяцев | E62: 6 | F62: 6 | G62: 6 | H62: 6 | I62: 6 | J62: 6 | K62: =(G62*1)+(J62*1) -> 12
A63: 325 | B63: 7.9 | C63: Отчисления на социальные нужды | D63: тыс. руб. | E63: =(E64*1)+(E65*1)+(E66*1)+(E67*1)+(E68*1) -> 155.4536492 | F63: =(F64*1)+(F65*1)+(F66*1)+(F67*1)+(F68*1) -> 286.0075488 | G63: =(E63*1)+(F63*1) -> 441.461198 | H63: =(H64*1)+(H65*1)+(H66*1)+(H67*1)+(H68*1) -> 155.4536492 | I63: =(I64*1)+(I65*1)+(I66*1)+(I67*1)+(I68*1) -> 286.0075488 | J63: =(H63*1)+(I63*1) -> 441.461198 | K63: =(G63*1)+(J63*1) -> 882.9223959 | L63: https://portal.eias.ru/Portal/DownloadPage.aspx?type=12&guid=c176e47e-f865-4ca7-88a6-a031363d13be
A64: 202 | B64: 7.1 | C64: отчисления на соц. нужды от заработной платы основных производственных рабочих | D64: тыс.руб. | E64: =E43*E151/100 -> 0 | F64: =F43*F151/100 -> 141.908327 | G64: =(E64*1)+(F64*1) -> 141.908327 | H64: =H43*H151/100 -> 0 | I64: =I43*I151/100 -> 141.908327 | J64: =(H64*1)+(I64*1) -> 141.908327 | K64: 283.8166539
A65: 203 | B65: 7.2 | C65: отчисления на соц. нужды от заработной платы ремонтного персонала | D65: тыс.руб. | E65: =E47*E151/100 -> 111.0692371 | F65: =F47*F151/100 -> 0 | G65: 111.0692371 | H65: =H47*H151/100 -> 111.0692371 | I65: =I47*I151/100 -> 0 | J65: 111.0692371 | K65: 222.1384741
A66: 204 | B66: 7.3 | C66: отчисления на соц. нужды от заработной платы цехового персонала | D66: тыс.руб. | E66: =E51*E151/100 -> 22.1588466 | F66: =F51*F151/100 -> 121.8736563 | G66: 144.0325029 | H66: =H51*H151/100 -> 22.1588466 | I66: =I51*I151/100 -> 121.8736563 | J66: 144.0325029 | K66: 288.0650058
A67: 205 | B67: 7.4 | C67: отчисления на соц. нужды от заработной платы АУП | D67: тыс.руб. | E67: =E55*E151/100 -> 22.22556552 | F67: =F55*F151/100 -> 22.22556552 | G67: 44.45113104 | H67: =H55*H151/100 -> 22.22556552 | I67: =I55*I151/100 -> 22.22556552 | J67: 44.45113104 | K67: 88.90226208
A68: 206 | B68: 7.5. | C68: отчисления на соц. нужды от заработной платы прочего персонала | D68: тыс.руб. | E68: =E59*E151/100 -> 0 | F68: =F59*F151/100 -> 0 | G68: 0 | H68: =H59*H151/100 -> 0 | I68: =I59*I151/100 -> 0 | J68: 0 | K68: 0
A69: 207 | B69: 8.0. | C69: Холодная вода | D69: тыс.руб. | E69: =(E70*1)+(E71*0)+(E72*0)+(E73*0)+(E74*1)+(E75*0)+(E76*0)+(E77*0) -> 0 | F69: =(F70*1)+(F71*0)+(F72*0)+(F73*0)+(F74*1)+(F75*0)+(F76*0)+(F77*0) -> 271.14048 | G69: 271.14048 | H69: =(H70*1)+(H71*0)+(H72*0)+(H73*0)+(H74*1)+(H75*0)+(H76*0)+(H77*0) -> 0 | I69: =(I70*1)+(I71*0)+(I72*0)+(I73*0)+(I74*1)+(I75*0)+(I76*0)+(I77*0) -> 243.6522 | J69: 243.6522 | K69: 514.79268
A70: 312 | B70: 8 | C70: Холодная вода питьевая | D70: тыс.руб. | E70: =E72*E73 -> 0 | F70: =F72*F73 -> 271.14048 | G70: =(E70*1)+(F70*1) -> 271.14048 | H70: =H72*H73 -> 0 | I70: =I72*I73 -> 243.6522 | J70: 243.6522 | K70: 514.79268 | L70: https://portal.eias.ru/Portal/DownloadPage.aspx?type=12&guid=ea82306f-43cc-4d4b-b222-00c90ea407e1 | M70: - счета-фактуры на приобретение воды; - договор на питьевую воду; - акты выполненных работ
A71: 293 | B71: 8.1.3 | C71: Удельный расход питьевой воды | D71: м куб/Гкал | E71: 0 | F71: 1.02 | G71: 1.02 | H71: 0 | I71: 1.2 | J71: 1.2
A72: 208 | B72: 8.1.1 | C72: Цена питьевой воды | D72: руб./куб.м | F72: 24.48 | G72: =G70/G73 -> 24.48 | I72: 25.08 | J72: =J70/J73 -> 25.08 | K72: =K70/K73 -> 24.76036169
A73: 209 | B73: 8.1.2 | C73: Объём питьевой воды | D73: тыс.куб.м | F73: 11.076 | G73: 11.076 | I73: 9.715 | J73: =(H73*1)+(I73*1) -> 9.715 | K73: 20.791
A74: 327 | B74: 8.2. | C74: Холодная вода техническая | D74: тыс.руб. | E74: =E76*E77 -> 0 | F74: =F76*F77 -> 0 | G74: =(E74*1)+(F74*1) -> 0 | H74: =H76*H77 -> 0 | I74: =I76*I77 -> 0 | J74: =(H74*1)+(I74*1) -> 0 | K74: =(G74*1)+(J74*1) -> 0 | M74: - счета-фактуры на приобретение воды; - договор на техническую воду; - акты выполненных работ
A75: 295 | B75: 8.2.3 | C75: Удельный расход технической воды | D75: тыс.руб. | E75: 0 | F75: 0 | G75: 0 | H75: 0 | I75: 0 | J75: 0
A76: 296 | B76: 8.2.1 | C76: Цена технической воды | D76: руб./куб. м | G76: =G74/G77 ->  | J76: =J74/J77 ->  | K76: =K74/K77 -> 
A77: 297 | B77: 8.2.2 | C77: Объем технической воды | D77: тыс. м куб. | G77: 0 | J77: 0 | K77: 0
A78: 210 | C78: Водоотведение | D78: тыс.руб. | E78: =(E79*1)+(E80*0)+(E81*0) -> 0 | F78: =(F79*1)+(F80*0)+(F81*0) -> 185.96604 | G78: 185.96604 | H78: =(H79*1)+(H80*0)+(H81*0) -> 0 | I78: =(I79*1)+(I80*0)+(I81*0) -> 167.97235 | J78: 167.97235 | K78: 353.93839
A79: 318 | B79: 9 | C79: Водоотведение | D79: тыс.руб. | E79: =E80*E81 -> 0 | F79: =F80*F81 -> 185.96604 | G79: =(E79*1)+(F79*1) -> 185.96604 | H79: =H80*H81 -> 0 | I79: =I80*I81 -> 167.97235 | J79: =(H79*1)+(I79*1) -> 167.97235 | K79: =(G79*1)+(J79*1) -> 353.93839 | L79: https://portal.eias.ru/Portal/DownloadPage.aspx?type=12&guid=e26afa35-f81c-4385-836b-7b17d671d66f | M79: - счета-фактуры на водоотведение; - договор на водоотведение; - акты выполненных работ
A80: 211 | B80: 9.1 | C80: Цена | D80: руб./куб.м | F80: 16.79 | G80: =G78/G81 -> 16.79 | I80: 17.29 | J80: =J78/J81 -> 17.29 | K80: =K79/K81 -> 17.02363475
A81: 282 | B81: 9.2 | C81: Объём | D81: тыс.куб.м | F81: 11.076 | G81: 11.076 | I81: 9.715 | J81: =(H81*1)+(I81*1) -> 9.715 | K81: =(G81*1)+(J81*1) -> 20.791
A82: 299 | B82: 9.2.1 | C82: Удельный расход стоков | D82: м куб./Гкал | E82: 0 | F82: 0 | G82: 0 | H82: 0 | I82: 0 | J82: 0
A83: 215 | B83: 12 | C83: Расходы на приобретение сырья и материалов | D83: тыс.руб. | E83: =(E84*1)+(E85*1)+(E86*1)+(E87*1)+(E88*1)+(E89*1)+(E90*1) -> 9.235 | F83: =(F84*1)+(F85*1)+(F86*1)+(F87*1)+(F88*1)+(F89*1)+(F90*1) -> 64.644 | G83: =(E83*1)+(F83*1) -> 73.879 | H83: =(H84*1)+(H85*1)+(H86*1)+(H87*1)+(H88*1)+(H89*1)+(H90*1) -> 9.235 | I83: =(I84*1)+(I85*1)+(I86*1)+(I87*1)+(I88*1)+(I89*1)+(I90*1) -> 38.328 | J83: =(H83*1)+(I83*1) -> 47.563 | K83: =(G83*1)+(J83*1) -> 121.442 | L83: https://portal.eias.ru/Portal/DownloadPage.aspx?type=12&guid=186180ae-36ca-4dfc-bc1c-9d4362fce3a3
A84: 216 | B84: 12.1 | C84: Реагенты, фильтрующие и ионообменные материалы для водоподготовки | D84: тыс.руб. | F84: 56.008 | G84: 56.008 | I84: 29.693 | J84: 29.693 | K84: =(G84*1)+(J84*1) -> 85.701 | L84: https://portal.eias.ru/Portal/DownloadPage.aspx?type=12&guid=4249a147-e673-4cf6-ac63-468280c22e39 | M84: - реестр расходов на химреагенты (объёмы, цены, договоры поставки)
A85: 217 | B85: 12.2 | C85: ГСМ | D85: тыс.руб. | G85: 0 | J85: 0 | K85: 0 | M85: - материальный отчёт по ГСМ (объём, цена, затраты)
A86: 218 | B86: 12.3 | C86: На текущий и капитальный ремонт | D86: тыс.руб. | G86: 0 | J86: 0 | K86: 0 | M86: - бухгалтерский учёт сырья и материалов (по каждомуу полугодию, по каждому материально-ответственному лицу)
A87: 219 | B87: 12.4 | C87: На текущее содержание и техническое обслуживание | D87: тыс.руб. | G87: 0 | J87: 0 | K87: 0 | M87: - бухгалтерский учёт сырья и материалов (по каждомуу полугодию, по каждому материально-ответственному лицу)
A88: 220 | B88: 12.5 | C88: Специальная одежда | D88: тыс.руб. | E88: 9.235 | F88: 8.636 | G88: 17.871 | H88: 9.235 | I88: 8.635 | J88: 17.87 | K88: 35.741 | L88: https://portal.eias.ru/Portal/DownloadPage.aspx?type=12&guid=051b58cc-854a-49ff-879e-686986ae4b21 | M88: - реестр расходов на спецодежду (количество, цены, обоснования)
A89: 221 | B89: 12.6 | C89: Хозяйственный инвентарь и другие вспомогательные материалы | D89: тыс.руб. | G89: 0 | J89: 0 | K89: 0 | M89: - реестр расходов (количество, цены, обоснования)
A90: 222 | B90: 12.7 | C90: Прочие расходы | D90: тыс.руб. | G90: 0 | J90: 0 | K90: 0
A91: 223 | B91: 13 | C91: Ремонт основных средств, выполняемый подрядным способом | D91: тыс.руб. | F91: 239.335 | G91: 239.335 | I91: 230 | J91: 230 | K91: 469.335 | L91: https://portal.eias.ru/Portal/DownloadPage.aspx?type=12&guid=65c6768d-6514-4706-964a-8189ca4580ab | M91: - реестр выполненных работ (с указанием реквизитов договора); - договоры на выполнение ремонтных работ; - акты выполненных работ (форма КС-2); - платёжные документы; - подтверждение проведения конкурсных процедур
A92: 224 | B92: 14 | C92: Расходы на оплату работ и услуг производственного характера, выполняемых по договорам со сторонними организациями | D92: тыс.руб. | E92: =(E93*1)+(E94*1)+(E95*1)+(E96*1) -> 0 | F92: =(F93*1)+(F94*1)+(F95*1)+(F96*1) -> 340.067 | G92: 340.067 | H92: =(H93*1)+(H94*1)+(H95*1)+(H96*1) -> 0 | I92: =(I93*1)+(I94*1)+(I95*1)+(I96*1) -> 307.82 | J92: 307.82 | K92: 647.887 | L92: https://portal.eias.ru/Portal/DownloadPage.aspx?type=12&guid=4ecb1ab5-362b-4c5f-9473-b29c17f31cb8
A93: 225 | B93: 14.1 | C93: транспортные услуги | D93: тыс.руб. | G93: 0 | J93: 0 | K93: 0 | M93: - реестр расходов (количество, цены, обоснования)
A94: 226 | B94: 14.2 | C94: работы по техническому регламенту | D94: тыс.руб. | F94: 340.067 | G94: 340.067 | I94: 307.82 | J94: 307.82 | K94: 647.887 | L94: https://portal.eias.ru/Portal/DownloadPage.aspx?type=12&guid=4ecb1ab5-362b-4c5f-9473-b29c17f31cb8 | M94: - реестр выполненных работ; - сопутствующие обоснования
A95: 227 | B95: 14.3 | C95: прочие услуги вспомогательных производств | D95: тыс.руб. | G95: 0 | J95: 0 | K95: 0
A96: 228 | B96: 14.4 | C96: иные работы и услуги производственного характера | D96: тыс.руб. | G96: 0 | J96: 0 | K96: 0
A97: 229 | B97: 15 | C97: Расходы на оплату иных работ и услуг, выполняемых по договорам с организациями, включая: | D97: тыс.руб. | E97: =(E98*1)+(E99*1)+(E100*1)+(E101*1)+(E102*1)+(E103*1)+(E104*1)+(E105*1)+(E106*1)+(E107*1)+(E108*1)+(E109*1) -> 0 | F97: =(F98*1)+(F99*1)+(F100*1)+(F101*1)+(F102*1)+(F103*1)+(F104*1)+(F105*1)+(F106*1)+(F107*1)+(F108*1)+(F109*1) -> 3.5 | G97: 3.5 | H97: =(H98*1)+(H99*1)+(H100*1)+(H101*1)+(H102*1)+(H103*1)+(H104*1)+(H105*1)+(H106*1)+(H107*1)+(H108*1)+(H109*1) -> 0 | I97: =(I98*1)+(I99*1)+(I100*1)+(I101*1)+(I102*1)+(I103*1)+(I104*1)+(I105*1)+(I106*1)+(I107*1)+(I108*1)+(I109*1) -> 0 | J97: 0 | K97: 3.5 | L97: https://portal.eias.ru/Portal/DownloadPage.aspx?type=12&guid=d2bd18e0-dfa1-4bbb-9751-dc48ad7879fd | M97: Ссылки на обоснование понесённых расходов прикреплять в соответствующую строку расходов (с обязательным реестром расходов)
A98: 232 | B98: 15.3 | C98: коммунальные услуги | D98: тыс.руб. | G98: 0 | J98: 0 | K98: 0
A99: 236 | B99: 15.7 | C99: расходы на аудиторские услуги | D99: тыс.руб. | G99: 0 | J99: 0 | K99: 0
A100: 241 | B100: 15.12 | C100: иные работы и услуги | D100: тыс.руб. | G100: 0 | J100: 0 | K100: 0
A101: 230 | B101: 15.1 | C101: услуги связи | D101: тыс.руб. | G101: 0 | J101: 0 | K101: 0
A102: 231 | B102: 15.2 | C102: услуги вневедомственной охраны | D102: тыс.руб. | G102: 0 | J102: 0 | K102: 0
A103: 233 | B103: 15.4 | C103: расходы на консультационные услуги | D103: тыс.руб. | G103: 0 | J103: 0 | K103: 0
A104: 234 | B104: 15.5 | C104: расходы на юридические услуги | D104: тыс.руб. | G104: 0 | J104: 0 | K104: 0
A105: 235 | B105: 15.6 | C105: расходы на информационные услуги | D105: тыс.руб. | F105: 3.5 | G105: 3.5 | J105: 0 | K105: 3.5
A106: 237 | B106: 15.8 | C106: услуги по стратегическому управлению организацией | D106: тыс.руб. | G106: 0 | J106: 0 | K106: 0
A107: 238 | B107: 15.9 | C107: расходы по подготовке и освоению производства (пуско-наладочные работы) | D107: тыс.руб. | G107: 0 | J107: 0 | K107: 0
A108: 239 | B108: 15.10 | C108: целевые средства на НИОКР | D108: тыс.руб. | G108: 0 | J108: 0 | K108: 0
A109: 240 | B109: 15.11 | C109: средства на необязательное (дополнительное) страхование | D109: тыс.руб. | G109: 0 | J109: 0 | K109: 0
A110: 242 | B110: 16 | C110: Расходы на служебные командировки | D110: тыс.руб. | G110: 0 | J110: 0 | K110: 0
A111: 243 | B111: 17 | C111: Расходы на обучение персонала | D111: тыс.руб. | F111: 6.4 | G111: 6.4 | J111: 0 | K111: 6.4 | L111: https://portal.eias.ru/Portal/DownloadPage.aspx?type=12&guid=eed435b4-e4f2-4a07-aed3-fcf1a9a35788
A112: 244 | B112: 18 | C112: Расходы на вывод из эксплуатации (в том числе на консервацию) и вывод из консервации | D112: тыс.руб. | G112: 0 | J112: 0 | K112: 0
A113: 245 | B113: 19 | C113: Услуги банков | D113: тыс.руб. | G113: 0 | J113: 0 | K113: 0
A114: 303 | B114: 20 | C114: Прочие операционные расходы | D114: тыс.руб. | G114: 0 | J114: 0 | K114: 0
A115: 249 | B115: 21 | C115: Расходы на оплату услуг, оказываемых организациями, осуществляющими регулируемые виды деятельности | D115: тыс.руб. | G115: 0 | J115: 0 | K115: 0
A116: 250 | B116: 22 | C116: Арендная плата | D116: тыс.руб. | E116: =(E117*1)+(E118*1) -> 0 | F116: =(F117*1)+(F118*1) -> 0 | G116: 0 | H116: =(H117*1)+(H118*1) -> 0 | I116: =(I117*1)+(I118*1) -> 0 | J116: 0 | K116: 0 | M116: - реестр договоров аренды с указанием арендной платы; - платёжные документы, подтверждающие факт понесения расходов по арендной плате
A117: 251 | B117: 22.1 | C117: аренда производственных объектов | D117: тыс.руб. | G117: 0 | J117: 0 | K117: 0
A118: 252 | B118: 22.2 | C118: аренда непроизводственных объектов | D118: тыс.руб. | G118: 0 | J118: 0 | K118: 0
A119: 253 | B119: 23 | C119: Концессионная плата | D119: тыс.руб. | G119: 0 | J119: 0 | K119: 0
A120: 258 | B120: 25 | C120: Расходы на уплату налогов, сборов и других обязательных платежей, в том числе: | D120: тыс.руб. | E120: =(E121*1)+(E122*1)+(E123*1)+(E124*1) -> 0 | F120: =(F121*1)+(F122*1)+(F123*1)+(F124*1) -> 4.53 | G120: 4.53 | H120: =(H121*1)+(H122*1)+(H123*1)+(H124*1) -> 0 | I120: =(I121*1)+(I122*1)+(I123*1)+(I124*1) -> 4.33 | J120: 4.33 | K120: 8.86 | L120: https://portal.eias.ru/Portal/DownloadPage.aspx?type=12&guid=efc5edd0-8656-46d0-b0c9-7cd5e54d9a07
A121: 259 | B121: 25.1 | C121: плата за выбросы и сбросы загрязняющих веществ в окружающую среду, размещение отходов и другие виды негативного воздействия на окружающую среду в пределах установленных нормативов и (или) лимитов | D121: тыс.руб. | G121: 0 | J121: 0 | K121: 0
A122: 260 | B122: 25.2 | C122: расходы на обязательное страхование | D122: тыс.руб. | F122: 3.75 | G122: 3.75 | I122: 3.75 | J122: 3.75 | K122: 7.5 | L122: https://portal.eias.ru/Portal/DownloadPage.aspx?type=12&guid=efc5edd0-8656-46d0-b0c9-7cd5e54d9a07 | M122: - договоры на страхование; - платежные документы
A123: 261 | B123: 25.3 | C123: иные расходы | D123: тыс.руб. | G123: 0 | J123: 0 | K123: 0
A124: 262 | B124: 25.4 | C124: уплата налогов, всего | D124: тыс.руб. | E124: =(E125*1)+(E126*1)+(E127*1)+(E128*1)+(E129*1) -> 0 | F124: =(F125*1)+(F126*1)+(F127*1)+(F128*1)+(F129*1) -> 0.78 | G124: 0.78 | H124: =(H125*1)+(H126*1)+(H127*1)+(H128*1)+(H129*1) -> 0 | I124: =(I125*1)+(I126*1)+(I127*1)+(I128*1)+(I129*1) -> 0.58 | J124: 0.58 | K124: 1.36 | L124: https://portal.eias.ru/Portal/DownloadPage.aspx?type=12&guid=7ed298a3-7c22-496a-8947-af1154000ffd | M124: - налоговые декларации; - расчёт отнесения расходов на регулируемый вид деятельности в сфере теплоснабжения; - платёжные документы
A125: 267 | B125: 25.4.5 | C125: прочие налоги | D125: тыс.руб. | G125: 0 | J125: 0 | K125: 0
A126: 263 | B126: 25.4.1 | C126: налог на имущество организаций | D126: тыс.руб. | F126: 0.78 | G126: 0.78 | I126: 0.58 | J126: 0.58 | K126: =(G126*1)+(J126*1) -> 1.36
A127: 264 | B127: 25.4.2 | C127: земельный налог | D127: тыс.руб. | G127: 0 | J127: 0 | K127: 0
A128: 265 | B128: 25.4.3 | C128: транспортный налог | D128: тыс.руб. | G128: =(E128*1)+(F128*1) -> 0 | J128: =(H128*1)+(I128*1) -> 0 | K128: 0
A129: 266 | B129: 25.4.4 | C129: водный налог | D129: тыс.руб. | G129: 0 | J129: 0 | K129: 0
A130: 268 | B130: 26 | C130: Расходы по сомнительным долгам | D130: тыс.руб. | G130: 0 | J130: 0 | K130: 0
A131: 269 | B131: 27 | C131: Амортизация основных средств и нематериальных активов | D131: тыс.руб. | E131: =(E132*1)+(E133*1) -> 0 | F131: =(F132*1)+(F133*1) -> 1082.1655 | G131: 1082.1655 | H131: =(H132*1)+(H133*1) -> 0 | I131: =(I132*1)+(I133*1) -> 1082.1655 | J131: 1082.1655 | K131: 2164.331 | L131: https://portal.eias.ru/Portal/DownloadPage.aspx?type=12&guid=acaaca99-7fa2-4d4a-8de8-e5aa13d3827c | M131: - Ведомость основных производственных средств с указанием первоначальной и остаточной балансовой стоимости основных фондов, даты ввода, а также амортизационных отчислений за отчётный период (котельные и тепловые сети)
A132: 271 | B132: 27.2 | C132: Амортизация иных основных средств и нематериальных активов | D132: тыс.руб. | G132: 0 | J132: 0 | K132: 0
A133: 270 | B133: 27.1 | C133: Амортизация производственного оборудования | D133: тыс.руб. | F133: 1082.1655 | G133: 1082.1655 | I133: 1082.1655 | J133: 1082.1655 | K133: 2164.331 | L133: https://portal.eias.ru/Portal/DownloadPage.aspx?type=12&guid=9ce5e3da-8210-4c0f-a522-1aeab6ed9b90 | M133: - отчёт об использования амортизационных отчислений
A134: 272 | B134: 28 | C134: Расходы на выплаты по договорам займа и кредитным договорам, включая проценты по ним | D134: тыс.руб. | G134: 0 | J134: 0 | K134: 0
A135: 273 | B135: 29 | C135: Прочие неподконтрольные расходы | D135: тыс.руб. | G135: 0 | J135: 0 | K135: 0
A136: 13 | B136: 32 | C136: выпадающие доходы/экономия средств | D136: тыс.руб. | G136: 0 | J136: 0 | K136: 0
A137: 16 | B137: 33 | C137: Избыток средств, полученный за отчётные периоды регулирования | D137: тыс.руб. | G137: 0 | J137: 0 | K137: 0
A138: 20 | B138: 35 | C138: Прибыль | D138: тыс.руб. | G138: =G7-G8 -> -815.2114852 | H138: =(H139*1)+(H141*1)+(H143*0) -> 0 | I138: =(I139*1)+(I141*1)+(I143*0) -> 0 | J138: =J7-J8 -> -209.0135469 | K138: =(G138*1)+(J138*1) -> -1024.225032
A139: 330 | C139: нормативный уровень прибыли (нерасчетный) | E139: =(E140*1) -> 0 | F139: =(F140*1) -> 0 | G139: 0 | H139: =(H140*1) -> 0 | I139: =(I140*1) -> 0 | J139: 0 | K139: 0
A140: 22 | B140: 35.1 | C140: Нормативный уровень прибыли | D140: тыс.руб. | E140: =E143 -> 0 | F140: =F143 -> 0 | G140: 0 | H140: =H143 -> 0 | I140: =I143 -> 0 | J140: 0 | K140: 0
A141: 331 | C141: Предпринимательская прибыль | E141: =(E142*1) -> 0 | F141: =(F142*1) -> 0 | G141: 0 | H141: =(H142*1) -> 0 | I141: =(I142*1) -> 0 | J141: 0 | K141: 0
A142: 24 | B142: 35.1.1 | C142: Расчётная предпринимательская прибыль | D142: тыс.руб. | E142: 0 | F142: 0 | G142: 0 | H142: 0 | I142: 0 | J142: 0 | K142: 0
A143: 339 | C143: Прибыль составляющие | D143: тыс. руб. | E143: =(E144*1)+(E145*1)+(E146*1) -> 0 | F143: =(F144*1)+(F145*1)+(F146*1) -> 0 | G143: 0 | H143: =(H144*1)+(H145*1)+(H146*1) -> 0 | I143: =(I144*1)+(I145*1)+(I146*1) -> 0 | J143: 0 | K143: 0
A144: 27 | B144: 35.2 | C144: Денежные выплаты социального характера (по коллективному договору) | D144: тыс.руб. | J144: 0 | K144: 0
A145: 28 | B145: 35.3 | C145: Резервный фонд | D145: тыс.руб. | E145: 0 | J145: 0 | K145: 0
A146: 300 | B146: 35.4 | C146: Капитальные вложения (инвестиции) | D146: тыс.руб. | E146: 0 | G146: 0 | J146: 0 | K146: 0
A147: 283 | B147: 36 | C147: Справочные данные | E147: =(E148*0)+(E149*0)+(E150*1)+(E151*1)+(E152*1)+(E153*1)+(E154*1)+(E155*1) -> 30.65 | F147: =(F148*0)+(F149*0)+(F150*1)+(F151*1)+(F152*1)+(F153*1)+(F154*1)+(F155*1) -> 30.65 | G147: 61.3 | H147: =(H148*0)+(H149*0)+(H150*1)+(H151*1)+(H152*1)+(H153*1)+(H154*1)+(H155*1) -> 30.65 | I147: =(I148*0)+(I149*0)+(I150*1)+(I151*1)+(I152*1)+(I153*1)+(I154*1)+(I155*1) -> 30.65 | J147: 61.3 | K147: 122.6
A148: 21 | B148: 36.1 | C148: Ставка налога на прибыль | D148: % | E148: 0 | F148: 0 | G148: 0 | H148: 0 | I148: 0 | J148: 0 | K148: 0
A149: 23 | B149: 36.2 | C149: Справочно: нормативный уровень прибыли | D149: % | E149: 0 | F149: 0 | G149: 0 | H149: 0 | I149: 0 | J149: 0 | K149: 0
A150: 25 | B150: 36.3 | C150: Справочно: расчётная предпринимательская прибыль | D150: % | F150: 0 | G150: 0 | H150: 0 | I150: 0 | J150: 0 | K150: 0
A151: 201 | B151: 7.0 | C151: процент отчислений на социальные нужды | D151: % | E151: 30.65 | F151: 30.65 | G151: 61.3 | H151: 30.65 | I151: 30.65 | J151: 61.3 | K151: 122.6
A152: 304 | B152: 35.5 | C152: Индекс эффективности расходов | D152: % | E152: 0 | F152: 0 | G152: 0 | H152: 0 | I152: 0 | J152: 0 | K152: 0
A153: 305 | B153: 35.6 | C153: Индекс потребительских цен | D153: % | E153: 0 | F153: 0 | G153: 0 | H153: 0 | I153: 0 | J153: 0 | K153: 0
A154: 306 | B154: 35.7 | C154: Индекс количества активов | D154: % | E154: 0 | F154: 0 | G154: 0 | H154: 0 | I154: 0 | J154: 0 | K154: 0
A155: 336 | C155: Справочно налог по упрощённой системе налогообложения | D155: % | F155: 0 | G155: 0 | H155: 0 | I155: 0 | J155: =(H155*1)+(I155*1) -> 0 | K155: 0
A156: 308 | C156: Загрузка: | K156: =(G156*1)+(J156*1) -> 0
A157: 324 | B157: 42 | C157: полезный отпуск теплоэнергии | D157: тыс.Гкал | F157: 10.84 | G157: 10.84 | I157: 8.11 | J157: =(H157*1)+(I157*1) -> 8.11 | K157: =(G157*1)+(J157*1) -> 18.95 | M157: НЕОБХОДИМО ТАКЖЕ ЗАПОЛНИТЬ
A158: 319 | B158: 37 | C158: Утвержденный тариф | D158: руб./Гкал | F158: 1607.08 | I158: 1712.13 | K158: =(G158*1)+(J158*1) -> 0
B160: НР | C160: Неподконтрольные | E160: =(E136*1)+(E135*1)+(E134*1)+(E131*1)+(E130*1)+(E129*1)+(E128*1)+(E127*1)+(E126*1)+(E125*1)+(E123*1)+(E122*1)+(E121*1)+(E119*1)+(E117*1)+(E115*1)+(E68*1)+(E67*1)+(E66*1)+(E65*1)+(E64*1)+(E11*1)+(E10*1) -> 155.4536492 | F160: 1433.163049 | G160: 1588.616698 | H160: 155.4536492 | I160: 1417.743049 | J160: 1573.196698 | K160: 3161.813396
B161: ОР | C161: Операционные | E161: =(E118*1)+(E114*1)+(E113*1)+(E112*1)+(E111*1)+(E110*1)+(E97*1)+(E92*1)+(E91*1)+(E83*1)+(E59*1)+(E55*1)+(E51*1)+(E47*1)+(E43*1) -> 516.42472 | F161: 1587.086453 | G161: 2103.511173 | H161: 516.42472 | I161: 1509.288453 | J161: 2025.713173 | K161: 4129.224346
B162: ЭР | C162: Энергоресурсы | E162: =(E78*1)+(E74*1)+(E70*1)+(E30*1)+(E28*1)+(E26*1)+(E25*1)+(E24*1)+(E23*1)+(E22*1)+(E16*1) -> 0 | F162: 14543.83081 | G162: 14543.83081 | H162: 0 | I162: 10495.47798 | J162: 10495.47798 | K162: 25039.30879
B163: П | C163: Прибыль | E163: =(E138*1) -> 0 | F163: 0 | G163: -815.2114852 | H163: 0 | I163: 0 | J163: -209.0135469 | K163: -1024.225032
C165: Инвестиционная программа | D165: тыс.руб. | M165: обоснования выполненных работ (реестр расходов с указанием выполненных иных работ и услуг; - договоры на выполнение работ и услуг; - акты выполненных работ (форма КС-2); - платёжные документы)
B166: Обязательно проставьте Утвержденные тарифы и фактический полезный отпуск тепловой энергии по полугодиям
C169: При большом количестве обосновывающих материалов перед загрузкой в хранилище их необходимо преобразовать в архив

Sheet Приложение 4.1
EY2: Приложение 4.1
A4: Расчет полезного отпуска тепловой энергии
EY5: (тыс. Гкал)
A6: № п/п | H6: Показатели | AN6: Базовый период 2021 год (план) | CT6: Период регулирования 2021 год (факт)
AN7: всего | AW7: в том числе | CT7: всего | DC7: в том числе
AW8: вода | BD8: отборный пар | BK8: в том числе | DC8: вода | DJ8: отборный пар | DQ8: в том числе
BK9: 1,2 - 2,5 кгс/см2 | BR9: 2,5 - 7,0 кгс/см2 | BY9: 7,0 - 13,0 кгс/см2 | CF9: > 13,0 кгс/см2 | CM9: острый и редуциро-ванный пар | DQ9: 1,2 - 2,5 кгс/см2 | DX9: 2,5 - 7,0 кгс/см2 | EE9: 7,0 - 13,0 кгс/см2 | EL9: > 13,0 кгс/см2 | ES9: острый и редуциро-ванный пар
A10: 1 | H10: 2 | AN10: 3 | AW10: 4 | BD10: 5 | BK10: 6 | BR10: 7 | BY10: 8 | CF10: 9 | CM10: 10 | CT10: 11 | DC10: 12 | DJ10: 13 | DQ10: 14 | DX10: 15 | EE10: 16 | EL10: 17 | ES10: 18
A11: 1 | I11: Отпуск тепловой энергии, поставляемой с коллекторов источника тепловой энергии, всего
I12: в том числе:
I13: - ТЭЦ 25 МВт и более
I14: - ТЭЦ менее 25 МВт
I15: - котельные | AN15: 20,0712 | AW15: 20,0712 | CT15: 21,11 | DC15: 21,11
I16: - электробойлерные
A17: 2 | I17: Покупная теплоэнергия
I18: в том числе:
I19: …
A20: 3 | I20: Расход тепловой энергии на хозяйственные нужды | AN20: 0,5459 | AW20: 0,5459 | CT20: 0,58 | DC20: 0,58
A21: 4 | I21: Отпуск тепловой энергии от источника тепловой энергии (полезный отпуск) | AN21: 19,5253 | AW21: 19,5253 | CT21: 20,53 | DC21: 20,53
A22: 5 | I22: Потери тепловой энергии в сети (нормативные)* | AN22: 1,5053 | AW22: 1,5053 | CT22: 1,58 | DC22: 1,58
A23: 5.1 | I23: в том числе: | AN23: 1,5053 | AW23: 1,5053 | CT23: 1,58 | DC23: 1,58
I24: - через изоляцию
A25: 5.2 | I25: - с потерями теплоносителя
A26: 5.3 | I26: то же в % к отпуску тепловой энергии от источника тепловой энергии | AN26: 7,5 | AW26: 7,5 | CT26: 7,5 | DC26: 7,5
A27: 6 | I27: Отпуск тепловой энергии из тепловой сети (полезный отпуск), всего | AN27: 18,02 | AW27: 18,02 | CT27: 18,95 | DC27: 18,95
A29: Примечания:
F30: 1. | I30: Заполняется по каждому источнику тепловой энергии, по каждой системе теплоснабжения, если при установлении цен (тарифов) применяется такая дифференциация, по каждой организации, осуществляющей деятельность по производству тепловой энергии, в целом по единой теплоснабжающей организации.
F31: 2. | I31: В стр. 3 заполняется расход тепловой энергии на хозяйственные нужды только на источнике тепловой энергии.
F32: 3. | I32: Стр. 4 = стр. 1 + стр. 2 - стр. 3.
F33: 4. | I33: Стр. 6 = стр. 4 - стр. 5.
F34: 5. | I34: В строке 5 указываются фактические потери тепловой энергии в сети в случае, предусмотренном пунктом 90 Основ ценообразования в сфере теплоснабжения, утвержденных постановлением Правительства Российской Федерации от 22.10.2012 № 1075.

Sheet Приложение 4.2
EY1: Приложение 4.2
A3: Расчет полезного отпуска теплоносителя
EY5: (тыс. м3)
A6: № п/п | BR6: Базовый период - 2021 год (план) | DI6: Период регулирования - 2021 год (факт)
BR7: всего | CG7: в том числе | DI7: всего | DX7: в том числе
CG8: вода | CU8: пар | DX8: вода | EL8: пар
A9: 1 | H9: 2 | BR9: 3 | CG9: 4 | CU9: 5 | DI9: 6 | DX9: 7 | EL9: 8
A10: 1 | I10: Производство теплоносителя, всего
I11: в том числе:
I12: - ТЭЦ 25 МВт и более
I13: - ТЭЦ менее 25 МВт
I14: - котельные
I15: - электробойлерные
A16: 2 | I16: Покупной теплоноситель,
I17: в том числе:
I18: …
A19: 3 | I19: Расход теплоносителя на хозяйственные нужды
A20: 4 | I20: Отпуск теплоносителя в сеть
A21: 5 | I21: Нормативные потери при передаче теплоносителя
A22: 6 | I22: Объем возвращенного теплоносителя
A23: 7 | I23: Полезный отпуск теплоносителя потребителям
A25: Примечания:
F26: 1. | I26: Заполняется по каждому источнику тепловой энергии, по каждой системе теплоснабжения, если при установлении цен (тарифов) применяется такая дифференциация, по каждой организации, осуществляющей деятельность по производству тепловой энергии, теплоносителя, в целом по единой теплоснабжающей организации.
F27: 2. | I27: Стр. 4 = стр. 1 + стр. 2 - стр. 3.
F28: 3. | I28: Стр. 7 = стр. 4 - стр. 5 - стр. 6.

Sheet Приложение 4.3
EY1: Приложение 4.3
A3: Структура полезного отпуска тепловой энергии (мощности)
A5: № п/п | AP5: Базовый период - 2021 год (план) | CU5: Период регулирования - 2021 год (факт)
AP6: Суммарная договорная (заявленная) тепловая нагрузка по всем догово-рам тепло-снабжения, Гкал/час | BE6: в т.ч. по нерегули-руемым договорам, Гкал/час | BS6: Суммарный полезный отпуск тепловой энергии энергия, тыс. Гкал | CG6: в т.ч. по нерегули-руемым договорам, тыс. Гкал | CU6: Суммарная договорная (заявленная) тепловая нагрузка по всем догово-рам тепло-снабжения, Гкал/час | DJ6: в т.ч. по нерегули-руемым договорам, Гкал/час | DX6: Суммарный полезный отпуск тепловой энергии энергия, тыс. Гкал | EL6: в т.ч. по нерегули-руемым договорам, тыс. Гкал
A7: 1 | G7: 2 | AP7: 3 | BE7: 4 | BS7: 5 | CG7: 6 | CU7: 7 | DJ7: 8 | DX7: 9 | EL7: 10
A8: 1 | H8: Всего отпущено потребителям | AP8: 9 | BS8: 18,02 | CU8: 9 | DX8: 18,95
H9: Вода | AP9: 9 | BS9: 18,02 | CU9: 9 | DX9: 18,95
H10: Отборный пар
H11: - от 1,2 до 2,5 кгс/кв. см
H12: - от 2,5 до 7,0 кгс/кв. см
H13: - от 7,0 до 13,0 кгс/кв. см
H14: - свыше 13,0 кгс/кв. см
H15: Острый и редуцированный пар
H16: В том числе Население
H17: Вода
H18: Отборный пар
H19: - от 1,2 до 2,5 кгс/кв. см
H20: - от 2,5 до 7,0 кгс/кв. см
H21: - от 7,0 до 13,0 кгс/кв. см
H22: - свыше 13,0 кгс/кв. см
H23: Острый и редуцированный пар
A25: Примечания:
E26: 1. | H26: Заполняется по каждому источнику тепловой энергии, по каждой системе теплоснабжения, если при установлении цен (тарифов) применяется такая дифференциация, по каждой теплоснабжающей, теплосетевой организации, в целом по единой теплоснабжающей организации.
E27: 2. | H27: Может заполняться с помесячной разбивкой.

Sheet Приложение 4.5
EY1: Приложение 4.5
A2: Расчет баланса топлива
A4: Электро-станция (котельная) | N4: Вид топлива/ Калорийность топлива, ккал/кг н.т | AC4: Остаток на начало периода | BA4: Приход натурального топлива | DD4: Расход натурального топлива | EB4: Остаток на конец периода
AC5: всего, тыс. т.н.т. | AK5: цена, руб./т.н.т. | AS5: стоимость, тыс. руб. | BA5: всего, т.н.т. | BI5: цена франко станция | BQ5: дальность перевозки | BX5: тариф на перевозку | CF5: норматив потерь при перевозке | CM5: цена франко станция назначения, руб./т.н.т. | CV5: стоимость, тыс. руб. | DD5: всего, т.н.т. | DL5: цена, руб./т.н.т. | DT5: стоимость, тыс. руб. | EB5: всего, т.н.т. | EJ5: цена, руб./т.н.т. | ER5: стоимость, тыс. руб.
A6: 1 | N6: 2 | AC6: 3 | AK6: 4 | AS6: 5 | BA6: 6 | BI6: 7 | BQ6: 8 | BX6: 9 | CF6: 10 | CM6: 11 | CV6: 12 | DD6: 13 | DL6: 14 | DT6: 15 | EB6: 16 | EJ6: 17 | ER6: 18
A7: Базовый период - 2021 год (план)
A8: ТЭС 1 | O8: Газ … | BA8: 3099,25 | CV8: 18521,03 | DD8: 3099,25 | DL8: 5,976 | DT8: 18251,03
O9: Уголь …
O10: Мазут
O11: Торф
O12: Прочие
O13: …
A14: и т.д. | O14: …
A16: Всего | O16: Газ …
O17: Уголь …
O18: Мазут
O19: Торф
O20: Прочие
A21: Период регулирования - 2021 год (факт)
A22: ТЭС 1 | O22: Газ … | BA22: 3462,11 | CV22: 20380,61 | DD22: 3462,11 | DL22: 5,887 | DT22: 20380,61
O23: Уголь …
O24: Мазут
O25: Торф
O26: Прочие
O27: …
A28: и т.д. | O28: …
A31: Всего | O31: Газ …
O32: Уголь …
O33: Мазут
O34: Торф
O35: Прочие
F37: Примечания:
F38: 1. К таблице прилагается расшифровка по поставщикам топлива с указанием объемов поставок и согласованных (договорных) цен.
F39: 2. Гр. 5 = гр. 3 * гр. 4.
F40: 3. Гр. 11 = (гр. 7 + гр. 8 * гр. 9) * (1 + гр. 10).
F41: 4. Гр. 12 = гр. 6 * гр. 11 * 10-3.
F42: 5. Гр. 14 = (гр. 5 + гр. 12) / (гр. 3 + гр. 6 * 10-3).
F43: 6. Гр. 15 = гр. 13 * гр. 14 * 10-3.
F44: 7. Гр. 16 = гр. 3 + гр. 6 * 10-3 - гр. 13 * 10-3.
F45: 8. Гр. 17 = гр. 14.
F46: 9. Гр. 18 = гр. 5 + гр. 12 - гр. 15.

Sheet Приложение 4.10
DA1: Приложение 4.10
A3: Расчет амортизационных отчислений на восстановление основных производственных фондов
A5: № п. п. | G5: Показатели | BH5: Единица измерения | BV5: Базовый период - 2021 год (план) | CL5: Период регулирования - 2021 год (факт)
A6: 1 | G6: 2 | BH6: 3 | BV6: 4 | CL6: 5
A7: 1 | H7: Первоначальная стоимость осн. фондов на начало периода | BI7: тыс. руб. | BV7: 32263,654 | CL7: 32263,654
H8: Здания | BI8: тыс. руб. | BV8: 31936,043 | CL8: 31936,043
H9: Сооружения | BI9: тыс. руб.
H10: Передаточные устройства | BI10: тыс. руб.
H11: Машины и оборудование | BI11: тыс. руб. | BV11: 427,612 | CL11: 427,612
H12: в т.ч. - силовые машины | BI12: тыс. руб.
H13: - рабочие машины | BI13: тыс. руб.
H14: - приборы и лаборат. оборудование | BI14: тыс. руб. | BV14: 324,165 | CL14: 324,165
H15: - вычислительная техника | BI15: тыс. руб.
H16: - прочие машины | BI16: тыс. руб. | BV16: 103,447 | CL16: 103,447
H17: Транспортные средства | BI17: тыс. руб.
H18: Инструмент | BI18: тыс. руб.
H19: Производственный инвентарь | BI19: тыс. руб.
H20: Прочие основные производственные фонды | BI20: тыс. руб.
A22: 2 | H22: Переоценка стоимости осн. фондов (только положительная или отрицательная разница относительно первоначальной стоимости осн. фондов) | BI22: тыс. руб.
H23: Здания | BI23: тыс. руб.
H24: Сооружения | BI24: тыс. руб.
H25: Передаточные устройства | BI25: тыс. руб.
H26: Машины и оборудование | BI26: тыс. руб.
H27: в т.ч. - силовые машины | BI27: тыс. руб.
H28: - рабочие машины | BI28: тыс. руб.
H29: - приборы и лаборат. оборудование | BI29: тыс. руб.
H30: - вычислительная техника | BI30: тыс. руб.
H31: - прочие машины | BI31: тыс. руб.
H32: Транспортные средства | BI32: тыс. руб.
H33: Инструмент | BI33: тыс. руб.
H34: Производственный инвентарь | BI34: тыс. руб.
H35: Прочие основные производственные фонды | BI35: тыс. руб.
A37: 3 | H37: Ввод основных производственных фондов | BI37: тыс. руб.
H38: Здания | BI38: тыс. руб.
H39: Сооружения | BI39: тыс. руб.
H40: Передаточные устройства | BI40: тыс. руб.
H41: Машины и оборудование | BI41: тыс. руб.
H42: в т.ч. - силовые машины | BI42: тыс. руб.
H43: - рабочие машины | BI43: тыс. руб.
H44: - приборы и лаборат. оборудование | BI44: тыс. руб.
H45: - вычислительная техника | BI45: тыс. руб.
H46: - прочие машины | BI46: тыс. руб.
H47: Транспортные средства | BI47: тыс. руб.
H48: Инструмент | BI48: тыс. руб.
H49: Производственный инвентарь | BI49: тыс. руб.
H50: Прочие основные производственные фонды | BI50: тыс. руб.
A52: 4 | H52: Выбытие основных производственных фондов | BI52: тыс. руб.
H53: Здания | BI53: тыс. руб.
H54: Сооружения | BI54: тыс. руб.
H55: Передаточные устройства | BI55: тыс. руб.
H56: Машины и оборудование | BI56: тыс. руб.
H57: в т.ч. - силовые машины | BI57: тыс. руб.
H58: - рабочие машины | BI58: тыс. руб.
H59: - приборы и лаборат. оборудование | BI59: тыс. руб.
H60: - вычислительная техника | BI60: тыс. руб.
H61: - прочие машины | BI61: тыс. руб.
H62: Транспортные средства | BI62: тыс. руб.
H63: Инструмент | BI63: тыс. руб.
H64: Производственный инвентарь | BI64: тыс. руб.
H65: Прочие основные производственные фонды | BI65: тыс. руб.
A67: 5 | H67: Среднегодовая стоимость основных производственных фондов | BI67: тыс. руб. | BV67: 32363,654 | CL67: 32363,654
H68: Здания | BI68: тыс. руб. | BV68: 31936,043 | CL68: 31936,043
H69: Сооружения | BI69: тыс. руб.
H70: Передаточные устройства | BI70: тыс. руб.
H71: Машины и оборудование | BI71: тыс. руб. | BV71: 427,612 | CL71: 427,612
H72: в т.ч. - силовые машины | BI72: тыс. руб.
H73: - рабочие машины | BI73: тыс. руб.
H74: - приборы и лаборат. оборудование | BI74: тыс. руб. | BV74: 324,165 | CL74: 324,165
H75: - вычислительная техника | BI75: тыс. руб.
H76: - прочие машины | BI76: тыс. руб. | BV76: 103,447 | CL76: 103,447
H77: Транспортные средства | BI77: тыс. руб.
H78: Инструмент | BI78: тыс. руб.
H79: Производственный инвентарь | BI79: тыс. руб.
H80: Прочие основные производственные фонды | BI80: тыс. руб.
A82: 6 | H82: Норма амортизационных отчислений
H83: Здания | BI83: % | BV83: 6,63 | CL83: 6,63
H84: Сооружения | BI84: %
H85: Передаточные устройства | BI85: %
H86: Машины и оборудование | BI86: % | BV86: 6,69 | CL86: 6,69
H87: в т.ч. - силовые машины | BI87: %
H88: - рабочие машины | BI88: %
H89: - приборы и лаборат. оборудование | BI89: % | BV89: 10 | CL89: 10
H90: - вычислительная техника | BI90: %
H91: - прочие машины | BI91: % | BV91: 14,12 | CL91: 14,12
H92: Транспортные средства | BI92: %
H93: Инструмент | BI93: %
H94: Производственный инвентарь | BI94: %
H95: Прочие основные производственные фонды | BI95: %
A97: 7 | H97: Сумма амортизационных отчислений | BI97: тыс. руб. | BV97: 2164,331 | CL97: 2164,331
H98: Здания | BI98: тыс. руб. | BV98: 2117,307 | CL98: 2117,307
H99: Сооружения | BI99: тыс. руб.
H100: Передаточные устройства | BI100: тыс. руб.
H101: Машины и оборудование | BI101: тыс. руб. | BV101: 47,025 | CL101: 47,025
H102: в т.ч. - силовые машины | BI102: тыс. руб.
H103: - рабочие машины | BI103: тыс. руб.
H104: - приборы и лаборат. оборудование | BI104: тыс. руб. | BV104: 32,417 | CL104: 32,417
H105: - вычислительная техника | BI105: тыс. руб.
H106: - прочие машины | BI106: тыс. руб. | BV106: 14,608 | CL106: 14,608
H107: Транспортные средства | BI107: тыс. руб.
H108: Инструмент | BI108: тыс. руб.
H109: Производственный инвентарь | BI109: тыс. руб.
H110: Прочие основные производственные фонды | BI110: тыс. руб.
A111: 7.1 | H111: - на производство электрической энергии | BI111: тыс. руб.
A112: 7.2 | H112: - на производство тепловой энергии | BI112: тыс. руб. | BV112: 2164,331 | CL112: 2164,331
A113: 7.3 | H113: - на производство теплоносителя | BI113: тыс. руб.
A114: 7.4 | H114: - прочая продукция | BI114: тыс. руб.
D116: Примечания:
D117: 1. | G117: Заполняется по каждому источнику тепловой энергии, по каждой системе теплоснабжения, если при установлении цен (тарифов) применяется такая дифференциация, каждому виду регулируемой деятельности, по каждой теплоснабжающей, теплосетевой организации, в целом по единой теплоснабжающей организации.
D118: 2. | G118: Для источников тепловой энергии, функционирующих в режиме комбинированной выработки электрической и тепловой энергии, таблица заполняется в целом по источнику тепловой энергии. Строки 7.1 - 7.4 заполняются по результатам распределения расходов между тепловой и электрической энергией в соответствии с главой VIII Методических указаний.

Sheet Приложение 4.11
DA1: Приложение 4.11
A3: Расчет источников финансирования капитальных вложений
DA5: (тыс. руб.)
A6: № п/п | H6: Наименование | BR6: Базовый период - 2021 год (план) | CJ6: Период регулирования - 2021 год (факт)
A7: 1 | H7: 2 | BR7: 3 | CJ7: 4
A8: 1 | I8: Объем капитальных вложений - всего
I9: в том числе:
A10: 1.1 | I10: - на производственное и научно-техническое развитие
A11: 1.2 | I11: - на непроизводственное развитие
I12: Объем капитальных вложений, в том числе:
A13: 1.3 | I13: - на производство электрической энергии
A14: 1.4 | I14: - на производство тепловой энергии
A15: 1.5 | I15: - на производство теплоносителя
A16: 1.6 | I16: - прочая продукция
A17: 2 | I17: Финансирование капитальных вложений
I18: из средств - всего
A19: 2.1 | I19: Амортизационных отчислений на полное восстановление основных фондов (100%)
A20: 2.1.1 | I20: в т.ч за счет переоценки основных средств и нематериальных активов
A21: 2.2 | I21: Неиспользованных средств на начало года
A22: 2.3 | I22: Федерального бюджета
A23: 2.4 | I23: Местного бюджета
A24: 2.5 | I24: Регионального (республиканского, краевого, областного) бюджета
A25: 2.6 | I25: Прочих
A26: 2.7 | I26: Средства, полученные от реализации ценных бумаг
A27: 2.8 | I27: Кредитные средства
A28: 2.9 | I28: Итого по пп. 2.1 - 2.8
A29: 2.10 | I29: Прибыль (п. 1 - п. 2.9):
I30: Финансирование капитальных вложений, в том числе:
A31: 2.11 | I31: - на производство электрической энергии
A32: 2.12 | I32: - на производство тепловой энергии
A33: 2.13 | I33: - на производство теплоносителя
A34: 2.14 | I34: - прочая продукция
E36: Примечания:
E37: 1. | H37: Представляется одновременно с копией утвержденной в установленном порядке инвестиционной программы (или проектом инвестиционной программы).
E38: 2. | H38: Для источников тепловой энергии, функционирующих в режиме комбинированной выработки электрической и тепловой энергии, таблица заполняется в целом по источнику тепловой энергии. Строки 1.3 - 1.6, 2.11 - 2.14 заполняются по результатам распределения расходов между тепловой и электрической энергией в соответствии с главой VIII Методических указаний.

Sheet Приложение 4.12
DA1: Приложение 4.12
A3: Справка об объектах капитальных вложений за 2021 год
DA5: (тыс. руб.)
A6: Наименование объекта капитальных вложений | U6: Утверждено на базовый период | AL6: Выполнено в течение базового периода | BC6: Источник финансирова-ния на базовый период | BT6: План на период регулирования | CK6: Источник финансирова-ния на период регулирования
A7: 1 | U7: 2 | AL7: 3 | BC7: 4 | BT7: 5 | CK7: 6
A8: Всего
A9: в т.ч.
D15: Примечания:
D16: 1. | G16: Заполняется по каждому виду регулируемой деятельности, по каждой теплоснабжающей, теплосетевой организации, в целом по единой теплоснабжающей организации.
D17: 2. | G17: Представляется одновременно с копией утвержденной в установленном порядке инвестиционной программы (или проектом инвестиционной программы).

Sheet Приложение 5.3
AR1: Приложение 5.3
AR3: (в ред. Приказа ФАС России от 30.06.2017 № 868/17)
A5: Реестр неподконтрольных расходов
BA7: (тыс. руб.)
AR8: 2021 год
A9: № п. п. | I9: Наименование расхода | AR9: фактически понесенные расходы в 2021 году по данным регулируемой организации | BF9: прогноз расходов на 2021 год
A10: 1 | I10: 2 | AR10: 3 | BF10: 4
A11: 1.1 | J11: Расходы на оплату услуг, оказываемых организациями, осуществляющими регулируемые виды деятельности
A12: 1.2 | J12: Арендная плата
A13: 1.3 | J13: Концессионная плата
A14: 1.4 | J14: Расходы на уплату налогов, сборов и других обязательных платежей, в том числе: | AR14: 8.86 | BF14: 12.36
A15: 1.4.1 | J15: плата за выбросы и сбросы загрязняющих веществ в окружающую среду, размещение отходов и другие виды негативного воздействия на окружающую среду в пределах установленных нормативов и (или) лимитов
A16: 1.4.2 | J16: расходы на обязательное страхование | AR16: 7.5 | BF16: 9.9
A17: 1.4.3 | J17: иные расходы
A18: 1.5 | J18: Отчисления на социальные нужды | AR18: 882.92 | BF18: 816.3
A19: 1.6 | J19: Расходы по сомнительным долгам
A20: 1.7 | J20: Амортизация основных средств и нематериальных активов | AR20: 2164.331 | BF20: 2164.33
A21: 1.8 | J21: Расходы на выплаты по договорам займа и кредитным договорам, включая проценты по ним
A22: 1.9 | J22: Расходы концессионера на осуществление государственного кадастрового учета и (или) государственной регистрации права собственности концедента
J23: ИТОГО | AR23: 3056,111 | BF23: =BF14+BF18+BF20 -> 2992.99
A24: 2 | J24: Налог на прибыль | AR24: 105.7 | BF24: 73.87
A25: 3 | J25: Экономия, определенная в прошедшем долгосрочном периоде регулирования и подлежащая учету в текущем долгосрочном периоде регули-рования
A26: 4 | J26: Итого неподконтрольных расходов | AR26: 3161.811 | BF26: =SUM(BF23:BF25) -> 3066.86
F28: Примечания:
F29: 1. | I29: Год i0 - первый год долгосрочного периода регулирования, год i1 - последний год долгосрочного периода регулирования.
F30: 2. | I30: Строки 1.7, 1.8 при использовании метода обеспечения доходности инвестированного капитала не заполняются.
F31: 3. | I31: Гр. 3, 5, … n-1 заполняется регулируемой организацией по итогам фактически понесенных расходов в соответствующем расчетном периоде регулирования.
F32: 4. | I32: Гр. 4, 6, … n в течение долгосрочного периода регулирования заполняется регулируемой организацией с учетом уточнения планируемых значений расходов.

Sheet Приложение 5.4
BK1: Приложение 5.4
A3: Реестр расходов на приобретение энергетических ресурсов, холодной воды и теплоносителя (далее в настоящем приложении - ресурсы)
A6: № п. п. | I6: Наименование ресурса | AR6: 2021 год
AR7: фактически понесенные расходы в 2021 году по данным регулируемой организации | BH7: прогноз расходов на 2021 год
A8: 1 | I8: 2 | AR8: 3 | BH8: 4
A9: 1 | J9: Расходы на топливо | AR9: 20380.61 | BH9: 19390.48
A10: 2 | J10: Расходы на электрическую энергию | AR10: 3789.97 | BH10: 2552.01
A11: 3 | J11: Расходы на тепловую энергию
A12: 4 | J12: Расходы на холодную воду | AR12: 868.72 | BH12: 514.78
A13: 5 | J13: Расходы на теплоноситель
A14: 6 | J14: ИТОГО | AR14: =SUM(AR9:AR13) -> 25039.3 | BH14: =SUM(BH9:BH13) -> 22457.27
F16: Примечания:
F17: 1. | I17: Год i0 - первый год долгосрочного периода регулирования, год i1 - последний год долгосрочного периода регулирования.
F18: 2. | I18: Гр. 3, 5, n-1 заполняется регулируемой организацией по данным о фактически приобретенных энергетических ресурсах, холодной воды и теплоносителя.
F19: 3. | I19: Строки 1 - 5 заполняются по данным Приложений 4.4, 4.7 и 4.8 к настоящим Методическим указаниям.

Sheet Приложение 5.9
BM1: Приложение 5.9
BL3: (в ред. Приказов ФАС России от 04.07.2016 № 888/16, от 04.10.2017 № 1292/17)
A5: Расчет необходимой валовой выручки методом индексации установленных тарифов
A7: № п. п. | G7: Наименование расхода | BE7: 2021 год
BE8: факт в 2021 году по данным регулируемой организации | BR8: прогноз на 2021 год
A9: 1 | G9: 2 | BE9: 3 | BR9: 4
A10: 1 | H10: Операционные (подконтрольные) расходы | BE10: 4129.22 | BR10: 4725.71
A11: 2 | H11: Неподконтрольные расходы | BE11: 3161.81 | BR11: 3066.86
A12: 3 | H12: Расходы на приобретение (производство) энергетических ресурсов, холодной воды и теплоносителя | BE12: 25039.31 | BR12: 21459.96
A13: 4 | H13: Нормативная прибыль | BR13: 828.36
A14: 5 | H14: Расчетная предпринимательская прибыль | BR14: 532.88
A15: 6 | H15: Результаты деятельности до перехода к регулированию цен (тарифов) на основе долгосрочных параметров регулирования
A16: 7 | H16: Корректировка с целью учета отклонения фактических значений параметров расчета тарифов от значений, учтенных при установлении тарифов
A17: 8 | H17: Корректировка необходимой валовой выручки с учетом степени исполнения регулируемой организацией обязательств по созданию и (или) реконструкции объекта концессионного соглашения или по реализации инвестиционной программы в случае недостижения регулируемой организацией плановых значений показателей надежности объектов теплоснабжения
A18: 9 | H18: Корректировка НВВ в связи с изменением (неисполнением) инвестиционной программы
A19: 10 | H19: Корректировка, подлежащая учету в НВВ и учитывающая отклонение фактических показателей энергосбережения и повышения энергетической эффективности от установленных плановых (расчетных) показателей и отклонение сроков реализации программы в области энергосбережения и повышения энергетической эффективности от установленных сроков реализации такой программы | BR19: 771.62
H20: валовая выручка | BE20: 31306.12 | BR20: 30852.52
A21: 12 | H21: Товарная выручка
E23: Примечания:
E24: 1. | H24: Год i0 - первый год долгосрочного периода регулирования, год i1 - последний год долгосрочного периода регулирования.
E25: 2. | H25: Графы 3, 5, ..., n - 1 строк 1 и 3 заполняются на основе фактических значений параметров расчета тарифов взамен прогнозных.
E26: 3. | H26: В строке 5 графы 3, 5, n - 1 не заполняются.
E27: 4. | H27: Строка 6 заполняется только для первого долгосрочного периода регулирования.
E28: 5. | H28: Графы 4, 6, ..., n строки 11 заполняются как сумма соответствующих граф строк с 1 по 10.
E29: 6. | H29: Графы 3, 5, ..., n - 1 строки 11 заполняются как сумма соответствующих граф строк с 1 по 6.
E30: 7. | H30: В строке 7:
H31: гр. 7 = гр. 3 стр. 11 - гр. 3 стр. 12 + гр. 3 стр. 7;
H32: гр. 9 = гр. 5 стр. 11 - гр. 5 стр. 12 + гр. 5 стр. 7 и т.д.;
H33: гр. 3 и 5 заполняются аналогично по данным таблицы предыдущего досрочного периода регулирования.
E34: 8. | H34: Строка 12 заполняется только в графах 3, 5, ..., n - 1.
E35: 9. | H35: К таблице прилагаются дополнительные материалы, содержащие обоснованный расчет по строкам 8, 9, 10, 12.

Sheet Перечень материалов (форм)
B1: Наименование приложения | C1: Номер формы или приложения | D1: Ссылка на документ
B2: Расчет полезного отпуска тепловой энергии | C2: Приложение 4.1 Методических указаний от 13.06.2013 № 760-э
B3: Расчет полезного отпуска теплоносителя | C3: Приложение 4.2 Методических указаний от 13.06.2013 № 760-э
B4: Структура полезного отпуска тепловой энергии (мощности) | C4: Приложение 4.3 Методических указаний от 13.06.2013 № 760-э
B5: Расчёт баланса топлива | C5: Приложение 4.5 Методических указаний от 13.06.2013 № 760-э
B6: Расчёт амортизационных отчислений на восстановление основных производственных фондов | C6: Приложение 4.10 Методических указаний от 13.06.2013 № 760-э
B7: Расчет источников финансирования капитальных вложений | C7: Приложение 4.11 Методических указаний от 13.06.2013 № 760-э
B8: Справка об объектах капитальных вложений | C8: Приложение 4.12 Методических указаний от 13.06.2013 № 760-э
B9: Реестр неподконтрольных расходов | C9: Приложение 5.3 Методических указаний от 13.06.2013 № 760-э
B10: Реестр расходов на приобретение энергетических ресурсов,холодной воды и теплоносителя (далее в настоящем приложении - ресурсы) | C10: Приложение 5.4 Методических указаний от 13.06.2013 № 760-э
B11: Расчет необходимой валовой выручки методом индексации установленных тарифов | C11: Приложение 5.9 Методических указаний от 13.06.2013 № 760-э
B12: Сведения о снабжении тепловой энергией | C12: Форма федерального государственного статистического наблюдения № 1-ТЕП
B13: Сведения о численности, заработной плате и движении работников | C13: Статистическая форма № П-4
B14: Сведения о работе тепловой электростанции | C14: Статистическая форма № 6-ТП
B15: Отчётная калькуляция себестоимости полезно отпущенной тепловой энергии | C15: Форма № 6-Т Бухгалтерской отчетности
B16: Отчет о прибылях и убытках | C16: Форма № 2 Бухгалтерской отчетности с расшифровкой по видам деятельности
B17: Прочие материалы, используемые для анализа регулируемого вида деятельности за отчетный период* | C17: -
B19: *при большом количестве обосновывающих материалов перед загрузкой в хранилище их необходимо преобразовать в архив

Sheet Справочник (hidden)
A1: Бабынинский район | C1: ООО "Тепловодоканал" | E1: Город Балабаново, городское поселение | I1: Некомбинированное производство :: Передача :: Сбыт
A2: Барятинский район | C2: МУП ЖКХ "Бабынино" МО СП "Посёлок Бабынино" | E2: Город Белоусово, городское поселение | I2: Некомбинированное производство :: Передача
A3: Боровский район | C3: МУП "ЖилСервис" | E3: Город Боровск, городское поселение | I3: Некомбинированное производство :: Сбыт
A4: Город Калуга | C4: ООО "Энергоресурс" | E4: Город Ермолино, городское поселение | I4: Передача :: Сбыт
A5: Город Обнинск | C5: ООО «Калужская энергосетевая компания» (Совхоз Боровский) | E5: Город Жиздра, городское поселение | I5: Комбинированное производство, более 25 МВт :: Передача :: Сбыт
A6: Дзержинский район | C6: ОАО "Боровский завод радиотехнологического оснащения" | E6: Город Жуков, городское поселение | I6: Комбинированное производство, менее 25 МВт :: Сбыт
A7: Думиничский район | C7: МУП "Ермолинские тепловые сети" | E7: Город Козельск, городское поселение
A8: Жиздринский район | C8: Войсковая часть 3694 | E8: Город Кондрово, городское поселение
A9: Жуковский район | C9: ООО «НИОБА» | E9: Город Кременки, городское поселение
A10: Износковский район | C10: МУП «МХАЦ «Ворсино» | E10: Город Малоярославец, городское поселение
A11: Кировский район | C11: OOO "ЖКУ Кабицино" | E11: Город Медынь, городское поселение
A12: Козельский район | C12: ООО "ТД Берканум" | E12: Город Мещовск, городское поселение
A13: Куйбышевский район | C13: МУП «Дирекция единого заказчика на услуги жилищно-коммунального хозяйства» | E13: Город Мосальск, городское поселение
A14: Людиновский район | C14: МУП КХ п. Товарково | E14: Город Сосенский, городское поселение
A15: Малоярославецкий район | C15: МУП "Карамышевское ЖКХ" | E15: Город Спас-Деменск, городское поселение
A16: Медынский район | C16: ООО "Полотняно-Заводская бумажная мануфактура" | E16: Город Киров, городское поселение
A17: Мещовский район | C17: ООО "ЭнергоТранс" | E17: Город Юхнов, городское поселение
A18: Мосальский район | C18: МУП "Теплосеть" МР "Думиничский район" | E18: деревня Акимовка, сельское поселение
A19: Перемышльский район | C19: АО "Калужский научно-исследовательский радиотехнический институт" | E19: деревня Алексеевка, сельское поселение
A20: Спас-Деменский район | C20: УМП " Жилищник" | E20: деревня Асеньевское, сельское поселение
A21: Сухиничский район | C21: МУП "Теплоснабжение" МО ГП "Город Белоусово" | E21: деревня Асмолово, сельское поселение
A22: Тарусский район | C22: ГМП "Энергетик" МО ГП "Город Жуков | E22: деревня Барсуки, сельское поселение
A23: Ульяновский район | C23: ООО "Региональная теплогенерирующая компания № 3" | E23: деревня Бахмутово, сельское поселение
A24: Ферзиковский район | C24: ООО «Региональная Теплогенерирующая Компания» | E24: деревня Березовка, сельское поселение
A25: Хвастовичский район | C25: ООО "Кировтеплоэнерго" | E25: деревня Болва, сельское поселение
A26: Юхновский район | C26: ООО «Кировэнергосервис» | E26: деревня Большие Козлы, сельское поселение
C27: МУП МРЭП МО "МР Козельский район" | E27: деревня Брюхово, сельское поселение
C28: ФГУП "НПЦ АП им. академика Н.А. Пилюгина" - "Сосенский приборостроительный завод" | E28: деревня Буда, сельское поселение
C29: Сосенское МУП «Водоканал» | E29: деревня Варваровка, сельское поселение
C30: ООО "Куйбышевские тепловые сети" | E30: деревня Верхнее Гульцово, сельское поселение
C31: МУП "Людиновские тепловые сети" | E31: деревня Верховье, сельское поселение
C32: ООО "Болва" | E32: деревня Воробьево, сельское поселение
C33: ООО "ПЭК "Людиновотепловоз" | E33: деревня Воронино, сельское поселение
C34: Государственное автономное учреждение здравоохранения Калужской области Калужский санаторий "Спутник" | E34: деревня Высокое, сельское поселение
C35: УМП "Коммунальные электрические и тепловые сети" | E35: деревня Высокое, сельское поселение
C36: Акционерное общество "Малоярославецкий Опытно - Производственный Акционерный Завод" | E36: деревня Галкино, сельское поселение
C37: УМП МР "Малоярославецкий район" "Малоярославецстройзаказчик" | E37: деревня Гачки, сельское поселение
C38: ООО "ЭнергоИнвест" | E38: деревня Глухово, сельское поселение
C39: ООО "РЭМЭКС ТЕПЛОМАШ" | E39: деревня Горбачи, сельское поселение*
C40: ПАО "Русский продукт" | E40: деревня Горки, сельское поселение
C41: ООО "Агрисовгаз" | E41: деревня Григоровское, сельское поселение
C42: ООО "ТЕПЛОСЕРВИС" | E42: деревня Гусево, сельское поселение
C43: МУП "Мещовские тепловые сети" | E43: деревня Дегонка, сельское поселение
C44: МП КЭТ и ГС МР "Мосальский район" | E44: деревня Дешовки, сельское поселение
C45: МУП «Перемышльтепло» | E45: деревня Добрая, сельское поселение
C46: МУП "Благоустройство" | E46: деревня Долгое, сельское поселение
C47: ЗАО "Сухиничский комбикормовый завод" | E47: деревня Дубровка, сельское поселение
C48: ОАО «Российские железные дороги» Брянский территориальный участок Московской дирекции по тепловодоснабжению Центральной дирекции по тепловодоснабжению – филиала ОАО «РЖД» | E48: деревня Думиничи, сельское поселение
C49: ОАО «Российские железные дороги» Московско-Смоленский территориальный участок Московской дирекции по тепловодоснабжению Центральной дирекции по тепловодоснабжению – филиала ОАО «РЖД» | E49: деревня Ерденево, сельское поселение
C50: ООО "ТеплоСервис" г. Сухиничи | E50: деревня Жилетово, сельское поселение
C51: МУП "Тарусское коммунальное предприятие" | E51: деревня Захарово, сельское поселение
C52: МУП "Тарусажилдорстрой-Заказчик" | E52: деревня Ивановское, сельское поселение
C53: ООО "Ульяновские тепловые сети" | E53: деревня Каменка, сельское поселение
C54: МП МО ГП "Посёлок Ферзиково" "Ферзиковские тепловые сети" | E54: деревня Карцово, сельское поселение
C55: МП "Служба единого заказчика" МР "Ферзиковский район" | E55: деревня Киреевское-Первое, сельское поселение
C56: МУП "Хвастовичское коммунальное хозяйство" | E56: деревня Корсаково, сельское поселение
C57: МУП "Юхновтеплосеть" МР "Юхновский район" | E57: деревня Кривское, сельское поселение
C58: ПАО "КСК" | E58: деревня Крисаново-Пятница, сельское поселение
C59: Войсковая часть 54985 | E59: деревня Лавровск, сельское поселение
C60: АО "ОНПП "Технология" им. А.Г. Ромашина" | E60: деревня Людково, сельское поселение**
C61: АО "НИФХИ ИМ. Л.Я. КАРПОВА" | E61: деревня Маслово, сельское поселение
C62: ФГБНУ "ВНИИРАЭ" | E62: деревня Михали, сельское поселение
C63: МП "Теплоснабжение" | E63: деревня Михальчуково, сельское поселение
C64: ООО "ТермоТрон" | E64: деревня Михеево, сельское поселение
C65: АО "Калужский завод путевых машин и гидроприводов" | E65: деревня Михеево, сельское поселение
C66: ОАО "Калужский завод транспортного машиностроения" | E66: деревня Младенск, сельское поселение
C67: ООО "Дом" | E67: деревня Нестеры, сельское поселение
C68: ООО "КП "Сигнал" | E68: деревня Никольское , городское поселение
C69: АО "КНИИТМУ" | E69: деревня Ореховня, сельское поселение
C70: АО "Калужский электромеханический завод" | E70: деревня Перенежье, сельское поселение
C71: ПАО "Калужский завод автомобильного электрооборудования" | E71: деревня Песочня, сельское поселение
C72: ПАО "Калужский двигатель" | E72: деревня Плетни, сельское поселение
C73: АО "НПП" Калужский приборостроительный завод "Тайфун" | E73: деревня Плюсково, сельское поселение
C74: АО "Калужский завод "Ремпутьмаш" | E74: деревня Погореловка, сельское поселение
C75: АО "Калужский завод "Ремпутьмаш"-Товарковский филиал | E75: деревня Подборки, сельское поселение
C76: АО"КАЛУЖСКАЯ ОБУВНАЯ ФАБРИКА "КАЛИТА" | E76: деревня Покровское, сельское поселение
C77: АО "Калужский завод телеграфной аппаратуры" | E77: деревня Понизовье, сельское поселение
C78: ОАО "Сыры Калужские" | E78: деревня Посконь, сельское поселение
C79: ООО «Элмат» | E79: деревня Прудки, сельское поселение
C80: АО "Калугатехремонт" | E80: деревня Путогино, сельское поселение
C81: МУП "Калугатеплосеть" | E81: деревня Рамено, сельское поселение*
C82: АО "Восход" - КРЛЗ | E82: деревня Редькино, сельское поселение
C83: ООО «Тепло-Сервис» | E83: деревня Романово, сельское поселение
C84: ООО "Аркаим" | E84: деревня Рудня, сельское поселение
C85: ООО "ПрофИнжиниринг" | E85: деревня Рябцево, сельское поселение
C86: ООО "СЕТЕВАЯ КОМПАНИЯ" | E86: деревня Савино, сельское поселение
C87: ООО "СФЕРА" | E87: деревня Сени, сельское поселение
C88: ФГБУ "ЦЖКУ" МИНОБОРОНЫ РОССИИ | E88: деревня Сенино-Первое, сельское поселение
C89: МУП "Курилово" | E89: деревня Сильково, сельское поселение
C90: МУП "Каскад-Энергосбыт" | E90: деревня Снопот, сельское поселение
C91: ООО «Калужская энергосетевая компания» (Боровск) | E91: деревня Совьяки, сельское поселение
C92: ООО «Калужская энергосетевая компания» (Балабаново) | E92: деревня Стайки, сельское поселение
C93: ООО "КБК энерго" | E93: деревня Старки, сельское поселение
C94: ООО "Постак" | E94: деревня Теплово, сельское поселение
E95: деревня Тростье, сельское поселение
E96: деревня Хвощи, сельское поселение
E97: деревня Хотисино, сельское поселение
E98: деревня Цветовка, сельское поселение
E99: деревня Чубарово,
E100: деревня Шершнево, сельское поселение
E101: деревня Шумятино, сельское поселение
E102: железнодорожная станция Кудринская, сельское поселение
E103: им. Ленина, сельское поселение
E104: поселок Бабынино, сельское поселение
E105: поселок Бетлица, сельское поселение
E106: поселок Воротынск, городское поселение
E107: поселок Детчино, сельское поселение
E108: поселок Думиничи, городское поселение
E109: поселок Мятлево, сельское поселение
E110: поселок Полотняный Завод, городское поселение
E111: поселок Пятовский, городское поселение
E112: поселок Товарково, городское поселение
E113: поселок Юбилейный, сельское поселение
E114: поселок Мирный, сельское поселение
E115: поселок Молодежный, сельское поселение
E116: поселок Раменский, сельское поселение**
E117: поселок Шаховский, сельское поселение*
E118: село Адуево, сельское поселение
E119: село Ахлебинино, сельское поселение
E120: село Бабынино, сельское поселение
E121: село Барятино, сельское поселение
E122: село Березичский стеклозавод, сельское поселение
E123: село Борищево, сельское поселение
E124: село Боровенск, сельское поселение**
E125: село Брынь, сельское поселение
E126: село Буднянский, сельское поселение
E127: село Бурнашево, сельское поселение
E128: село Бутчино, сельское поселение
E129: село Вертное, сельское поселение
E130: село Волконское, сельское поселение
E131: село Ворсино, сельское поселение
E132: село Восход, сельское поселение
E133: село Высокиничи, сельское поселение
E134: село Гаврики, сельское поселение
E135: село Головтеево, сельское поселение
E136: село Гремячево, сельское поселение
E137: село Дашино, сельское поселение
E138: село Дворцы, сельское поселение
E139: село Жерелево, сельское поселение
E140: село Извольск, сельское поселение
E141: село Износки, сельское поселение
E142: село Ильинское, сельское поселение
E143: село Ильинское, сельское поселение
E144: село Истье, сельское поселение
E145: село Калужская опытная сельскохозяйственная станция, сельское поселение
E146: село Коллонтай, сельское поселение
E147: село Корекозево, сельское поселение
E148: село Которь, сельское поселение
E149: село Кременское, сельское поселение
E150: село Кудиново, сельское поселение
E151: село Лазинки, сельское поселение
E152: село Льва-Толстого, сельское поселение
E153: село Льнозавод, сельское поселение
E154: село Любунь, сельское поселение
E155: село Макарово, сельское поселение
E156: село Маклаки, сельское поселение
E157: село Маклино, сельское поселение
E158: село Милотичи, сельское поселение
E159: село Мокрое,
E160: село Муромцево, сельское поселение
E161: село Недельное, сельское поселение
E162: село Нижние Прыски, сельское поселение
E163: село Никитское, сельское поселение
E164: село Новослободск, сельское поселение
E165: село Овсорок, сельское поселение
E166: село Огорь, сельское поселение
E167: село Павлиново, сельское поселение
E168: село Передел, сельское поселение
E169: село Перемышль, сельское поселение
E170: село Покровск, сельское поселение
E171: село Попелево, сельское поселение
E172: село Сабуровщино, сельское поселение
E173: село Серпейск, сельское поселение
E174: село Сильковичи, сельское поселение
E175: село Совхоз "Коллективизатор" сельское поселение
E176: село Совхоз "Победа", сельское поселение
E177: село Совхоз Боровский, сельское поселение
E178: село Совхоз Чаусово,
E179: село Совхоз Чкаловский, сельское поселение
E180: село Совхоз
E181: село Спас-Загорье, сельское поселение
E182: село Студенец, сельское поселение
E183: село Тарасково, сельское поселение*
E184: село Тарутино, сельское поселение
E185: село Троицкое, сельское поселение
E186: село Трубино, сельское поселение
E187: село Утешево, сельское поселение
E188: село Хотьково, сельское поселение
E189: село Чернышено, сельское поселение
E190: село Чернышено, сельское поселение
E191: село Шанский Завод, сельское поселение
E192: сельское поселение
E193: сельское поселение
E194: сельское поселение
E195: Угорское, сельское поселение
E196: хутор Новоалександровский, сельское поселение
E197: Село Заречье
E198: Село Ульяново
